Workbook

Sheet 賃貸住宅経営のセルチェックシート (入力例)
A1: 賃貸住宅経営のセルフチェックシート（入力例）
A3: 保有する賃貸アパートや賃貸マンションを、より長期的かつ良好な状態で維持・管理するために、建物や設備を定期的に修繕することが大切です。このため、運用期間を通じた収入と支出の見通しを試算・把握し、将来的に必要となる修繕費用の確保に努めましょう。
A4: 〈注意事項〉
A5: ◯ | B5: このシートの黄色のセルに、それぞれの物件に係る情報を入力して下さい。
A6: ◯ | B6: このセルフチェックシートは、あくまでも想定であり、実際の金額とは異なります。また、全ての初期費用や必要経費等を網羅したものではなく、その内容の正確性を保証するものではありません。このため、このチェックシートに基づき行った賃貸経営で損失が生じた場合でも、一切の責任を負いません。
A8: １.基本情報
A9: 物件名 | G9: ○○アパート | P9: 構造 | V9: 木造 | Y9: （法定耐用年数） | AB9: 22
A10: 屋根の形状、外壁の材質 | G10: 屋根 | I10: 傾斜屋根 | K10: 外壁 | M10: 塗装 | P10: 階建、EVの有無 | V10: 2 | W10: 階建 | Y10: （EVの有無） | AB10: ‐
A11: 敷地面積 | G11: 200 | J11: 60.5 | P11: 延床面積 | V11: 400 | Y11: 121
A12: 総戸数 | G12: 8 | J12: （1戸あたり） | M12: 45 | P12: 賃料 | V12: 75000 | Y12: （坪単価） | AB12: 5510
A13: 平均入居期間 | G13: 4 | J13: （入替率） | M13: 0.25 | P13: 賃料の変動率 | V13: 左記入居期間経過の都度 | AB13: -0.04
A14: 平均稼働率（空室日数） | G14: 新築時 | I14: 0.98 | K14: 空室変動率 | N14: -0.005 | P14: 建物管理費 | V14: 賃料月額の | Y14: 0.05
A16: ２.借入条件
A17: 建物建設費(税込) | G17: 60000000 | K17: （坪単価） | N17: 495.87 | P17: 土地評価額 | V17: 40000000 | Z17: （坪単価） | AC17: 661.16
A18: 借入額 | G18: 40000000 | K18: （自己資金比率） | N18: 0.3333333333 | P18: 金利・返済期間 | V18: 金利 | X18: 0.03 | Z18: 返済期間 | AC18: 20
A20: ３.計画修繕（戸あたり） | H20: 【修繕水準】 | L20: 標準 | O20: （「標準」：周期（長）、費用（標準）／「簡易」：周期（短）、費用（廉価））
G21: 修繕周期（目安） | J21: 10 | M21: 15 | P21: 20 | S21: 25 | V21: 30 | Y21: 35 | AB21: 40
A22: 建物本体 | B22: 屋根・屋上 | G22: 10～15年 | J22: 0 | M22: 88000 | P22: 0 | S22: 0 | V22: 88000 | Y22: 0 | AB22: 0
B23: 外壁 | G23: 10～15年 | J23: 0 | M23: 115500 | P23: 0 | S23: 0 | V23: 115500 | Y23: 0 | AB23: 0
B24: 雨樋 | G24: 10～15年 | J24: 0 | M24: 7150 | P24: 0 | S24: 0 | V24: 7150 | Y24: 0 | AB24: 0
B25: ベランダ | G25: 5年 | J25: 33000 | M25: 53900 | P25: 33000 | S25: 53900 | V25: 33000 | Y25: 53900 | AB25: 33000
B26: 階段廊下 | G26: 5年 | J26: 20900 | M26: 49500 | P26: 20900 | S26: 49500 | V26: 20900 | Y26: 49500 | AB26: 20900
A27: 共用設備 | B27: 電気設備(EV等) | G27: 15年 | J27: 0 | M27: 50000 | P27: 0 | S27: 0 | V27: 75000 | Y27: 0 | AB27: 0
B28: 給排水管 | G28: 5年 | J28: 5500 | M28: 5500 | P28: 5500 | S28: 5500 | V28: 5500 | Y28: 5500 | AB28: 5500
B29: 外構(フェンス、駐輪場等) | G29: 10年 | J29: 0 | M29: 143000 | P29: 0 | S29: 0 | V29: 143000 | Y29: 0 | AB29: 0
A30: 室内設備 | B30: 給湯・風呂釜(交換) | G30: 10年 | J30: 0 | M30: 110000 | P30: 0 | S30: 0 | V30: 110000 | Y30: 0 | AB30: 0
B31: エアコン(交換) | G31: 10年 | J31: 0 | M31: 110000 | P31: 0 | S31: 0 | V31: 110000 | Y31: 0 | AB31: 0
B32: 給湯・風呂釜（修理） エアコン（修理） 台所設備、浴室設備 洗面化粧台、トイレ | G32: 故障の都度 | J32: (注)
A33: 小 計（戸あたり） | J33: 59400 | M33: 732550 | P33: 59400 | S33: 108900 | V33: 708050 | Y33: 108900 | AB33: 59400
A34: 合 計（建物全体） | J34: 47.52 | M34: 586.04 | P34: 47.52 | S34: 87.12 | V34: 566.44 | Y34: 87.12 | AB34: 47.52
A35: (注)これらは随時対応が必要な費用のため、計画的に修繕する費用をまとめた本表には含まないが、「キャッシュフロー表」では「修繕費(小修繕(故障対応))」として平準化して計上）
A36: ４.想定建物売却価格（IRR算出用）
A37: 10年目 | D37: 50000000 | H37: （増減率） | K37: -0.1666666667 | N37: 30年目 | Q37: 24000000 | U37: （増減率） | X37: -0.6
A38: （参考）中古マンションの売却価格指数は、新築価格を100とした場合、築10年で82.2、築30年で40.3（「築年数からみた首都圏の不動産流通市場(2016年)」（東日本レインズ）参照）
A39: ■試算結果
A41: 利回り(40年通算) | M41: IRR（内部収益率） | S41: 収支（40年通算）
A42: 表面利回り | E42: NOI | I42: 実質利回り | M42: 10年目 | P42: 30年目 | S42: 総家賃収入 | W42: 総支出 | AA42: 損益分岐点
A43: 0.09768333333 | E43: 0.07188694444 | I43: 0.02662970153 | M43: 0.001171677586 | P43: 0.001825648285 | S43: 23444 | W43: 14970.87163 | AA43: 21
A58: ■キャッシュフロー表 | AD58: （単位:万円）
K59: 初期投資 | M59: 1 | O59: 5 | Q59: 10 | S59: 15 | U59: 20 | W59: 25 | Y59: 30 | AA59: 35 | AC59: 40
A60: 収支計算 | B60: 収入 | C60: 家賃収入 | M60: 706 | O60: 684 | Q60: 653 | S60: 623 | U60: 596 | W60: 544 | Y60: 519 | AA60: 496 | AC60: 454
C61: 銀行借入 | K61: 4000 | M61: 0 | O61: 0 | Q61: 0 | S61: 0 | U61: 0 | W61: 0 | Y61: 0 | AA61: 0 | AC61: 0
C62: 自己資金 | K62: 2000 | M62: 0 | O62: 0 | Q62: 0 | S62: 0 | U62: 0 | W62: 0 | Y62: 0 | AA62: 0 | AC62: 0
C63: 収入計 | K63: 6000 | M63: 706 | O63: 684 | Q63: 653 | S63: 623 | U63: 596 | W63: 544 | Y63: 519 | AA63: 496 | AC63: 454
B64: 支出 | C64: 建物建設費（初期投資） | K64: 6000 | M64: 0 | O64: 0 | Q64: 0 | S64: 0 | U64: 0 | W64: 0 | Y64: 0 | AA64: 0 | AC64: 0
C65: 建物管理費（募集・管理委託等） | M65: 36 | O65: 34.55 | Q65: 33.15 | S65: 31.8 | U65: 30.55 | W65: 28.2 | Y65: 27.05 | AA65: 25.95 | AC65: 23.9
C66: 保険料 | M66: 15 | O66: 15 | Q66: 15 | S66: 15 | U66: 15 | W66: 15 | Y66: 15 | AA66: 15 | AC66: 15
C67: 原状回復費 | M67: 15 | O67: 15 | Q67: 15 | S67: 15 | U67: 15 | W67: 15 | Y67: 15 | AA67: 15 | AC67: 15
C68: 修繕費(小修繕(故障対応)) | M68: 6.6 | O68: 6.6 | Q68: 6.6 | S68: 6.6 | U68: 6.6 | W68: 6.6 | Y68: 6.6 | AA68: 6.6 | AC68: 6.6
C69: 修繕費(計画修繕) | M69: 0 | O69: 0 | Q69: 48 | S69: 586 | U69: 48 | W69: 87 | Y69: 566 | AA69: 87 | AC69: 48
C70: 借入金返済 | M70: 268 | O70: 268 | Q70: 268 | S70: 268 | U70: 268 | W70: 0 | Y70: 0 | AA70: 0 | AC70: 0
C71: 固定資産税・都市計画税 | M71: 94.93333333 | O71: 79.63333333 | Q71: 68.41333333 | S71: 57.19333333 | U71: 44.95333333 | W71: 33.73333333 | Y71: 33.73333333 | AA71: 33.73333333 | AC71: 33.73333333
C72: 所得税等 | M72: 47.014 | O72: 51.5515 | Q72: 38.5561 | S72: 0 | U72: 50.1259 | W72: 118.294 | Y72: 0 | AA72: 103.1965 | AC72: 102.883
C73: 支出計 | K73: 6000 | M73: 482.5473333 | O73: 470.3348333 | Q73: 492.7194333 | S73: 979.5933333 | U73: 478.2292333 | W73: 303.8273333 | Y73: 663.3833333 | AA73: 286.4798333 | AC73: 245.1163333
B74: 収支 | C74: 手元資金残金（年） | K74: 0 | M74: 223.4526667 | O74: 213.6651667 | Q74: 160.2805667 | S74: -356.5933333 | U74: 117.7707667 | W74: 240.1726667 | Y74: -144.3833333 | AA74: 209.5201667 | AC74: 208.8836667
C75: 手元資金残金（累計） | K75: -6000 | M75: -5776.547333 | O75: -4863.542367 | Q75: -3871.241733 | S75: -3501.229 | U75: -2758.794267 | W75: -1094.411133 | Y75: -60.9233 | AA75: 1249.183533 | AC75: 2473.128367
A76: P/L（損益計算） | B76: 収益（収入） | M76: 706 | O76: 684 | Q76: 653 | S76: 623 | U76: 596 | W76: 544 | Y76: 519 | AA76: 496 | AC76: 454
B77: 営業費用 | C77: 建物管理費（募集・管理委託等） | M77: 36 | O77: 34.55 | Q77: 33.15 | S77: 31.8 | U77: 30.55 | W77: 28.2 | Y77: 27.05 | AA77: 25.95 | AC77: 23.9
C78: 原状回復費 | M78: 15 | O78: 15 | Q78: 15 | S78: 15 | U78: 15 | W78: 15 | Y78: 15 | AA78: 15 | AC78: 15
C79: 修繕費 | M79: 6.6 | O79: 6.6 | Q79: 54.6 | S79: 592.6 | U79: 54.6 | W79: 93.6 | Y79: 572.6 | AA79: 93.6 | AC79: 54.6
C80: 保険料 | M80: 15 | O80: 15 | Q80: 15 | S80: 15 | U80: 15 | W80: 15 | Y80: 15 | AA80: 15 | AC80: 15
C81: 固定資産税・都市計画税 | M81: 94.93333333 | O81: 79.63333333 | Q81: 68.41333333 | S81: 57.19333333 | U81: 44.95333333 | W81: 33.73333333 | Y81: 33.73333333 | AA81: 33.73333333 | AC81: 33.73333333
C82: 営業費用計 | M82: 167.5333333 | O82: 150.7833333 | Q82: 186.1633333 | S82: 711.5933333 | U82: 160.1033333 | W82: 185.5333333 | Y82: 663.3833333 | AA82: 183.2833333 | AC82: 142.2333333
B83: 償却前利益 | M83: 538.4666667 | O83: 533.2166667 | Q83: 466.8366667 | S83: -88.59333333 | U83: 435.8966667 | W83: 358.4666667 | Y83: -144.3833333 | AA83: 312.7166667 | AC83: 311.7666667
B84: 営業外 | C84: 減価償却費（定額法） | M84: 276 | O84: 276 | Q84: 276 | S84: 276 | U84: 276 | W84: 0 | Y84: 0 | AA84: 0 | AC84: 0
C85: 支払利息 | M85: 120 | O85: 101 | Q85: 74 | S85: 43 | U85: 8 | W85: 0 | Y85: 0 | AA85: 0 | AC85: 0
C86: 営業外費用計 | M86: 396 | O86: 377 | Q86: 350 | S86: 319 | U86: 284 | W86: 0 | Y86: 0 | AA86: 0 | AC86: 0
B87: 税引前利益（償却後利益） | M87: 142.4666667 | O87: 156.2166667 | Q87: 116.8366667 | S87: -407.5933333 | U87: 151.8966667 | W87: 358.4666667 | Y87: -144.3833333 | AA87: 312.7166667 | AC87: 311.7666667
B88: 所得税 | M88: 47.014 | O88: 51.5515 | Q88: 38.5561 | S88: 0 | U88: 50.1259 | W88: 118.294 | Y88: 0 | AA88: 103.1965 | AC88: 102.883
B89: 当期利益 | M89: 95.45266667 | O89: 104.6651667 | Q89: 78.28056667 | S89: -407.5933333 | U89: 101.7707667 | W89: 240.1726667 | Y89: -144.3833333 | AA89: 209.5201667 | AC89: 208.8836667
B90: 当期利益累計 | M90: 95.45266667 | O90: 544.4576333 | Q90: 1070.758267 | S90: 1121.771 | U90: 1711.205733 | W90: 2823.588867 | Y90: 3857.0767 | AA90: 5167.183533 | AC90: 6391.128367
A91: 総収入ー総支出（運用期間通算） | K91: -12636.87163 | M91: -11952.47163 | O91: -9206.871633 | Q91: -6004.871633 | S91: -3523.871633 | U91: -672.8716333 | W91: 1952.128367 | Y91: 3948.128367 | AA91: 6279.128367 | AC91: 8473.128367
A93: 賃料収入水準（新築時の満室時賃料を100） | M93: 98.05555556 | O93: 95 | Q93: 90.69444444 | S93: 86.52777778 | U93: 82.77777778 | W93: 75.55555556 | Y93: 72.08333333 | AA93: 68.88888889 | AC93: 63.05555556

Sheet 賃貸住宅経営のセルチェックシート【入力シート】
A1: 賃貸住宅経営のセルフチェックシート
A3: 保有する賃貸アパートや賃貸マンションを、より長期的かつ良好な状態で維持・管理するために、建物や設備を定期的に修繕することが大切です。このため、運用期間を通じた収入と支出の見通しを試算・把握し、将来的に必要となる修繕費用の確保に努めましょう。
A4: 〈注意事項〉
A5: ◯ | B5: このシートの黄色のセルに、それぞれの物件に係る情報を入力して下さい。
A6: ◯ | B6: このセルフチェックシートは、あくまでも想定であり、実際の金額とは異なります。また、全ての初期費用や必要経費等を網羅したものではなく、その内容の正確性を保証するものではありません。このため、このチェックシートに基づき行った賃貸経営で損失が生じた場合でも、一切の責任を負いません。
A8: １.基本情報
A9: 物件名 | P9: 構造 | Y9: （法定耐用年数） | AB9: =IFERROR(VLOOKUP(V9,算出基礎係数!A2:B4,2,FALSE),"") -> 
A10: 屋根の形状、外壁の材質 | G10: 屋根 | K10: 外壁 | P10: 階建、EVの有無 | W10: 階建 | Y10: （EVの有無）
A11: 敷地面積 | J11: =ROUND(G11*0.3025,2) -> 0 | P11: 延床面積 | Y11: =ROUND(V11*0.3025,2) -> 0
A12: 総戸数 | J12: （1戸あたり） | M12: =IFERROR(ROUND((V11*0.9)/G12,2),"") ->  | P12: 賃料 | Y12: （坪単価） | AB12: =IFERROR(ROUND(V12/M12/0.3025,-1),"") -> 
A13: 平均入居期間 | J13: （入替率） | M13: =IFERROR(VLOOKUP(G13,算出基礎係数!$E$2:$F$3,2,FALSE),"") ->  | P13: 賃料の変動率 | V13: 左記入居期間経過の都度
A14: 平均稼働率（空室日数） | G14: 新築時 | K14: 空室変動率 | P14: 建物管理費 | V14: 賃料月額の
A16: ２.借入条件
A17: 建物建設費(税込) | K17: （坪単価） | N17: =IFERROR(ROUND(G17/Y11,-1)/1000,"") ->  | P17: 土地評価額 | Z17: （坪単価） | AC17: =IFERROR(ROUND(V17/J11,-1)/1000,"") -> 
A18: 借入額 | K18: （自己資金比率） | N18: =IFERROR(1-(G18/G17),"") ->  | P18: 金利・返済期間 | V18: 金利 | Z18: 返済期間
A20: ３.計画修繕（戸あたり） | H20: 【修繕水準】 | O20: （「標準」：周期（長）、費用（標準）／「簡易」：周期（短）、費用（廉価））
G21: 修繕周期（目安） | J21: 10 | M21: 15 | P21: 20 | S21: 25 | V21: 30 | Y21: 35 | AB21: 40
A22: 建物本体 | B22: 屋根・屋上 | G22: 10～15年 | J22: =IFERROR(ROUND(VLOOKUP($V$9&$I$10&$L$20,'修繕費（計画修繕）'!$A$13:$H$25,2,FALSE)*算出基礎係数!$B$17,-2),"") ->  | M22: =IFERROR(ROUND(VLOOKUP($V$9&$I$10&$L$20,'修繕費（計画修繕）'!$A$13:$H$25,3,FALSE)*算出基礎係数!$B$17,-2),"") ->  | P22: =IFERROR(ROUND(VLOOKUP($V$9&$I$10&$L$20,'修繕費（計画修繕）'!$A$13:$H$25,4,FALSE)*算出基礎係数!$B$17,-2),"") ->  | S22: =IFERROR(ROUND(VLOOKUP($V$9&$I$10&$L$20,'修繕費（計画修繕）'!$A$13:$H$25,5,FALSE)*算出基礎係数!$B$17,-2),"") ->  | V22: =IFERROR(ROUND(VLOOKUP($V$9&$I$10&$L$20,'修繕費（計画修繕）'!$A$13:$H$25,6,FALSE)*算出基礎係数!$B$17,-2),"") ->  | Y22: =IFERROR(ROUND(VLOOKUP($V$9&$I$10&$L$20,'修繕費（計画修繕）'!$A$13:$H$25,7,FALSE)*算出基礎係数!$B$17,-2),"") ->  | AB22: =IFERROR(ROUND(VLOOKUP($V$9&$I$10&$L$20,'修繕費（計画修繕）'!$A$13:$H$25,8,FALSE)*算出基礎係数!$B$17,-2),"") -> 
B23: 外壁 | G23: 10～15年 | J23: =IFERROR(ROUND(VLOOKUP($V$9&$M$10&$L$20,'修繕費（計画修繕）'!$A$28:$H$40,2,FALSE)*算出基礎係数!$B$17,-2),"") ->  | M23: =IFERROR(ROUND(VLOOKUP($V$9&$M$10&$L$20,'修繕費（計画修繕）'!$A$28:$H$40,3,FALSE)*算出基礎係数!$B$17,-2),"") ->  | P23: =IFERROR(ROUND(VLOOKUP($V$9&$M$10&$L$20,'修繕費（計画修繕）'!$A$28:$H$40,4,FALSE)*算出基礎係数!$B$17,-2),"") ->  | S23: =IFERROR(ROUND(VLOOKUP($V$9&$M$10&$L$20,'修繕費（計画修繕）'!$A$28:$H$40,5,FALSE)*算出基礎係数!$B$17,-2),"") ->  | V23: =IFERROR(ROUND(VLOOKUP($V$9&$M$10&$L$20,'修繕費（計画修繕）'!$A$28:$H$40,6,FALSE)*算出基礎係数!$B$17,-2),"") ->  | Y23: =IFERROR(ROUND(VLOOKUP($V$9&$M$10&$L$20,'修繕費（計画修繕）'!$A$28:$H$40,7,FALSE)*算出基礎係数!$B$17,-2),"") ->  | AB23: =IFERROR(ROUND(VLOOKUP($V$9&$M$10&$L$20,'修繕費（計画修繕）'!$A$28:$H$40,8,FALSE)*算出基礎係数!$B$17,-2),"") -> 
B24: 雨樋 | G24: 10～15年 | J24: =IFERROR(VLOOKUP($V$9&$AB$10&$L$20,'修繕費（計画修繕）'!$A$43:$H$51,2,FALSE),"") ->  | M24: =IFERROR(VLOOKUP($V$9&$AB$10&$L$20,'修繕費（計画修繕）'!$A$43:$H$51,3,FALSE),"") ->  | P24: =IFERROR(VLOOKUP($V$9&$AB$10&$L$20,'修繕費（計画修繕）'!$A$43:$H$51,4,FALSE),"") ->  | S24: =IFERROR(VLOOKUP($V$9&$AB$10&$L$20,'修繕費（計画修繕）'!$A$43:$H$51,5,FALSE),"") ->  | V24: =IFERROR(VLOOKUP($V$9&$AB$10&$L$20,'修繕費（計画修繕）'!$A$43:$H$51,6,FALSE),"") ->  | Y24: =IFERROR(VLOOKUP($V$9&$AB$10&$L$20,'修繕費（計画修繕）'!$A$43:$H$51,7,FALSE),"") ->  | AB24: =IFERROR(VLOOKUP($V$9&$AB$10&$L$20,'修繕費（計画修繕）'!$A$43:$H$51,8,FALSE),"") -> 
B25: ベランダ | G25: 5年 | J25: =IFERROR(VLOOKUP($V$9&$AB$10&$L$20,'修繕費（計画修繕）'!$A$54:$H$62,2,FALSE),"") ->  | M25: =IFERROR(VLOOKUP($V$9&$AB$10&$L$20,'修繕費（計画修繕）'!$A$54:$H$62,3,FALSE),"") ->  | P25: =IFERROR(VLOOKUP($V$9&$AB$10&$L$20,'修繕費（計画修繕）'!$A$54:$H$62,4,FALSE),"") ->  | S25: =IFERROR(VLOOKUP($V$9&$AB$10&$L$20,'修繕費（計画修繕）'!$A$54:$H$62,5,FALSE),"") ->  | V25: =IFERROR(VLOOKUP($V$9&$AB$10&$L$20,'修繕費（計画修繕）'!$A$54:$H$62,6,FALSE),"") ->  | Y25: =IFERROR(VLOOKUP($V$9&$AB$10&$L$20,'修繕費（計画修繕）'!$A$54:$H$62,7,FALSE),"") ->  | AB25: =IFERROR(VLOOKUP($V$9&$AB$10&$L$20,'修繕費（計画修繕）'!$A$54:$H$62,8,FALSE),"") -> 
B26: 階段廊下 | G26: 5年 | J26: =IFERROR(VLOOKUP($V$9&$AB$10&$L$20,'修繕費（計画修繕）'!$A$65:$H$73,2,FALSE),"") ->  | M26: =IFERROR(VLOOKUP($V$9&$AB$10&$L$20,'修繕費（計画修繕）'!$A$65:$H$73,3,FALSE),"") ->  | P26: =IFERROR(VLOOKUP($V$9&$AB$10&$L$20,'修繕費（計画修繕）'!$A$65:$H$73,4,FALSE),"") ->  | S26: =IFERROR(VLOOKUP($V$9&$AB$10&$L$20,'修繕費（計画修繕）'!$A$65:$H$73,5,FALSE),"") ->  | V26: =IFERROR(VLOOKUP($V$9&$AB$10&$L$20,'修繕費（計画修繕）'!$A$65:$H$73,6,FALSE),"") ->  | Y26: =IFERROR(VLOOKUP($V$9&$AB$10&$L$20,'修繕費（計画修繕）'!$A$65:$H$73,7,FALSE),"") ->  | AB26: =IFERROR(VLOOKUP($V$9&$AB$10&$L$20,'修繕費（計画修繕）'!$A$65:$H$73,8,FALSE),"") -> 
A27: 共用設備 | B27: 電気設備(EV等) | G27: 15年 | J27: =IFERROR(VLOOKUP($V$9&$AB$10&$L$20,'修繕費（計画修繕）'!$A$76:$H$84,2,FALSE),"") ->  | M27: =IFERROR(VLOOKUP($V$9&$AB$10&$L$20,'修繕費（計画修繕）'!$A$76:$H$84,3,FALSE),"") ->  | P27: =IFERROR(VLOOKUP($V$9&$AB$10&$L$20,'修繕費（計画修繕）'!$A$76:$H$84,4,FALSE),"") ->  | S27: =IFERROR(VLOOKUP($V$9&$AB$10&$L$20,'修繕費（計画修繕）'!$A$76:$H$84,5,FALSE),"") ->  | V27: =IFERROR(VLOOKUP($V$9&$AB$10&$L$20,'修繕費（計画修繕）'!$A$76:$H$84,6,FALSE),"") ->  | Y27: =IFERROR(VLOOKUP($V$9&$AB$10&$L$20,'修繕費（計画修繕）'!$A$76:$H$84,7,FALSE),"") ->  | AB27: =IFERROR(VLOOKUP($V$9&$AB$10&$L$20,'修繕費（計画修繕）'!$A$76:$H$84,8,FALSE),"") -> 
B28: 給排水管 | G28: 5年 | J28: =IFERROR(VLOOKUP($V$9&$AB$10&$L$20,'修繕費（計画修繕）'!$A$87:$H$95,2,FALSE),"") ->  | M28: =IFERROR(VLOOKUP($V$9&$AB$10&$L$20,'修繕費（計画修繕）'!$A$87:$H$95,3,FALSE),"") ->  | P28: =IFERROR(VLOOKUP($V$9&$AB$10&$L$20,'修繕費（計画修繕）'!$A$87:$H$95,4,FALSE),"") ->  | S28: =IFERROR(VLOOKUP($V$9&$AB$10&$L$20,'修繕費（計画修繕）'!$A$87:$H$95,5,FALSE),"") ->  | V28: =IFERROR(VLOOKUP($V$9&$AB$10&$L$20,'修繕費（計画修繕）'!$A$87:$H$95,6,FALSE),"") ->  | Y28: =IFERROR(VLOOKUP($V$9&$AB$10&$L$20,'修繕費（計画修繕）'!$A$87:$H$95,7,FALSE),"") ->  | AB28: =IFERROR(VLOOKUP($V$9&$AB$10&$L$20,'修繕費（計画修繕）'!$A$87:$H$95,8,FALSE),"") -> 
B29: 外構(フェンス、駐輪場等) | G29: 10年 | J29: =IFERROR(VLOOKUP($V$9&$AB$10&$L$20,'修繕費（計画修繕）'!$A$98:$H$106,2,FALSE),"") ->  | M29: =IFERROR(VLOOKUP($V$9&$AB$10&$L$20,'修繕費（計画修繕）'!$A$98:$H$106,3,FALSE),"") ->  | P29: =IFERROR(VLOOKUP($V$9&$AB$10&$L$20,'修繕費（計画修繕）'!$A$98:$H$106,4,FALSE),"") ->  | S29: =IFERROR(VLOOKUP($V$9&$AB$10&$L$20,'修繕費（計画修繕）'!$A$98:$H$106,5,FALSE),"") ->  | V29: =IFERROR(VLOOKUP($V$9&$AB$10&$L$20,'修繕費（計画修繕）'!$A$98:$H$106,6,FALSE),"") ->  | Y29: =IFERROR(VLOOKUP($V$9&$AB$10&$L$20,'修繕費（計画修繕）'!$A$98:$H$106,7,FALSE),"") ->  | AB29: =IFERROR(VLOOKUP($V$9&$AB$10&$L$20,'修繕費（計画修繕）'!$A$98:$H$106,8,FALSE),"") -> 
A30: 室内設備 | B30: 給湯・風呂釜(交換) | G30: 10年 | J30: =IFERROR(VLOOKUP($V$9&$L$20,'修繕費（計画修繕）'!$A$109:$H$115,2,FALSE),"") ->  | M30: =IFERROR(VLOOKUP($V$9&$L$20,'修繕費（計画修繕）'!$A$109:$H$115,3,FALSE),"") ->  | P30: =IFERROR(VLOOKUP($V$9&$L$20,'修繕費（計画修繕）'!$A$109:$H$115,4,FALSE),"") ->  | S30: =IFERROR(VLOOKUP($V$9&$L$20,'修繕費（計画修繕）'!$A$109:$H$115,5,FALSE),"") ->  | V30: =IFERROR(VLOOKUP($V$9&$L$20,'修繕費（計画修繕）'!$A$109:$H$115,6,FALSE),"") ->  | Y30: =IFERROR(VLOOKUP($V$9&$L$20,'修繕費（計画修繕）'!$A$109:$H$115,7,FALSE),"") ->  | AB30: =IFERROR(VLOOKUP($V$9&$L$20,'修繕費（計画修繕）'!$A$109:$H$115,8,FALSE),"") -> 
B31: エアコン(交換) | G31: 10年 | J31: =IFERROR(VLOOKUP($V$9&$L$20,'修繕費（計画修繕）'!$A$118:$H$124,2,FALSE),"") ->  | M31: =IFERROR(VLOOKUP($V$9&$L$20,'修繕費（計画修繕）'!$A$118:$H$124,3,FALSE),"") ->  | P31: =IFERROR(VLOOKUP($V$9&$L$20,'修繕費（計画修繕）'!$A$118:$H$124,4,FALSE),"") ->  | S31: =IFERROR(VLOOKUP($V$9&$L$20,'修繕費（計画修繕）'!$A$118:$H$124,5,FALSE),"") ->  | V31: =IFERROR(VLOOKUP($V$9&$L$20,'修繕費（計画修繕）'!$A$118:$H$124,6,FALSE),"") ->  | Y31: =IFERROR(VLOOKUP($V$9&$L$20,'修繕費（計画修繕）'!$A$118:$H$124,7,FALSE),"") ->  | AB31: =IFERROR(VLOOKUP($V$9&$L$20,'修繕費（計画修繕）'!$A$118:$H$124,8,FALSE),"") -> 
B32: 給湯・風呂釜（修理） エアコン（修理） 台所設備、浴室設備 洗面化粧台、トイレ | G32: 故障の都度 | J32: (注)
A33: 小 計（戸あたり） | J33: =SUM(J22:L31) -> 0 | M33: =SUM(M22:O31) -> 0 | P33: =SUM(P22:R31) -> 0 | S33: =SUM(S22:U31) -> 0 | V33: =SUM(V22:X31) -> 0 | Y33: =SUM(Y22:AA31) -> 0 | AB33: =SUM(AB22:AD31) -> 0
A34: 合 計（建物全体） | J34: =J33*$G$12/10000 -> 0 | M34: =M33*$G$12/10000 -> 0 | P34: =P33*$G$12/10000 -> 0 | S34: =S33*$G$12/10000 -> 0 | V34: =V33*$G$12/10000 -> 0 | Y34: =Y33*$G$12/10000 -> 0 | AB34: =AB33*$G$12/10000 -> 0
A35: (注)これらは随時対応が必要な費用のため、計画的に修繕する費用をまとめた本表には含まないが、「キャッシュフロー表」では「修繕費(小修繕(故障対応))」として平準化して計上）
A36: ４.想定建物売却価格（IRR算出用）
A37: 10年目 | H37: （増減率） | K37: =IFERROR((D37-G17)/G17,"") ->  | N37: 30年目 | U37: （増減率） | X37: =IFERROR((Q37-G17)/G17,"") -> 
A38: （参考）中古マンションの売却価格指数は、新築価格を100とした場合、築10年で82.2、築30年で40.3（「築年数からみた首都圏の不動産流通市場(2016年)」（東日本レインズ）参照）
A39: ■試算結果
A41: 利回り(40年通算) | M41: IRR（内部収益率） | S41: 収支（40年通算）
A42: 表面利回り | E42: NOI | I42: 実質利回り | M42: 10年目 | P42: 30年目 | S42: 総家賃収入 | W42: 総支出 | AA42: 損益分岐点
A43: =IFERROR((S43*10000)/$G$17/40,"") ->  | E43: =IFERROR(((S43-キャッシュフロー表!AT69)*10000)/$G$17/40,"") ->  | I43: =IFERROR((キャッシュフロー表!$AT$35*10000)/G17/40,"") ->  | M43: =IFERROR(IF(D37="","",IRR(キャッシュフロー表!F50:Q50)),"") ->  | P43: =IFERROR(IF(Q37="","",IRR(キャッシュフロー表!F49:AK49)),"") ->  | S43: =IFERROR(キャッシュフロー表!$AT$58,"") ->  | W43: =IFERROR(キャッシュフロー表!$AT$61,"") ->  | AA43: =COUNTIF(キャッシュフロー表!G36:BN36,"<0") -> 0
A58: ■キャッシュフロー表 | AD58: （単位:万円）
K59: 初期投資 | M59: 1 | O59: 5 | Q59: 10 | S59: 15 | U59: 20 | W59: 25 | Y59: 30 | AA59: 35 | AC59: 40
A60: 収支計算 | B60: 収入 | C60: 家賃収入 | M60: =キャッシュフロー表!G5 -> 0 | O60: =キャッシュフロー表!K5 ->  | Q60: =キャッシュフロー表!P5 ->  | S60: =キャッシュフロー表!U5 ->  | U60: =キャッシュフロー表!Z5 ->  | W60: =キャッシュフロー表!AE5 ->  | Y60: =キャッシュフロー表!AJ5 ->  | AA60: =キャッシュフロー表!AO5 ->  | AC60: =キャッシュフロー表!AT5 -> 
C61: 銀行借入 | K61: =キャッシュフロー表!F6 -> 0 | M61: =キャッシュフロー表!G6 -> 0 | O61: =キャッシュフロー表!K6 -> 0 | Q61: =キャッシュフロー表!P6 -> 0 | S61: =キャッシュフロー表!U6 -> 0 | U61: =キャッシュフロー表!Z6 -> 0 | W61: =キャッシュフロー表!AE6 -> 0 | Y61: =キャッシュフロー表!AJ6 -> 0 | AA61: =キャッシュフロー表!AO6 -> 0 | AC61: =キャッシュフロー表!AT6 -> 0
C62: 自己資金 | K62: =キャッシュフロー表!F7 -> 0 | M62: =キャッシュフロー表!G7 -> 0 | O62: =キャッシュフロー表!K7 -> 0 | Q62: =キャッシュフロー表!P7 -> 0 | S62: =キャッシュフロー表!U7 -> 0 | U62: =キャッシュフロー表!Z7 -> 0 | W62: =キャッシュフロー表!AE7 -> 0 | Y62: =キャッシュフロー表!AJ7 -> 0 | AA62: =キャッシュフロー表!AO7 -> 0 | AC62: =キャッシュフロー表!AT7 -> 0
C63: 収入計 | K63: =キャッシュフロー表!F8 -> 0 | M63: =キャッシュフロー表!G8 -> 0 | O63: =キャッシュフロー表!K8 ->  | Q63: =キャッシュフロー表!P8 ->  | S63: =キャッシュフロー表!U8 ->  | U63: =キャッシュフロー表!Z8 ->  | W63: =キャッシュフロー表!AE8 ->  | Y63: =キャッシュフロー表!AJ8 ->  | AA63: =キャッシュフロー表!AO8 ->  | AC63: =キャッシュフロー表!AT8 -> 
B64: 支出 | C64: 建物建設費（初期投資） | K64: =キャッシュフロー表!F9 -> 0 | M64: =キャッシュフロー表!G9 -> 0 | O64: =キャッシュフロー表!K9 -> 0 | Q64: =キャッシュフロー表!P9 -> 0 | S64: =キャッシュフロー表!U9 -> 0 | U64: =キャッシュフロー表!Z9 -> 0 | W64: =キャッシュフロー表!AE9 -> 0 | Y64: =キャッシュフロー表!AJ9 -> 0 | AA64: =キャッシュフロー表!AO9 -> 0 | AC64: =キャッシュフロー表!AT9 -> 0
C65: 建物管理費（募集・管理委託等） | M65: =キャッシュフロー表!G10 -> 0 | O65: =キャッシュフロー表!K10 ->  | Q65: =キャッシュフロー表!P10 ->  | S65: =キャッシュフロー表!U10 ->  | U65: =キャッシュフロー表!Z10 ->  | W65: =キャッシュフロー表!AE10 ->  | Y65: =キャッシュフロー表!AJ10 ->  | AA65: =キャッシュフロー表!AO10 ->  | AC65: =キャッシュフロー表!AT10 -> 
C66: 保険料 | M66: =キャッシュフロー表!G11 ->  | O66: =キャッシュフロー表!K11 ->  | Q66: =キャッシュフロー表!P11 ->  | S66: =キャッシュフロー表!U11 ->  | U66: =キャッシュフロー表!Z11 ->  | W66: =キャッシュフロー表!AE11 ->  | Y66: =キャッシュフロー表!AJ11 ->  | AA66: =キャッシュフロー表!AO11 ->  | AC66: =キャッシュフロー表!AT11 -> 
C67: 原状回復費 | M67: =キャッシュフロー表!G12 ->  | O67: =キャッシュフロー表!K12 ->  | Q67: =キャッシュフロー表!P12 ->  | S67: =キャッシュフロー表!U12 ->  | U67: =キャッシュフロー表!Z12 ->  | W67: =キャッシュフロー表!AE12 ->  | Y67: =キャッシュフロー表!AJ12 ->  | AA67: =キャッシュフロー表!AO12 ->  | AC67: =キャッシュフロー表!AT12 -> 
C68: 修繕費(小修繕(故障対応)) | M68: =キャッシュフロー表!G13 ->  | O68: =キャッシュフロー表!K13 ->  | Q68: =キャッシュフロー表!P13 ->  | S68: =キャッシュフロー表!U13 ->  | U68: =キャッシュフロー表!Z13 ->  | W68: =キャッシュフロー表!AE13 ->  | Y68: =キャッシュフロー表!AJ13 ->  | AA68: =キャッシュフロー表!AO13 ->  | AC68: =キャッシュフロー表!AT13 -> 
C69: 修繕費(計画修繕) | M69: =キャッシュフロー表!G14 -> 0 | O69: =キャッシュフロー表!K14 -> 0 | Q69: =キャッシュフロー表!P14 -> 0 | S69: =キャッシュフロー表!U14 -> 0 | U69: =キャッシュフロー表!Z14 -> 0 | W69: =キャッシュフロー表!AE14 -> 0 | Y69: =キャッシュフロー表!AJ14 -> 0 | AA69: =キャッシュフロー表!AO14 -> 0 | AC69: =キャッシュフロー表!AT14 -> 0
C70: 借入金返済 | M70: =キャッシュフロー表!G15 -> 0 | O70: =キャッシュフロー表!K15 -> 0 | Q70: =キャッシュフロー表!P15 -> 0 | S70: =キャッシュフロー表!U15 -> 0 | U70: =キャッシュフロー表!Z15 -> 0 | W70: =キャッシュフロー表!AE15 -> 0 | Y70: =キャッシュフロー表!AJ15 -> 0 | AA70: =キャッシュフロー表!AO15 -> 0 | AC70: =キャッシュフロー表!AT15 -> 0
C71: 固定資産税・都市計画税 | M71: =キャッシュフロー表!G16 -> 0 | O71: =キャッシュフロー表!K16 -> 0 | Q71: =キャッシュフロー表!P16 -> 0 | S71: =キャッシュフロー表!U16 -> 0 | U71: =キャッシュフロー表!Z16 -> 0 | W71: =キャッシュフロー表!AE16 -> 0 | Y71: =キャッシュフロー表!AJ16 -> 0 | AA71: =キャッシュフロー表!AO16 -> 0 | AC71: =キャッシュフロー表!AT16 -> 0
C72: 所得税等 | M72: =キャッシュフロー表!G17 ->  | O72: =キャッシュフロー表!K17 ->  | Q72: =キャッシュフロー表!P17 ->  | S72: =キャッシュフロー表!U17 ->  | U72: =キャッシュフロー表!Z17 ->  | W72: =キャッシュフロー表!AE17 ->  | Y72: =キャッシュフロー表!AJ17 ->  | AA72: =キャッシュフロー表!AO17 ->  | AC72: =キャッシュフロー表!AT17 -> 
C73: 支出計 | K73: =キャッシュフロー表!F18 -> 0 | M73: =キャッシュフロー表!G18 ->  | O73: =キャッシュフロー表!K18 ->  | Q73: =キャッシュフロー表!P18 ->  | S73: =キャッシュフロー表!U18 ->  | U73: =キャッシュフロー表!Z18 ->  | W73: =キャッシュフロー表!AE18 ->  | Y73: =キャッシュフロー表!AJ18 ->  | AA73: =キャッシュフロー表!AO18 ->  | AC73: =キャッシュフロー表!AT18 -> 
B74: 収支 | C74: 手元資金残金（年） | K74: =キャッシュフロー表!F19 -> 0 | M74: =キャッシュフロー表!G19 ->  | O74: =キャッシュフロー表!K19 ->  | Q74: =キャッシュフロー表!P19 ->  | S74: =キャッシュフロー表!U19 ->  | U74: =キャッシュフロー表!Z19 ->  | W74: =キャッシュフロー表!AE19 ->  | Y74: =キャッシュフロー表!AJ19 ->  | AA74: =キャッシュフロー表!AO19 ->  | AC74: =キャッシュフロー表!AT19 -> 
C75: 手元資金残金（累計） | K75: =キャッシュフロー表!F20 -> 0 | M75: =キャッシュフロー表!G20 ->  | O75: =キャッシュフロー表!K20 ->  | Q75: =キャッシュフロー表!P20 ->  | S75: =キャッシュフロー表!U20 ->  | U75: =キャッシュフロー表!Z20 ->  | W75: =キャッシュフロー表!AE20 ->  | Y75: =キャッシュフロー表!AJ20 ->  | AA75: =キャッシュフロー表!AO20 ->  | AC75: =キャッシュフロー表!AT20 -> 
A76: P/L（損益計算） | B76: 収益（収入） | M76: =キャッシュフロー表!G21 -> 0 | O76: =キャッシュフロー表!K21 ->  | Q76: =キャッシュフロー表!P21 ->  | S76: =キャッシュフロー表!U21 ->  | U76: =キャッシュフロー表!Z21 ->  | W76: =キャッシュフロー表!AE21 ->  | Y76: =キャッシュフロー表!AJ21 ->  | AA76: =キャッシュフロー表!AO21 ->  | AC76: =キャッシュフロー表!AT21 -> 
B77: 営業費用 | C77: 建物管理費（募集・管理委託等） | M77: =キャッシュフロー表!G22 -> 0 | O77: =キャッシュフロー表!K22 ->  | Q77: =キャッシュフロー表!P22 ->  | S77: =キャッシュフロー表!U22 ->  | U77: =キャッシュフロー表!Z22 ->  | W77: =キャッシュフロー表!AE22 ->  | Y77: =キャッシュフロー表!AJ22 ->  | AA77: =キャッシュフロー表!AO22 ->  | AC77: =キャッシュフロー表!AT22 -> 
C78: 原状回復費 | M78: =キャッシュフロー表!G23 ->  | O78: =キャッシュフロー表!K23 ->  | Q78: =キャッシュフロー表!P23 ->  | S78: =キャッシュフロー表!U23 ->  | U78: =キャッシュフロー表!Z23 ->  | W78: =キャッシュフロー表!AE23 ->  | Y78: =キャッシュフロー表!AJ23 ->  | AA78: =キャッシュフロー表!AO23 ->  | AC78: =キャッシュフロー表!AT23 -> 
C79: 修繕費 | M79: =キャッシュフロー表!G24 ->  | O79: =キャッシュフロー表!K24 ->  | Q79: =キャッシュフロー表!P24 ->  | S79: =キャッシュフロー表!U24 ->  | U79: =キャッシュフロー表!Z24 ->  | W79: =キャッシュフロー表!AE24 ->  | Y79: =キャッシュフロー表!AJ24 ->  | AA79: =キャッシュフロー表!AO24 ->  | AC79: =キャッシュフロー表!AT24 -> 
C80: 保険料 | M80: =キャッシュフロー表!G25 ->  | O80: =キャッシュフロー表!K25 ->  | Q80: =キャッシュフロー表!P25 ->  | S80: =キャッシュフロー表!U25 ->  | U80: =キャッシュフロー表!Z25 ->  | W80: =キャッシュフロー表!AE25 ->  | Y80: =キャッシュフロー表!AJ25 ->  | AA80: =キャッシュフロー表!AO25 ->  | AC80: =キャッシュフロー表!AT25 -> 
C81: 固定資産税・都市計画税 | M81: =キャッシュフロー表!G26 -> 0 | O81: =キャッシュフロー表!K26 -> 0 | Q81: =キャッシュフロー表!P26 -> 0 | S81: =キャッシュフロー表!U26 -> 0 | U81: =キャッシュフロー表!Z26 -> 0 | W81: =キャッシュフロー表!AE26 -> 0 | Y81: =キャッシュフロー表!AJ26 -> 0 | AA81: =キャッシュフロー表!AO26 -> 0 | AC81: =キャッシュフロー表!AT26 -> 0
C82: 営業費用計 | M82: =キャッシュフロー表!G27 ->  | O82: =キャッシュフロー表!K27 ->  | Q82: =キャッシュフロー表!P27 ->  | S82: =キャッシュフロー表!U27 ->  | U82: =キャッシュフロー表!Z27 ->  | W82: =キャッシュフロー表!AE27 ->  | Y82: =キャッシュフロー表!AJ27 ->  | AA82: =キャッシュフロー表!AO27 ->  | AC82: =キャッシュフロー表!AT27 -> 
B83: 償却前利益 | M83: =キャッシュフロー表!G28 ->  | O83: =キャッシュフロー表!K28 ->  | Q83: =キャッシュフロー表!P28 ->  | S83: =キャッシュフロー表!U28 ->  | U83: =キャッシュフロー表!Z28 ->  | W83: =キャッシュフロー表!AE28 ->  | Y83: =キャッシュフロー表!AJ28 ->  | AA83: =キャッシュフロー表!AO28 ->  | AC83: =キャッシュフロー表!AT28 -> 
B84: 営業外 | C84: 減価償却費（定額法） | M84: =キャッシュフロー表!G29 ->  | O84: =キャッシュフロー表!K29 ->  | Q84: =キャッシュフロー表!P29 ->  | S84: =キャッシュフロー表!U29 ->  | U84: =キャッシュフロー表!Z29 ->  | W84: =キャッシュフロー表!AE29 ->  | Y84: =キャッシュフロー表!AJ29 ->  | AA84: =キャッシュフロー表!AO29 ->  | AC84: =キャッシュフロー表!AT29 -> 
C85: 支払利息 | M85: =キャッシュフロー表!G30 -> 0 | O85: =キャッシュフロー表!K30 -> 0 | Q85: =キャッシュフロー表!P30 -> 0 | S85: =キャッシュフロー表!U30 -> 0 | U85: =キャッシュフロー表!Z30 -> 0 | W85: =キャッシュフロー表!AE30 -> 0 | Y85: =キャッシュフロー表!AJ30 -> 0 | AA85: =キャッシュフロー表!AO30 -> 0 | AC85: =キャッシュフロー表!AT30 -> 0
C86: 営業外費用計 | M86: =キャッシュフロー表!G31 ->  | O86: =キャッシュフロー表!K31 ->  | Q86: =キャッシュフロー表!P31 ->  | S86: =キャッシュフロー表!U31 ->  | U86: =キャッシュフロー表!Z31 ->  | W86: =キャッシュフロー表!AE31 ->  | Y86: =キャッシュフロー表!AJ31 ->  | AA86: =キャッシュフロー表!AO31 ->  | AC86: =キャッシュフロー表!AT31 -> 
B87: 税引前利益（償却後利益） | M87: =キャッシュフロー表!G32 ->  | O87: =キャッシュフロー表!K32 ->  | Q87: =キャッシュフロー表!P32 ->  | S87: =キャッシュフロー表!U32 ->  | U87: =キャッシュフロー表!Z32 ->  | W87: =キャッシュフロー表!AE32 ->  | Y87: =キャッシュフロー表!AJ32 ->  | AA87: =キャッシュフロー表!AO32 ->  | AC87: =キャッシュフロー表!AT32 -> 
B88: 所得税 | M88: =キャッシュフロー表!G33 ->  | O88: =キャッシュフロー表!K33 ->  | Q88: =キャッシュフロー表!P33 ->  | S88: =キャッシュフロー表!U33 ->  | U88: =キャッシュフロー表!Z33 ->  | W88: =キャッシュフロー表!AE33 ->  | Y88: =キャッシュフロー表!AJ33 ->  | AA88: =キャッシュフロー表!AO33 ->  | AC88: =キャッシュフロー表!AT33 -> 
B89: 当期利益 | M89: =キャッシュフロー表!G34 ->  | O89: =キャッシュフロー表!K34 ->  | Q89: =キャッシュフロー表!P34 ->  | S89: =キャッシュフロー表!U34 ->  | U89: =キャッシュフロー表!Z34 ->  | W89: =キャッシュフロー表!AE34 ->  | Y89: =キャッシュフロー表!AJ34 ->  | AA89: =キャッシュフロー表!AO34 ->  | AC89: =キャッシュフロー表!AT34 -> 
B90: 当期利益累計 | M90: =キャッシュフロー表!G35 ->  | O90: =キャッシュフロー表!K35 ->  | Q90: =キャッシュフロー表!P35 ->  | S90: =キャッシュフロー表!U35 ->  | U90: =キャッシュフロー表!Z35 ->  | W90: =キャッシュフロー表!AE35 ->  | Y90: =キャッシュフロー表!AJ35 ->  | AA90: =キャッシュフロー表!AO35 ->  | AC90: =キャッシュフロー表!AT35 -> 
A91: 総収入ー総支出（運用期間通算） | K91: =キャッシュフロー表!F36 ->  | M91: =キャッシュフロー表!G36 ->  | O91: =キャッシュフロー表!K36 ->  | Q91: =キャッシュフロー表!P36 ->  | S91: =キャッシュフロー表!U36 ->  | U91: =キャッシュフロー表!Z36 ->  | W91: =キャッシュフロー表!AE36 ->  | Y91: =キャッシュフロー表!AJ36 ->  | AA91: =キャッシュフロー表!AO36 ->  | AC91: =キャッシュフロー表!AT36 -> 
A93: 賃料収入水準（新築時の満室時賃料を100） | M93: =IFERROR(キャッシュフロー表!$G$46,"") ->  | O93: =IFERROR(キャッシュフロー表!$K$46,"") ->  | Q93: =IFERROR(キャッシュフロー表!$P$46,"") ->  | S93: =IFERROR(キャッシュフロー表!$U$46,"") ->  | U93: =IFERROR(キャッシュフロー表!$Z$46,"") ->  | W93: =IFERROR(キャッシュフロー表!$AE$46,"") ->  | Y93: =IFERROR(キャッシュフロー表!$AJ$46,"") ->  | AA93: =IFERROR(キャッシュフロー表!$AO$46,"") ->  | AC93: =IFERROR(キャッシュフロー表!$AT$46,"") -> 

Sheet キャッシュフロー表
B2: ■キャッシュフロー表
BN3: （単位：万円）
D4: （単位：万円） | F4: 0 | G4: 1 | H4: =G4+1 -> 2 | I4: 3 | J4: 4 | K4: 5 | L4: 6 | M4: 7 | N4: 8 | O4: 9 | P4: 10 | Q4: 11 | R4: 12 | S4: 13 | T4: 14 | U4: 15 | V4: 16 | W4: 17 | X4: 18 | Y4: 19 | Z4: 20 | AA4: 21 | AB4: 22 | AC4: 23 | AD4: 24 | AE4: 25 | AF4: 26 | AG4: 27 | AH4: 28 | AI4: 29 | AJ4: 30 | AK4: 31 | AL4: 32 | AM4: 33 | AN4: 34 | AO4: 35 | AP4: 36 | AQ4: 37 | AR4: 38 | AS4: 39 | AT4: 40 | AU4: 41 | AV4: 42 | AW4: 43 | AX4: 44 | AY4: 45 | AZ4: 46 | BA4: 47 | BB4: 48 | BC4: 49 | BD4: 50 | BE4: 51 | BF4: 52 | BG4: 53 | BH4: 54 | BI4: 55 | BJ4: 56 | BK4: 57 | BL4: 58 | BM4: 59 | BN4: 60
C5: 収入 | D5: 家賃収入 | G5: =G45 -> 0
D6: 銀行借入 | F6: =賃貸住宅経営のセルチェックシート【入力シート】!$G$18/10000 -> 0
D7: 自己資金 | F7: =(賃貸住宅経営のセルチェックシート【入力シート】!G17-賃貸住宅経営のセルチェックシート【入力シート】!G18)/10000 -> 0
D8: 収入計 | F8: =SUM(F5:F7) -> 0 | G8: 0
D9: 建物建設費（初期建設費） | F9: =賃貸住宅経営のセルチェックシート【入力シート】!$G$17/10000 -> 0
B10: 収支計算 | D10: 建物管理費(募集・管理委託等) | G10: =G40*賃貸住宅経営のセルチェックシート【入力シート】!$Y$14 -> 0 | H10: =H40*賃貸住宅経営のセルチェックシート【入力シート】!$Y$14 ->  | I10: =I40*賃貸住宅経営のセルチェックシート【入力シート】!$Y$14 ->  | J10: =J40*賃貸住宅経営のセルチェックシート【入力シート】!$Y$14 ->  | K10: =K40*賃貸住宅経営のセルチェックシート【入力シート】!$Y$14 ->  | L10: =L40*賃貸住宅経営のセルチェックシート【入力シート】!$Y$14 ->  | M10: =M40*賃貸住宅経営のセルチェックシート【入力シート】!$Y$14 ->  | N10: =N40*賃貸住宅経営のセルチェックシート【入力シート】!$Y$14 ->  | O10: =O40*賃貸住宅経営のセルチェックシート【入力シート】!$Y$14 ->  | P10: =P40*賃貸住宅経営のセルチェックシート【入力シート】!$Y$14 ->  | Q10: =Q40*賃貸住宅経営のセルチェックシート【入力シート】!$Y$14 ->  | R10: =R40*賃貸住宅経営のセルチェックシート【入力シート】!$Y$14 ->  | S10: =S40*賃貸住宅経営のセルチェックシート【入力シート】!$Y$14 ->  | T10: =T40*賃貸住宅経営のセルチェックシート【入力シート】!$Y$14 ->  | U10: =U40*賃貸住宅経営のセルチェックシート【入力シート】!$Y$14 ->  | V10: =V40*賃貸住宅経営のセルチェックシート【入力シート】!$Y$14 ->  | W10: =W40*賃貸住宅経営のセルチェックシート【入力シート】!$Y$14 ->  | X10: =X40*賃貸住宅経営のセルチェックシート【入力シート】!$Y$14 ->  | Y10: =Y40*賃貸住宅経営のセルチェックシート【入力シート】!$Y$14 ->  | Z10: =Z40*賃貸住宅経営のセルチェックシート【入力シート】!$Y$14 ->  | AA10: =AA40*賃貸住宅経営のセルチェックシート【入力シート】!$Y$14 ->  | AB10: =AB40*賃貸住宅経営のセルチェックシート【入力シート】!$Y$14 ->  | AC10: =AC40*賃貸住宅経営のセルチェックシート【入力シート】!$Y$14 ->  | AD10: =AD40*賃貸住宅経営のセルチェックシート【入力シート】!$Y$14 ->  | AE10: =AE40*賃貸住宅経営のセルチェックシート【入力シート】!$Y$14 ->  | AF10: =AF40*賃貸住宅経営のセルチェックシート【入力シート】!$Y$14 ->  | AG10: =AG40*賃貸住宅経営のセルチェックシート【入力シート】!$Y$14 ->  | AH10: =AH40*賃貸住宅経営のセルチェックシート【入力シート】!$Y$14 ->  | AI10: =AI40*賃貸住宅経営のセルチェックシート【入力シート】!$Y$14 ->  | AJ10: =AJ40*賃貸住宅経営のセルチェックシート【入力シート】!$Y$14 ->  | AK10: =AK40*賃貸住宅経営のセルチェックシート【入力シート】!$Y$14 ->  | AL10: =AL40*賃貸住宅経営のセルチェックシート【入力シート】!$Y$14 ->  | AM10: =AM40*賃貸住宅経営のセルチェックシート【入力シート】!$Y$14 ->  | AN10: =AN40*賃貸住宅経営のセルチェックシート【入力シート】!$Y$14 ->  | AO10: =AO40*賃貸住宅経営のセルチェックシート【入力シート】!$Y$14 ->  | AP10: =AP40*賃貸住宅経営のセルチェックシート【入力シート】!$Y$14 ->  | AQ10: =AQ40*賃貸住宅経営のセルチェックシート【入力シート】!$Y$14 ->  | AR10: =AR40*賃貸住宅経営のセルチェックシート【入力シート】!$Y$14 ->  | AS10: =AS40*賃貸住宅経営のセルチェックシート【入力シート】!$Y$14 ->  | AT10: =AT40*賃貸住宅経営のセルチェックシート【入力シート】!$Y$14 ->  | AU10: =AU40*賃貸住宅経営のセルチェックシート【入力シート】!$Y$14 ->  | AV10: =AV40*賃貸住宅経営のセルチェックシート【入力シート】!$Y$14 ->  | AW10: =AW40*賃貸住宅経営のセルチェックシート【入力シート】!$Y$14 ->  | AX10: =AX40*賃貸住宅経営のセルチェックシート【入力シート】!$Y$14 ->  | AY10: =AY40*賃貸住宅経営のセルチェックシート【入力シート】!$Y$14 ->  | AZ10: =AZ40*賃貸住宅経営のセルチェックシート【入力シート】!$Y$14 ->  | BA10: =BA40*賃貸住宅経営のセルチェックシート【入力シート】!$Y$14 ->  | BB10: =BB40*賃貸住宅経営のセルチェックシート【入力シート】!$Y$14 ->  | BC10: =BC40*賃貸住宅経営のセルチェックシート【入力シート】!$Y$14 ->  | BD10: =BD40*賃貸住宅経営のセルチェックシート【入力シート】!$Y$14 ->  | BE10: =BE40*賃貸住宅経営のセルチェックシート【入力シート】!$Y$14 ->  | BF10: =BF40*賃貸住宅経営のセルチェックシート【入力シート】!$Y$14 ->  | BG10: =BG40*賃貸住宅経営のセルチェックシート【入力シート】!$Y$14 ->  | BH10: =BH40*賃貸住宅経営のセルチェックシート【入力シート】!$Y$14 ->  | BI10: =BI40*賃貸住宅経営のセルチェックシート【入力シート】!$Y$14 ->  | BJ10: =BJ40*賃貸住宅経営のセルチェックシート【入力シート】!$Y$14 ->  | BK10: =BK40*賃貸住宅経営のセルチェックシート【入力シート】!$Y$14 ->  | BL10: =BL40*賃貸住宅経営のセルチェックシート【入力シート】!$Y$14 ->  | BM10: =BM40*賃貸住宅経営のセルチェックシート【入力シート】!$Y$14 ->  | BN10: =BN40*賃貸住宅経営のセルチェックシート【入力シート】!$Y$14 -> 
D11: 保険料 | E11: =VLOOKUP(賃貸住宅経営のセルチェックシート【入力シート】!$V$9,算出基礎係数!$A$2:$D$4,4,FALSE) ->  | G11: =賃貸住宅経営のセルチェックシート【入力シート】!$G$17*E11/10000 ->  | H11: =$G$11 -> 
D12: 原状回復費 | G12: =ROUND(賃貸住宅経営のセルチェックシート【入力シート】!V12*賃貸住宅経営のセルチェックシート【入力シート】!G12*賃貸住宅経営のセルチェックシート【入力シート】!M13/10000,0) ->  | H12: =$G$12 -> 
D13: 修繕費（小修繕（故障対応）） | G13: =ROUND(VLOOKUP(賃貸住宅経営のセルチェックシート【入力シート】!V9&賃貸住宅経営のセルチェックシート【入力シート】!L20,'修繕費（小修繕故障対応）'!$A$19:$B$24,2,FALSE)*賃貸住宅経営のセルチェックシート【入力シート】!$G$12,0)/10000 ->  | H13: =$G$13 -> 
C14: 支出 | D14: 修繕費（計画修繕） | P14: =ROUND(賃貸住宅経営のセルチェックシート【入力シート】!$J$33*賃貸住宅経営のセルチェックシート【入力シート】!$G$12/10000,0) -> 0 | U14: =ROUND(賃貸住宅経営のセルチェックシート【入力シート】!$M$33*賃貸住宅経営のセルチェックシート【入力シート】!$G$12/10000,0) -> 0 | Z14: =ROUND(賃貸住宅経営のセルチェックシート【入力シート】!$P$33*賃貸住宅経営のセルチェックシート【入力シート】!$G$12/10000,0) -> 0 | AE14: =ROUND(賃貸住宅経営のセルチェックシート【入力シート】!$S$33*賃貸住宅経営のセルチェックシート【入力シート】!$G$12/10000,0) -> 0 | AJ14: =ROUND(賃貸住宅経営のセルチェックシート【入力シート】!$V$33*賃貸住宅経営のセルチェックシート【入力シート】!$G$12/10000,0) -> 0 | AO14: =ROUND(賃貸住宅経営のセルチェックシート【入力シート】!$Y$33*賃貸住宅経営のセルチェックシート【入力シート】!$G$12/10000,0) -> 0 | AT14: =ROUND(賃貸住宅経営のセルチェックシート【入力シート】!$AB$33*賃貸住宅経営のセルチェックシート【入力シート】!$G$12/10000,0) -> 0 | AU14: =ROUND(賃貸住宅経営のセルチェックシート【入力シート】!$AB$33*賃貸住宅経営のセルチェックシート【入力シート】!$G$12/10000,0) -> 0 | AV14: =ROUND(賃貸住宅経営のセルチェックシート【入力シート】!$AB$33*賃貸住宅経営のセルチェックシート【入力シート】!$G$12/10000,0) -> 0 | AW14: =ROUND(賃貸住宅経営のセルチェックシート【入力シート】!$AB$33*賃貸住宅経営のセルチェックシート【入力シート】!$G$12/10000,0) -> 0 | AX14: =ROUND(賃貸住宅経営のセルチェックシート【入力シート】!$AB$33*賃貸住宅経営のセルチェックシート【入力シート】!$G$12/10000,0) -> 0 | AY14: =ROUND(賃貸住宅経営のセルチェックシート【入力シート】!$AB$33*賃貸住宅経営のセルチェックシート【入力シート】!$G$12/10000,0) -> 0 | AZ14: =ROUND(賃貸住宅経営のセルチェックシート【入力シート】!$AB$33*賃貸住宅経営のセルチェックシート【入力シート】!$G$12/10000,0) -> 0 | BA14: =ROUND(賃貸住宅経営のセルチェックシート【入力シート】!$AB$33*賃貸住宅経営のセルチェックシート【入力シート】!$G$12/10000,0) -> 0 | BB14: =ROUND(賃貸住宅経営のセルチェックシート【入力シート】!$AB$33*賃貸住宅経営のセルチェックシート【入力シート】!$G$12/10000,0) -> 0 | BC14: =ROUND(賃貸住宅経営のセルチェックシート【入力シート】!$AB$33*賃貸住宅経営のセルチェックシート【入力シート】!$G$12/10000,0) -> 0 | BD14: =ROUND(賃貸住宅経営のセルチェックシート【入力シート】!$AB$33*賃貸住宅経営のセルチェックシート【入力シート】!$G$12/10000,0) -> 0 | BE14: =ROUND(賃貸住宅経営のセルチェックシート【入力シート】!$AB$33*賃貸住宅経営のセルチェックシート【入力シート】!$G$12/10000,0) -> 0 | BF14: =ROUND(賃貸住宅経営のセルチェックシート【入力シート】!$AB$33*賃貸住宅経営のセルチェックシート【入力シート】!$G$12/10000,0) -> 0 | BG14: =ROUND(賃貸住宅経営のセルチェックシート【入力シート】!$AB$33*賃貸住宅経営のセルチェックシート【入力シート】!$G$12/10000,0) -> 0 | BH14: =ROUND(賃貸住宅経営のセルチェックシート【入力シート】!$AB$33*賃貸住宅経営のセルチェックシート【入力シート】!$G$12/10000,0) -> 0 | BI14: =ROUND(賃貸住宅経営のセルチェックシート【入力シート】!$AB$33*賃貸住宅経営のセルチェックシート【入力シート】!$G$12/10000,0) -> 0 | BJ14: =ROUND(賃貸住宅経営のセルチェックシート【入力シート】!$AB$33*賃貸住宅経営のセルチェックシート【入力シート】!$G$12/10000,0) -> 0 | BK14: =ROUND(賃貸住宅経営のセルチェックシート【入力シート】!$AB$33*賃貸住宅経営のセルチェックシート【入力シート】!$G$12/10000,0) -> 0 | BL14: =ROUND(賃貸住宅経営のセルチェックシート【入力シート】!$AB$33*賃貸住宅経営のセルチェックシート【入力シート】!$G$12/10000,0) -> 0 | BM14: =ROUND(賃貸住宅経営のセルチェックシート【入力シート】!$AB$33*賃貸住宅経営のセルチェックシート【入力シート】!$G$12/10000,0) -> 0 | BN14: =ROUND(賃貸住宅経営のセルチェックシート【入力シート】!$AB$33*賃貸住宅経営のセルチェックシート【入力シート】!$G$12/10000,0) -> 0
D15: 借入金返済 | G15: =借入金!C12 -> 0 | H15: =借入金!D12 -> 0 | I15: =借入金!E12 -> 0 | J15: =借入金!F12 -> 0 | K15: =借入金!G12 -> 0 | L15: =借入金!H12 -> 0 | M15: =借入金!I12 -> 0 | N15: =借入金!J12 -> 0 | O15: =借入金!K12 -> 0 | P15: =借入金!L12 -> 0 | Q15: =借入金!M12 -> 0 | R15: =借入金!N12 -> 0 | S15: =借入金!O12 -> 0 | T15: =借入金!P12 -> 0 | U15: =借入金!Q12 -> 0 | V15: =借入金!R12 -> 0 | W15: =借入金!S12 -> 0 | X15: =借入金!T12 -> 0 | Y15: =借入金!U12 -> 0 | Z15: =借入金!V12 -> 0 | AA15: =借入金!W12 -> 0 | AB15: =借入金!X12 -> 0 | AC15: =借入金!Y12 -> 0 | AD15: =借入金!Z12 -> 0 | AE15: =借入金!AA12 -> 0 | AF15: =借入金!AB12 -> 0 | AG15: =借入金!AC12 -> 0 | AH15: =借入金!AD12 -> 0 | AI15: =借入金!AE12 -> 0 | AJ15: =借入金!AF12 -> 0 | AK15: =借入金!AG12 -> 0 | AL15: =借入金!AH12 -> 0 | AM15: =借入金!AI12 -> 0 | AN15: =借入金!AJ12 -> 0 | AO15: =借入金!AK12 -> 0 | AP15: =借入金!AL12 -> 0 | AQ15: =借入金!AM12 -> 0 | AR15: =借入金!AN12 -> 0 | AS15: =借入金!AO12 -> 0 | AT15: =借入金!AP12 -> 0 | AU15: =借入金!AQ12 -> 0 | AV15: =借入金!AR12 -> 0 | AW15: =借入金!AS12 -> 0 | AX15: =借入金!AT12 -> 0 | AY15: =借入金!AU12 -> 0 | AZ15: =借入金!AV12 -> 0 | BA15: =借入金!AW12 -> 0 | BB15: =借入金!AX12 -> 0 | BC15: =借入金!AY12 -> 0 | BD15: =借入金!AZ12 -> 0 | BE15: =借入金!BA12 -> 0 | BF15: =借入金!BB12 -> 0 | BG15: =借入金!BC12 -> 0 | BH15: =借入金!BD12 -> 0 | BI15: =借入金!BE12 -> 0 | BJ15: =借入金!BF12 -> 0 | BK15: =借入金!BG12 -> 0 | BL15: =借入金!BH12 -> 0 | BM15: =借入金!BI12 -> 0 | BN15: =借入金!BJ12 -> 0
D16: 固定資産税・都市計画税 | G16: =((賃貸住宅経営のセルチェックシート【入力シート】!$G$17*固都税経年率!C4*0.017)+(賃貸住宅経営のセルチェックシート【入力シート】!$V$17/6*0.014)+(賃貸住宅経営のセルチェックシート【入力シート】!$V$17/3*0.003))/10000 -> 0 | H16: =((賃貸住宅経営のセルチェックシート【入力シート】!$G$17*固都税経年率!D4*0.017)+(賃貸住宅経営のセルチェックシート【入力シート】!$V$17/6*0.014)+(賃貸住宅経営のセルチェックシート【入力シート】!$V$17/3*0.003))/10000 -> 0 | I16: =((賃貸住宅経営のセルチェックシート【入力シート】!$G$17*固都税経年率!E4*0.017)+(賃貸住宅経営のセルチェックシート【入力シート】!$V$17/6*0.014)+(賃貸住宅経営のセルチェックシート【入力シート】!$V$17/3*0.003))/10000 -> 0 | J16: =((賃貸住宅経営のセルチェックシート【入力シート】!$G$17*固都税経年率!F4*0.017)+(賃貸住宅経営のセルチェックシート【入力シート】!$V$17/6*0.014)+(賃貸住宅経営のセルチェックシート【入力シート】!$V$17/3*0.003))/10000 -> 0 | K16: =((賃貸住宅経営のセルチェックシート【入力シート】!$G$17*固都税経年率!G4*0.017)+(賃貸住宅経営のセルチェックシート【入力シート】!$V$17/6*0.014)+(賃貸住宅経営のセルチェックシート【入力シート】!$V$17/3*0.003))/10000 -> 0 | L16: =((賃貸住宅経営のセルチェックシート【入力シート】!$G$17*固都税経年率!H4*0.017)+(賃貸住宅経営のセルチェックシート【入力シート】!$V$17/6*0.014)+(賃貸住宅経営のセルチェックシート【入力シート】!$V$17/3*0.003))/10000 -> 0 | M16: =((賃貸住宅経営のセルチェックシート【入力シート】!$G$17*固都税経年率!I4*0.017)+(賃貸住宅経営のセルチェックシート【入力シート】!$V$17/6*0.014)+(賃貸住宅経営のセルチェックシート【入力シート】!$V$17/3*0.003))/10000 -> 0 | N16: =((賃貸住宅経営のセルチェックシート【入力シート】!$G$17*固都税経年率!J4*0.017)+(賃貸住宅経営のセルチェックシート【入力シート】!$V$17/6*0.014)+(賃貸住宅経営のセルチェックシート【入力シート】!$V$17/3*0.003))/10000 -> 0 | O16: =((賃貸住宅経営のセルチェックシート【入力シート】!$G$17*固都税経年率!K4*0.017)+(賃貸住宅経営のセルチェックシート【入力シート】!$V$17/6*0.014)+(賃貸住宅経営のセルチェックシート【入力シート】!$V$17/3*0.003))/10000 -> 0 | P16: =((賃貸住宅経営のセルチェックシート【入力シート】!$G$17*固都税経年率!L4*0.017)+(賃貸住宅経営のセルチェックシート【入力シート】!$V$17/6*0.014)+(賃貸住宅経営のセルチェックシート【入力シート】!$V$17/3*0.003))/10000 -> 0 | Q16: =((賃貸住宅経営のセルチェックシート【入力シート】!$G$17*固都税経年率!M4*0.017)+(賃貸住宅経営のセルチェックシート【入力シート】!$V$17/6*0.014)+(賃貸住宅経営のセルチェックシート【入力シート】!$V$17/3*0.003))/10000 -> 0 | R16: =((賃貸住宅経営のセルチェックシート【入力シート】!$G$17*固都税経年率!N4*0.017)+(賃貸住宅経営のセルチェックシート【入力シート】!$V$17/6*0.014)+(賃貸住宅経営のセルチェックシート【入力シート】!$V$17/3*0.003))/10000 -> 0 | S16: =((賃貸住宅経営のセルチェックシート【入力シート】!$G$17*固都税経年率!O4*0.017)+(賃貸住宅経営のセルチェックシート【入力シート】!$V$17/6*0.014)+(賃貸住宅経営のセルチェックシート【入力シート】!$V$17/3*0.003))/10000 -> 0 | T16: =((賃貸住宅経営のセルチェックシート【入力シート】!$G$17*固都税経年率!P4*0.017)+(賃貸住宅経営のセルチェックシート【入力シート】!$V$17/6*0.014)+(賃貸住宅経営のセルチェックシート【入力シート】!$V$17/3*0.003))/10000 -> 0 | U16: =((賃貸住宅経営のセルチェックシート【入力シート】!$G$17*固都税経年率!Q4*0.017)+(賃貸住宅経営のセルチェックシート【入力シート】!$V$17/6*0.014)+(賃貸住宅経営のセルチェックシート【入力シート】!$V$17/3*0.003))/10000 -> 0 | V16: =((賃貸住宅経営のセルチェックシート【入力シート】!$G$17*固都税経年率!R4*0.017)+(賃貸住宅経営のセルチェックシート【入力シート】!$V$17/6*0.014)+(賃貸住宅経営のセルチェックシート【入力シート】!$V$17/3*0.003))/10000 -> 0 | W16: =((賃貸住宅経営のセルチェックシート【入力シート】!$G$17*固都税経年率!S4*0.017)+(賃貸住宅経営のセルチェックシート【入力シート】!$V$17/6*0.014)+(賃貸住宅経営のセルチェックシート【入力シート】!$V$17/3*0.003))/10000 -> 0 | X16: =((賃貸住宅経営のセルチェックシート【入力シート】!$G$17*固都税経年率!T4*0.017)+(賃貸住宅経営のセルチェックシート【入力シート】!$V$17/6*0.014)+(賃貸住宅経営のセルチェックシート【入力シート】!$V$17/3*0.003))/10000 -> 0 | Y16: =((賃貸住宅経営のセルチェックシート【入力シート】!$G$17*固都税経年率!U4*0.017)+(賃貸住宅経営のセルチェックシート【入力シート】!$V$17/6*0.014)+(賃貸住宅経営のセルチェックシート【入力シート】!$V$17/3*0.003))/10000 -> 0 | Z16: =((賃貸住宅経営のセルチェックシート【入力シート】!$G$17*固都税経年率!V4*0.017)+(賃貸住宅経営のセルチェックシート【入力シート】!$V$17/6*0.014)+(賃貸住宅経営のセルチェックシート【入力シート】!$V$17/3*0.003))/10000 -> 0 | AA16: =((賃貸住宅経営のセルチェックシート【入力シート】!$G$17*固都税経年率!W4*0.017)+(賃貸住宅経営のセルチェックシート【入力シート】!$V$17/6*0.014)+(賃貸住宅経営のセルチェックシート【入力シート】!$V$17/3*0.003))/10000 -> 0 | AB16: =((賃貸住宅経営のセルチェックシート【入力シート】!$G$17*固都税経年率!X4*0.017)+(賃貸住宅経営のセルチェックシート【入力シート】!$V$17/6*0.014)+(賃貸住宅経営のセルチェックシート【入力シート】!$V$17/3*0.003))/10000 -> 0 | AC16: =((賃貸住宅経営のセルチェックシート【入力シート】!$G$17*固都税経年率!Y4*0.017)+(賃貸住宅経営のセルチェックシート【入力シート】!$V$17/6*0.014)+(賃貸住宅経営のセルチェックシート【入力シート】!$V$17/3*0.003))/10000 -> 0 | AD16: =((賃貸住宅経営のセルチェックシート【入力シート】!$G$17*固都税経年率!Z4*0.017)+(賃貸住宅経営のセルチェックシート【入力シート】!$V$17/6*0.014)+(賃貸住宅経営のセルチェックシート【入力シート】!$V$17/3*0.003))/10000 -> 0 | AE16: =((賃貸住宅経営のセルチェックシート【入力シート】!$G$17*固都税経年率!AA4*0.017)+(賃貸住宅経営のセルチェックシート【入力シート】!$V$17/6*0.014)+(賃貸住宅経営のセルチェックシート【入力シート】!$V$17/3*0.003))/10000 -> 0 | AF16: =((賃貸住宅経営のセルチェックシート【入力シート】!$G$17*固都税経年率!AB4*0.017)+(賃貸住宅経営のセルチェックシート【入力シート】!$V$17/6*0.014)+(賃貸住宅経営のセルチェックシート【入力シート】!$V$17/3*0.003))/10000 -> 0 | AG16: =((賃貸住宅経営のセルチェックシート【入力シート】!$G$17*固都税経年率!AC4*0.017)+(賃貸住宅経営のセルチェックシート【入力シート】!$V$17/6*0.014)+(賃貸住宅経営のセルチェックシート【入力シート】!$V$17/3*0.003))/10000 -> 0 | AH16: =((賃貸住宅経営のセルチェックシート【入力シート】!$G$17*固都税経年率!AD4*0.017)+(賃貸住宅経営のセルチェックシート【入力シート】!$V$17/6*0.014)+(賃貸住宅経営のセルチェックシート【入力シート】!$V$17/3*0.003))/10000 -> 0 | AI16: =((賃貸住宅経営のセルチェックシート【入力シート】!$G$17*固都税経年率!AE4*0.017)+(賃貸住宅経営のセルチェックシート【入力シート】!$V$17/6*0.014)+(賃貸住宅経営のセルチェックシート【入力シート】!$V$17/3*0.003))/10000 -> 0 | AJ16: =((賃貸住宅経営のセルチェックシート【入力シート】!$G$17*固都税経年率!AF4*0.017)+(賃貸住宅経営のセルチェックシート【入力シート】!$V$17/6*0.014)+(賃貸住宅経営のセルチェックシート【入力シート】!$V$17/3*0.003))/10000 -> 0 | AK16: =((賃貸住宅経営のセルチェックシート【入力シート】!$G$17*固都税経年率!AG4*0.017)+(賃貸住宅経営のセルチェックシート【入力シート】!$V$17/6*0.014)+(賃貸住宅経営のセルチェックシート【入力シート】!$V$17/3*0.003))/10000 -> 0 | AL16: =((賃貸住宅経営のセルチェックシート【入力シート】!$G$17*固都税経年率!AH4*0.017)+(賃貸住宅経営のセルチェックシート【入力シート】!$V$17/6*0.014)+(賃貸住宅経営のセルチェックシート【入力シート】!$V$17/3*0.003))/10000 -> 0 | AM16: =((賃貸住宅経営のセルチェックシート【入力シート】!$G$17*固都税経年率!AI4*0.017)+(賃貸住宅経営のセルチェックシート【入力シート】!$V$17/6*0.014)+(賃貸住宅経営のセルチェックシート【入力シート】!$V$17/3*0.003))/10000 -> 0 | AN16: =((賃貸住宅経営のセルチェックシート【入力シート】!$G$17*固都税経年率!AJ4*0.017)+(賃貸住宅経営のセルチェックシート【入力シート】!$V$17/6*0.014)+(賃貸住宅経営のセルチェックシート【入力シート】!$V$17/3*0.003))/10000 -> 0 | AO16: =((賃貸住宅経営のセルチェックシート【入力シート】!$G$17*固都税経年率!AK4*0.017)+(賃貸住宅経営のセルチェックシート【入力シート】!$V$17/6*0.014)+(賃貸住宅経営のセルチェックシート【入力シート】!$V$17/3*0.003))/10000 -> 0 | AP16: =((賃貸住宅経営のセルチェックシート【入力シート】!$G$17*固都税経年率!AL4*0.017)+(賃貸住宅経営のセルチェックシート【入力シート】!$V$17/6*0.014)+(賃貸住宅経営のセルチェックシート【入力シート】!$V$17/3*0.003))/10000 -> 0 | AQ16: =((賃貸住宅経営のセルチェックシート【入力シート】!$G$17*固都税経年率!AM4*0.017)+(賃貸住宅経営のセルチェックシート【入力シート】!$V$17/6*0.014)+(賃貸住宅経営のセルチェックシート【入力シート】!$V$17/3*0.003))/10000 -> 0 | AR16: =((賃貸住宅経営のセルチェックシート【入力シート】!$G$17*固都税経年率!AN4*0.017)+(賃貸住宅経営のセルチェックシート【入力シート】!$V$17/6*0.014)+(賃貸住宅経営のセルチェックシート【入力シート】!$V$17/3*0.003))/10000 -> 0 | AS16: =((賃貸住宅経営のセルチェックシート【入力シート】!$G$17*固都税経年率!AO4*0.017)+(賃貸住宅経営のセルチェックシート【入力シート】!$V$17/6*0.014)+(賃貸住宅経営のセルチェックシート【入力シート】!$V$17/3*0.003))/10000 -> 0 | AT16: =((賃貸住宅経営のセルチェックシート【入力シート】!$G$17*固都税経年率!AP4*0.017)+(賃貸住宅経営のセルチェックシート【入力シート】!$V$17/6*0.014)+(賃貸住宅経営のセルチェックシート【入力シート】!$V$17/3*0.003))/10000 -> 0 | AU16: =((賃貸住宅経営のセルチェックシート【入力シート】!$G$17*固都税経年率!AQ4*0.017)+(賃貸住宅経営のセルチェックシート【入力シート】!$V$17/6*0.014)+(賃貸住宅経営のセルチェックシート【入力シート】!$V$17/3*0.003))/10000 -> 0 | AV16: =((賃貸住宅経営のセルチェックシート【入力シート】!$G$17*固都税経年率!AR4*0.017)+(賃貸住宅経営のセルチェックシート【入力シート】!$V$17/6*0.014)+(賃貸住宅経営のセルチェックシート【入力シート】!$V$17/3*0.003))/10000 -> 0 | AW16: =((賃貸住宅経営のセルチェックシート【入力シート】!$G$17*固都税経年率!AS4*0.017)+(賃貸住宅経営のセルチェックシート【入力シート】!$V$17/6*0.014)+(賃貸住宅経営のセルチェックシート【入力シート】!$V$17/3*0.003))/10000 -> 0 | AX16: =((賃貸住宅経営のセルチェックシート【入力シート】!$G$17*固都税経年率!AT4*0.017)+(賃貸住宅経営のセルチェックシート【入力シート】!$V$17/6*0.014)+(賃貸住宅経営のセルチェックシート【入力シート】!$V$17/3*0.003))/10000 -> 0 | AY16: =((賃貸住宅経営のセルチェックシート【入力シート】!$G$17*固都税経年率!AU4*0.017)+(賃貸住宅経営のセルチェックシート【入力シート】!$V$17/6*0.014)+(賃貸住宅経営のセルチェックシート【入力シート】!$V$17/3*0.003))/10000 -> 0 | AZ16: =((賃貸住宅経営のセルチェックシート【入力シート】!$G$17*固都税経年率!AV4*0.017)+(賃貸住宅経営のセルチェックシート【入力シート】!$V$17/6*0.014)+(賃貸住宅経営のセルチェックシート【入力シート】!$V$17/3*0.003))/10000 -> 0 | BA16: =((賃貸住宅経営のセルチェックシート【入力シート】!$G$17*固都税経年率!AW4*0.017)+(賃貸住宅経営のセルチェックシート【入力シート】!$V$17/6*0.014)+(賃貸住宅経営のセルチェックシート【入力シート】!$V$17/3*0.003))/10000 -> 0 | BB16: =((賃貸住宅経営のセルチェックシート【入力シート】!$G$17*固都税経年率!AX4*0.017)+(賃貸住宅経営のセルチェックシート【入力シート】!$V$17/6*0.014)+(賃貸住宅経営のセルチェックシート【入力シート】!$V$17/3*0.003))/10000 -> 0 | BC16: =((賃貸住宅経営のセルチェックシート【入力シート】!$G$17*固都税経年率!AY4*0.017)+(賃貸住宅経営のセルチェックシート【入力シート】!$V$17/6*0.014)+(賃貸住宅経営のセルチェックシート【入力シート】!$V$17/3*0.003))/10000 -> 0 | BD16: =((賃貸住宅経営のセルチェックシート【入力シート】!$G$17*固都税経年率!AZ4*0.017)+(賃貸住宅経営のセルチェックシート【入力シート】!$V$17/6*0.014)+(賃貸住宅経営のセルチェックシート【入力シート】!$V$17/3*0.003))/10000 -> 0 | BE16: =((賃貸住宅経営のセルチェックシート【入力シート】!$G$17*固都税経年率!BA4*0.017)+(賃貸住宅経営のセルチェックシート【入力シート】!$V$17/6*0.014)+(賃貸住宅経営のセルチェックシート【入力シート】!$V$17/3*0.003))/10000 -> 0 | BF16: =((賃貸住宅経営のセルチェックシート【入力シート】!$G$17*固都税経年率!BB4*0.017)+(賃貸住宅経営のセルチェックシート【入力シート】!$V$17/6*0.014)+(賃貸住宅経営のセルチェックシート【入力シート】!$V$17/3*0.003))/10000 -> 0 | BG16: =((賃貸住宅経営のセルチェックシート【入力シート】!$G$17*固都税経年率!BC4*0.017)+(賃貸住宅経営のセルチェックシート【入力シート】!$V$17/6*0.014)+(賃貸住宅経営のセルチェックシート【入力シート】!$V$17/3*0.003))/10000 -> 0 | BH16: =((賃貸住宅経営のセルチェックシート【入力シート】!$G$17*固都税経年率!BD4*0.017)+(賃貸住宅経営のセルチェックシート【入力シート】!$V$17/6*0.014)+(賃貸住宅経営のセルチェックシート【入力シート】!$V$17/3*0.003))/10000 -> 0 | BI16: =((賃貸住宅経営のセルチェックシート【入力シート】!$G$17*固都税経年率!BE4*0.017)+(賃貸住宅経営のセルチェックシート【入力シート】!$V$17/6*0.014)+(賃貸住宅経営のセルチェックシート【入力シート】!$V$17/3*0.003))/10000 -> 0 | BJ16: =((賃貸住宅経営のセルチェックシート【入力シート】!$G$17*固都税経年率!BF4*0.017)+(賃貸住宅経営のセルチェックシート【入力シート】!$V$17/6*0.014)+(賃貸住宅経営のセルチェックシート【入力シート】!$V$17/3*0.003))/10000 -> 0 | BK16: =((賃貸住宅経営のセルチェックシート【入力シート】!$G$17*固都税経年率!BG4*0.017)+(賃貸住宅経営のセルチェックシート【入力シート】!$V$17/6*0.014)+(賃貸住宅経営のセルチェックシート【入力シート】!$V$17/3*0.003))/10000 -> 0 | BL16: =((賃貸住宅経営のセルチェックシート【入力シート】!$G$17*固都税経年率!BH4*0.017)+(賃貸住宅経営のセルチェックシート【入力シート】!$V$17/6*0.014)+(賃貸住宅経営のセルチェックシート【入力シート】!$V$17/3*0.003))/10000 -> 0 | BM16: =((賃貸住宅経営のセルチェックシート【入力シート】!$G$17*固都税経年率!BI4*0.017)+(賃貸住宅経営のセルチェックシート【入力シート】!$V$17/6*0.014)+(賃貸住宅経営のセルチェックシート【入力シート】!$V$17/3*0.003))/10000 -> 0 | BN16: =((賃貸住宅経営のセルチェックシート【入力シート】!$G$17*固都税経年率!BJ4*0.017)+(賃貸住宅経営のセルチェックシート【入力シート】!$V$17/6*0.014)+(賃貸住宅経営のセルチェックシート【入力シート】!$V$17/3*0.003))/10000 -> 0
D17: 所得税等 | G17: =MAX(G32*0.33,0) -> 
D18: 支出計 | F18: =SUM(F9:F17) -> 0
C19: 収支 | D19: 手元資金残金（年） | F19: =F8-F18 -> 0
D20: 手元資金残金（累計） | F20: =F19 -> 0 | G20: =F20+G19 -> 
C21: 収益 | D21: 収入 | G21: =G5 -> 0
D22: 建物管理費(募集・管理委託等) | G22: =G10 -> 0
D23: 原状回復費 | G23: =G12 -> 
B24: P/L | C24: 営業費用 | D24: 修繕費 | G24: =SUM(G13,G14) -> 
B25: 損益計算 | D25: 保険料 | G25: =G11 -> 
D26: 固定資産税・都市計画税 | G26: =G16 -> 0 | H26: 0 | I26: 0 | J26: 0 | K26: 0 | L26: 0 | M26: 0 | N26: 0 | O26: 0 | P26: 0 | Q26: 0 | R26: 0 | S26: 0 | T26: 0 | U26: 0 | V26: 0 | W26: 0 | X26: 0 | Y26: 0 | Z26: 0 | AA26: 0 | AB26: 0 | AC26: 0 | AD26: 0 | AE26: 0 | AF26: 0 | AG26: 0 | AH26: 0 | AI26: 0 | AJ26: 0 | AK26: 0 | AL26: 0 | AM26: 0 | AN26: 0 | AO26: 0 | AP26: 0 | AQ26: 0 | AR26: 0 | AS26: 0 | AT26: 0 | AU26: 0 | AV26: 0 | AW26: 0 | AX26: 0 | AY26: 0 | AZ26: 0 | BA26: 0 | BB26: 0 | BC26: 0 | BD26: 0 | BE26: 0 | BF26: 0 | BG26: 0 | BH26: 0 | BI26: 0 | BJ26: 0 | BK26: 0 | BL26: 0 | BM26: 0 | BN26: 0
D27: 営業費用計 | G27: =SUM(G22:G26) -> 
C28: 償却前利益 | D28: （営業収入と同値） | G28: =G21-G27 -> 
D29: 減価償却費(定額法) | E29: =VLOOKUP(賃貸住宅経営のセルチェックシート【入力シート】!$V$9,算出基礎係数!$A$2:$E$4,3,FALSE) ->  | G29: =IF(G4<賃貸住宅経営のセルチェックシート【入力シート】!$AB$9,賃貸住宅経営のセルチェックシート【入力シート】!$G$17*キャッシュフロー表!$E$29,IF(G4=賃貸住宅経営のセルチェックシート【入力シート】!$AB$9,賃貸住宅経営のセルチェックシート【入力シート】!$G$17-賃貸住宅経営のセルチェックシート【入力シート】!$G$17*$E$29*(賃貸住宅経営のセルチェックシート【入力シート】!$AB$9-1),0))/10000 ->  | H29: =IF(H4<賃貸住宅経営のセルチェックシート【入力シート】!$AB$9,賃貸住宅経営のセルチェックシート【入力シート】!$G$17*キャッシュフロー表!$E$29,IF(H4=賃貸住宅経営のセルチェックシート【入力シート】!$AB$9,賃貸住宅経営のセルチェックシート【入力シート】!$G$17-賃貸住宅経営のセルチェックシート【入力シート】!$G$17*$E$29*(賃貸住宅経営のセルチェックシート【入力シート】!$AB$9-1),0))/10000 ->  | I29: =IF(I4<賃貸住宅経営のセルチェックシート【入力シート】!$AB$9,賃貸住宅経営のセルチェックシート【入力シート】!$G$17*キャッシュフロー表!$E$29,IF(I4=賃貸住宅経営のセルチェックシート【入力シート】!$AB$9,賃貸住宅経営のセルチェックシート【入力シート】!$G$17-賃貸住宅経営のセルチェックシート【入力シート】!$G$17*$E$29*(賃貸住宅経営のセルチェックシート【入力シート】!$AB$9-1),0))/10000 ->  | J29: =IF(J4<賃貸住宅経営のセルチェックシート【入力シート】!$AB$9,賃貸住宅経営のセルチェックシート【入力シート】!$G$17*キャッシュフロー表!$E$29,IF(J4=賃貸住宅経営のセルチェックシート【入力シート】!$AB$9,賃貸住宅経営のセルチェックシート【入力シート】!$G$17-賃貸住宅経営のセルチェックシート【入力シート】!$G$17*$E$29*(賃貸住宅経営のセルチェックシート【入力シート】!$AB$9-1),0))/10000 ->  | K29: =IF(K4<賃貸住宅経営のセルチェックシート【入力シート】!$AB$9,賃貸住宅経営のセルチェックシート【入力シート】!$G$17*キャッシュフロー表!$E$29,IF(K4=賃貸住宅経営のセルチェックシート【入力シート】!$AB$9,賃貸住宅経営のセルチェックシート【入力シート】!$G$17-賃貸住宅経営のセルチェックシート【入力シート】!$G$17*$E$29*(賃貸住宅経営のセルチェックシート【入力シート】!$AB$9-1),0))/10000 ->  | L29: =IF(L4<賃貸住宅経営のセルチェックシート【入力シート】!$AB$9,賃貸住宅経営のセルチェックシート【入力シート】!$G$17*キャッシュフロー表!$E$29,IF(L4=賃貸住宅経営のセルチェックシート【入力シート】!$AB$9,賃貸住宅経営のセルチェックシート【入力シート】!$G$17-賃貸住宅経営のセルチェックシート【入力シート】!$G$17*$E$29*(賃貸住宅経営のセルチェックシート【入力シート】!$AB$9-1),0))/10000 ->  | M29: =IF(M4<賃貸住宅経営のセルチェックシート【入力シート】!$AB$9,賃貸住宅経営のセルチェックシート【入力シート】!$G$17*キャッシュフロー表!$E$29,IF(M4=賃貸住宅経営のセルチェックシート【入力シート】!$AB$9,賃貸住宅経営のセルチェックシート【入力シート】!$G$17-賃貸住宅経営のセルチェックシート【入力シート】!$G$17*$E$29*(賃貸住宅経営のセルチェックシート【入力シート】!$AB$9-1),0))/10000 ->  | N29: =IF(N4<賃貸住宅経営のセルチェックシート【入力シート】!$AB$9,賃貸住宅経営のセルチェックシート【入力シート】!$G$17*キャッシュフロー表!$E$29,IF(N4=賃貸住宅経営のセルチェックシート【入力シート】!$AB$9,賃貸住宅経営のセルチェックシート【入力シート】!$G$17-賃貸住宅経営のセルチェックシート【入力シート】!$G$17*$E$29*(賃貸住宅経営のセルチェックシート【入力シート】!$AB$9-1),0))/10000 ->  | O29: =IF(O4<賃貸住宅経営のセルチェックシート【入力シート】!$AB$9,賃貸住宅経営のセルチェックシート【入力シート】!$G$17*キャッシュフロー表!$E$29,IF(O4=賃貸住宅経営のセルチェックシート【入力シート】!$AB$9,賃貸住宅経営のセルチェックシート【入力シート】!$G$17-賃貸住宅経営のセルチェックシート【入力シート】!$G$17*$E$29*(賃貸住宅経営のセルチェックシート【入力シート】!$AB$9-1),0))/10000 ->  | P29: =IF(P4<賃貸住宅経営のセルチェックシート【入力シート】!$AB$9,賃貸住宅経営のセルチェックシート【入力シート】!$G$17*キャッシュフロー表!$E$29,IF(P4=賃貸住宅経営のセルチェックシート【入力シート】!$AB$9,賃貸住宅経営のセルチェックシート【入力シート】!$G$17-賃貸住宅経営のセルチェックシート【入力シート】!$G$17*$E$29*(賃貸住宅経営のセルチェックシート【入力シート】!$AB$9-1),0))/10000 ->  | Q29: =IF(Q4<賃貸住宅経営のセルチェックシート【入力シート】!$AB$9,賃貸住宅経営のセルチェックシート【入力シート】!$G$17*キャッシュフロー表!$E$29,IF(Q4=賃貸住宅経営のセルチェックシート【入力シート】!$AB$9,賃貸住宅経営のセルチェックシート【入力シート】!$G$17-賃貸住宅経営のセルチェックシート【入力シート】!$G$17*$E$29*(賃貸住宅経営のセルチェックシート【入力シート】!$AB$9-1),0))/10000 ->  | R29: =IF(R4<賃貸住宅経営のセルチェックシート【入力シート】!$AB$9,賃貸住宅経営のセルチェックシート【入力シート】!$G$17*キャッシュフロー表!$E$29,IF(R4=賃貸住宅経営のセルチェックシート【入力シート】!$AB$9,賃貸住宅経営のセルチェックシート【入力シート】!$G$17-賃貸住宅経営のセルチェックシート【入力シート】!$G$17*$E$29*(賃貸住宅経営のセルチェックシート【入力シート】!$AB$9-1),0))/10000 ->  | S29: =IF(S4<賃貸住宅経営のセルチェックシート【入力シート】!$AB$9,賃貸住宅経営のセルチェックシート【入力シート】!$G$17*キャッシュフロー表!$E$29,IF(S4=賃貸住宅経営のセルチェックシート【入力シート】!$AB$9,賃貸住宅経営のセルチェックシート【入力シート】!$G$17-賃貸住宅経営のセルチェックシート【入力シート】!$G$17*$E$29*(賃貸住宅経営のセルチェックシート【入力シート】!$AB$9-1),0))/10000 ->  | T29: =IF(T4<賃貸住宅経営のセルチェックシート【入力シート】!$AB$9,賃貸住宅経営のセルチェックシート【入力シート】!$G$17*キャッシュフロー表!$E$29,IF(T4=賃貸住宅経営のセルチェックシート【入力シート】!$AB$9,賃貸住宅経営のセルチェックシート【入力シート】!$G$17-賃貸住宅経営のセルチェックシート【入力シート】!$G$17*$E$29*(賃貸住宅経営のセルチェックシート【入力シート】!$AB$9-1),0))/10000 ->  | U29: =IF(U4<賃貸住宅経営のセルチェックシート【入力シート】!$AB$9,賃貸住宅経営のセルチェックシート【入力シート】!$G$17*キャッシュフロー表!$E$29,IF(U4=賃貸住宅経営のセルチェックシート【入力シート】!$AB$9,賃貸住宅経営のセルチェックシート【入力シート】!$G$17-賃貸住宅経営のセルチェックシート【入力シート】!$G$17*$E$29*(賃貸住宅経営のセルチェックシート【入力シート】!$AB$9-1),0))/10000 ->  | V29: =IF(V4<賃貸住宅経営のセルチェックシート【入力シート】!$AB$9,賃貸住宅経営のセルチェックシート【入力シート】!$G$17*キャッシュフロー表!$E$29,IF(V4=賃貸住宅経営のセルチェックシート【入力シート】!$AB$9,賃貸住宅経営のセルチェックシート【入力シート】!$G$17-賃貸住宅経営のセルチェックシート【入力シート】!$G$17*$E$29*(賃貸住宅経営のセルチェックシート【入力シート】!$AB$9-1),0))/10000 ->  | W29: =IF(W4<賃貸住宅経営のセルチェックシート【入力シート】!$AB$9,賃貸住宅経営のセルチェックシート【入力シート】!$G$17*キャッシュフロー表!$E$29,IF(W4=賃貸住宅経営のセルチェックシート【入力シート】!$AB$9,賃貸住宅経営のセルチェックシート【入力シート】!$G$17-賃貸住宅経営のセルチェックシート【入力シート】!$G$17*$E$29*(賃貸住宅経営のセルチェックシート【入力シート】!$AB$9-1),0))/10000 ->  | X29: =IF(X4<賃貸住宅経営のセルチェックシート【入力シート】!$AB$9,賃貸住宅経営のセルチェックシート【入力シート】!$G$17*キャッシュフロー表!$E$29,IF(X4=賃貸住宅経営のセルチェックシート【入力シート】!$AB$9,賃貸住宅経営のセルチェックシート【入力シート】!$G$17-賃貸住宅経営のセルチェックシート【入力シート】!$G$17*$E$29*(賃貸住宅経営のセルチェックシート【入力シート】!$AB$9-1),0))/10000 ->  | Y29: =IF(Y4<賃貸住宅経営のセルチェックシート【入力シート】!$AB$9,賃貸住宅経営のセルチェックシート【入力シート】!$G$17*キャッシュフロー表!$E$29,IF(Y4=賃貸住宅経営のセルチェックシート【入力シート】!$AB$9,賃貸住宅経営のセルチェックシート【入力シート】!$G$17-賃貸住宅経営のセルチェックシート【入力シート】!$G$17*$E$29*(賃貸住宅経営のセルチェックシート【入力シート】!$AB$9-1),0))/10000 ->  | Z29: =IF(Z4<賃貸住宅経営のセルチェックシート【入力シート】!$AB$9,賃貸住宅経営のセルチェックシート【入力シート】!$G$17*キャッシュフロー表!$E$29,IF(Z4=賃貸住宅経営のセルチェックシート【入力シート】!$AB$9,賃貸住宅経営のセルチェックシート【入力シート】!$G$17-賃貸住宅経営のセルチェックシート【入力シート】!$G$17*$E$29*(賃貸住宅経営のセルチェックシート【入力シート】!$AB$9-1),0))/10000 ->  | AA29: =IF(AA4<賃貸住宅経営のセルチェックシート【入力シート】!$AB$9,賃貸住宅経営のセルチェックシート【入力シート】!$G$17*キャッシュフロー表!$E$29,IF(AA4=賃貸住宅経営のセルチェックシート【入力シート】!$AB$9,賃貸住宅経営のセルチェックシート【入力シート】!$G$17-賃貸住宅経営のセルチェックシート【入力シート】!$G$17*$E$29*(賃貸住宅経営のセルチェックシート【入力シート】!$AB$9-1),0))/10000 ->  | AB29: =IF(AB4<賃貸住宅経営のセルチェックシート【入力シート】!$AB$9,賃貸住宅経営のセルチェックシート【入力シート】!$G$17*キャッシュフロー表!$E$29,IF(AB4=賃貸住宅経営のセルチェックシート【入力シート】!$AB$9,賃貸住宅経営のセルチェックシート【入力シート】!$G$17-賃貸住宅経営のセルチェックシート【入力シート】!$G$17*$E$29*(賃貸住宅経営のセルチェックシート【入力シート】!$AB$9-1),0))/10000 ->  | AC29: =IF(AC4<賃貸住宅経営のセルチェックシート【入力シート】!$AB$9,賃貸住宅経営のセルチェックシート【入力シート】!$G$17*キャッシュフロー表!$E$29,IF(AC4=賃貸住宅経営のセルチェックシート【入力シート】!$AB$9,賃貸住宅経営のセルチェックシート【入力シート】!$G$17-賃貸住宅経営のセルチェックシート【入力シート】!$G$17*$E$29*(賃貸住宅経営のセルチェックシート【入力シート】!$AB$9-1),0))/10000 ->  | AD29: =IF(AD4<賃貸住宅経営のセルチェックシート【入力シート】!$AB$9,賃貸住宅経営のセルチェックシート【入力シート】!$G$17*キャッシュフロー表!$E$29,IF(AD4=賃貸住宅経営のセルチェックシート【入力シート】!$AB$9,賃貸住宅経営のセルチェックシート【入力シート】!$G$17-賃貸住宅経営のセルチェックシート【入力シート】!$G$17*$E$29*(賃貸住宅経営のセルチェックシート【入力シート】!$AB$9-1),0))/10000 ->  | AE29: =IF(AE4<賃貸住宅経営のセルチェックシート【入力シート】!$AB$9,賃貸住宅経営のセルチェックシート【入力シート】!$G$17*キャッシュフロー表!$E$29,IF(AE4=賃貸住宅経営のセルチェックシート【入力シート】!$AB$9,賃貸住宅経営のセルチェックシート【入力シート】!$G$17-賃貸住宅経営のセルチェックシート【入力シート】!$G$17*$E$29*(賃貸住宅経営のセルチェックシート【入力シート】!$AB$9-1),0))/10000 ->  | AF29: =IF(AF4<賃貸住宅経営のセルチェックシート【入力シート】!$AB$9,賃貸住宅経営のセルチェックシート【入力シート】!$G$17*キャッシュフロー表!$E$29,IF(AF4=賃貸住宅経営のセルチェックシート【入力シート】!$AB$9,賃貸住宅経営のセルチェックシート【入力シート】!$G$17-賃貸住宅経営のセルチェックシート【入力シート】!$G$17*$E$29*(賃貸住宅経営のセルチェックシート【入力シート】!$AB$9-1),0))/10000 ->  | AG29: =IF(AG4<賃貸住宅経営のセルチェックシート【入力シート】!$AB$9,賃貸住宅経営のセルチェックシート【入力シート】!$G$17*キャッシュフロー表!$E$29,IF(AG4=賃貸住宅経営のセルチェックシート【入力シート】!$AB$9,賃貸住宅経営のセルチェックシート【入力シート】!$G$17-賃貸住宅経営のセルチェックシート【入力シート】!$G$17*$E$29*(賃貸住宅経営のセルチェックシート【入力シート】!$AB$9-1),0))/10000 ->  | AH29: =IF(AH4<賃貸住宅経営のセルチェックシート【入力シート】!$AB$9,賃貸住宅経営のセルチェックシート【入力シート】!$G$17*キャッシュフロー表!$E$29,IF(AH4=賃貸住宅経営のセルチェックシート【入力シート】!$AB$9,賃貸住宅経営のセルチェックシート【入力シート】!$G$17-賃貸住宅経営のセルチェックシート【入力シート】!$G$17*$E$29*(賃貸住宅経営のセルチェックシート【入力シート】!$AB$9-1),0))/10000 ->  | AI29: =IF(AI4<賃貸住宅経営のセルチェックシート【入力シート】!$AB$9,賃貸住宅経営のセルチェックシート【入力シート】!$G$17*キャッシュフロー表!$E$29,IF(AI4=賃貸住宅経営のセルチェックシート【入力シート】!$AB$9,賃貸住宅経営のセルチェックシート【入力シート】!$G$17-賃貸住宅経営のセルチェックシート【入力シート】!$G$17*$E$29*(賃貸住宅経営のセルチェックシート【入力シート】!$AB$9-1),0))/10000 ->  | AJ29: =IF(AJ4<賃貸住宅経営のセルチェックシート【入力シート】!$AB$9,賃貸住宅経営のセルチェックシート【入力シート】!$G$17*キャッシュフロー表!$E$29,IF(AJ4=賃貸住宅経営のセルチェックシート【入力シート】!$AB$9,賃貸住宅経営のセルチェックシート【入力シート】!$G$17-賃貸住宅経営のセルチェックシート【入力シート】!$G$17*$E$29*(賃貸住宅経営のセルチェックシート【入力シート】!$AB$9-1),0))/10000 ->  | AK29: =IF(AK4<賃貸住宅経営のセルチェックシート【入力シート】!$AB$9,賃貸住宅経営のセルチェックシート【入力シート】!$G$17*キャッシュフロー表!$E$29,IF(AK4=賃貸住宅経営のセルチェックシート【入力シート】!$AB$9,賃貸住宅経営のセルチェックシート【入力シート】!$G$17-賃貸住宅経営のセルチェックシート【入力シート】!$G$17*$E$29*(賃貸住宅経営のセルチェックシート【入力シート】!$AB$9-1),0))/10000 ->  | AL29: =IF(AL4<賃貸住宅経営のセルチェックシート【入力シート】!$AB$9,賃貸住宅経営のセルチェックシート【入力シート】!$G$17*キャッシュフロー表!$E$29,IF(AL4=賃貸住宅経営のセルチェックシート【入力シート】!$AB$9,賃貸住宅経営のセルチェックシート【入力シート】!$G$17-賃貸住宅経営のセルチェックシート【入力シート】!$G$17*$E$29*(賃貸住宅経営のセルチェックシート【入力シート】!$AB$9-1),0))/10000 ->  | AM29: =IF(AM4<賃貸住宅経営のセルチェックシート【入力シート】!$AB$9,賃貸住宅経営のセルチェックシート【入力シート】!$G$17*キャッシュフロー表!$E$29,IF(AM4=賃貸住宅経営のセルチェックシート【入力シート】!$AB$9,賃貸住宅経営のセルチェックシート【入力シート】!$G$17-賃貸住宅経営のセルチェックシート【入力シート】!$G$17*$E$29*(賃貸住宅経営のセルチェックシート【入力シート】!$AB$9-1),0))/10000 ->  | AN29: =IF(AN4<賃貸住宅経営のセルチェックシート【入力シート】!$AB$9,賃貸住宅経営のセルチェックシート【入力シート】!$G$17*キャッシュフロー表!$E$29,IF(AN4=賃貸住宅経営のセルチェックシート【入力シート】!$AB$9,賃貸住宅経営のセルチェックシート【入力シート】!$G$17-賃貸住宅経営のセルチェックシート【入力シート】!$G$17*$E$29*(賃貸住宅経営のセルチェックシート【入力シート】!$AB$9-1),0))/10000 ->  | AO29: =IF(AO4<賃貸住宅経営のセルチェックシート【入力シート】!$AB$9,賃貸住宅経営のセルチェックシート【入力シート】!$G$17*キャッシュフロー表!$E$29,IF(AO4=賃貸住宅経営のセルチェックシート【入力シート】!$AB$9,賃貸住宅経営のセルチェックシート【入力シート】!$G$17-賃貸住宅経営のセルチェックシート【入力シート】!$G$17*$E$29*(賃貸住宅経営のセルチェックシート【入力シート】!$AB$9-1),0))/10000 ->  | AP29: =IF(AP4<賃貸住宅経営のセルチェックシート【入力シート】!$AB$9,賃貸住宅経営のセルチェックシート【入力シート】!$G$17*キャッシュフロー表!$E$29,IF(AP4=賃貸住宅経営のセルチェックシート【入力シート】!$AB$9,賃貸住宅経営のセルチェックシート【入力シート】!$G$17-賃貸住宅経営のセルチェックシート【入力シート】!$G$17*$E$29*(賃貸住宅経営のセルチェックシート【入力シート】!$AB$9-1),0))/10000 ->  | AQ29: =IF(AQ4<賃貸住宅経営のセルチェックシート【入力シート】!$AB$9,賃貸住宅経営のセルチェックシート【入力シート】!$G$17*キャッシュフロー表!$E$29,IF(AQ4=賃貸住宅経営のセルチェックシート【入力シート】!$AB$9,賃貸住宅経営のセルチェックシート【入力シート】!$G$17-賃貸住宅経営のセルチェックシート【入力シート】!$G$17*$E$29*(賃貸住宅経営のセルチェックシート【入力シート】!$AB$9-1),0))/10000 ->  | AR29: =IF(AR4<賃貸住宅経営のセルチェックシート【入力シート】!$AB$9,賃貸住宅経営のセルチェックシート【入力シート】!$G$17*キャッシュフロー表!$E$29,IF(AR4=賃貸住宅経営のセルチェックシート【入力シート】!$AB$9,賃貸住宅経営のセルチェックシート【入力シート】!$G$17-賃貸住宅経営のセルチェックシート【入力シート】!$G$17*$E$29*(賃貸住宅経営のセルチェックシート【入力シート】!$AB$9-1),0))/10000 ->  | AS29: =IF(AS4<賃貸住宅経営のセルチェックシート【入力シート】!$AB$9,賃貸住宅経営のセルチェックシート【入力シート】!$G$17*キャッシュフロー表!$E$29,IF(AS4=賃貸住宅経営のセルチェックシート【入力シート】!$AB$9,賃貸住宅経営のセルチェックシート【入力シート】!$G$17-賃貸住宅経営のセルチェックシート【入力シート】!$G$17*$E$29*(賃貸住宅経営のセルチェックシート【入力シート】!$AB$9-1),0))/10000 ->  | AT29: =IF(AT4<賃貸住宅経営のセルチェックシート【入力シート】!$AB$9,賃貸住宅経営のセルチェックシート【入力シート】!$G$17*キャッシュフロー表!$E$29,IF(AT4=賃貸住宅経営のセルチェックシート【入力シート】!$AB$9,賃貸住宅経営のセルチェックシート【入力シート】!$G$17-賃貸住宅経営のセルチェックシート【入力シート】!$G$17*$E$29*(賃貸住宅経営のセルチェックシート【入力シート】!$AB$9-1),0))/10000 ->  | AU29: =IF(AU4<賃貸住宅経営のセルチェックシート【入力シート】!$AB$9,賃貸住宅経営のセルチェックシート【入力シート】!$G$17*キャッシュフロー表!$E$29,IF(AU4=賃貸住宅経営のセルチェックシート【入力シート】!$AB$9,賃貸住宅経営のセルチェックシート【入力シート】!$G$17-賃貸住宅経営のセルチェックシート【入力シート】!$G$17*$E$29*(賃貸住宅経営のセルチェックシート【入力シート】!$AB$9-1),0))/10000 ->  | AV29: =IF(AV4<賃貸住宅経営のセルチェックシート【入力シート】!$AB$9,賃貸住宅経営のセルチェックシート【入力シート】!$G$17*キャッシュフロー表!$E$29,IF(AV4=賃貸住宅経営のセルチェックシート【入力シート】!$AB$9,賃貸住宅経営のセルチェックシート【入力シート】!$G$17-賃貸住宅経営のセルチェックシート【入力シート】!$G$17*$E$29*(賃貸住宅経営のセルチェックシート【入力シート】!$AB$9-1),0))/10000 ->  | AW29: =IF(AW4<賃貸住宅経営のセルチェックシート【入力シート】!$AB$9,賃貸住宅経営のセルチェックシート【入力シート】!$G$17*キャッシュフロー表!$E$29,IF(AW4=賃貸住宅経営のセルチェックシート【入力シート】!$AB$9,賃貸住宅経営のセルチェックシート【入力シート】!$G$17-賃貸住宅経営のセルチェックシート【入力シート】!$G$17*$E$29*(賃貸住宅経営のセルチェックシート【入力シート】!$AB$9-1),0))/10000 ->  | AX29: =IF(AX4<賃貸住宅経営のセルチェックシート【入力シート】!$AB$9,賃貸住宅経営のセルチェックシート【入力シート】!$G$17*キャッシュフロー表!$E$29,IF(AX4=賃貸住宅経営のセルチェックシート【入力シート】!$AB$9,賃貸住宅経営のセルチェックシート【入力シート】!$G$17-賃貸住宅経営のセルチェックシート【入力シート】!$G$17*$E$29*(賃貸住宅経営のセルチェックシート【入力シート】!$AB$9-1),0))/10000 ->  | AY29: =IF(AY4<賃貸住宅経営のセルチェックシート【入力シート】!$AB$9,賃貸住宅経営のセルチェックシート【入力シート】!$G$17*キャッシュフロー表!$E$29,IF(AY4=賃貸住宅経営のセルチェックシート【入力シート】!$AB$9,賃貸住宅経営のセルチェックシート【入力シート】!$G$17-賃貸住宅経営のセルチェックシート【入力シート】!$G$17*$E$29*(賃貸住宅経営のセルチェックシート【入力シート】!$AB$9-1),0))/10000 ->  | AZ29: =IF(AZ4<賃貸住宅経営のセルチェックシート【入力シート】!$AB$9,賃貸住宅経営のセルチェックシート【入力シート】!$G$17*キャッシュフロー表!$E$29,IF(AZ4=賃貸住宅経営のセルチェックシート【入力シート】!$AB$9,賃貸住宅経営のセルチェックシート【入力シート】!$G$17-賃貸住宅経営のセルチェックシート【入力シート】!$G$17*$E$29*(賃貸住宅経営のセルチェックシート【入力シート】!$AB$9-1),0))/10000 ->  | BA29: =IF(BA4<賃貸住宅経営のセルチェックシート【入力シート】!$AB$9,賃貸住宅経営のセルチェックシート【入力シート】!$G$17*キャッシュフロー表!$E$29,IF(BA4=賃貸住宅経営のセルチェックシート【入力シート】!$AB$9,賃貸住宅経営のセルチェックシート【入力シート】!$G$17-賃貸住宅経営のセルチェックシート【入力シート】!$G$17*$E$29*(賃貸住宅経営のセルチェックシート【入力シート】!$AB$9-1),0))/10000 ->  | BB29: =IF(BB4<賃貸住宅経営のセルチェックシート【入力シート】!$AB$9,賃貸住宅経営のセルチェックシート【入力シート】!$G$17*キャッシュフロー表!$E$29,IF(BB4=賃貸住宅経営のセルチェックシート【入力シート】!$AB$9,賃貸住宅経営のセルチェックシート【入力シート】!$G$17-賃貸住宅経営のセルチェックシート【入力シート】!$G$17*$E$29*(賃貸住宅経営のセルチェックシート【入力シート】!$AB$9-1),0))/10000 ->  | BC29: =IF(BC4<賃貸住宅経営のセルチェックシート【入力シート】!$AB$9,賃貸住宅経営のセルチェックシート【入力シート】!$G$17*キャッシュフロー表!$E$29,IF(BC4=賃貸住宅経営のセルチェックシート【入力シート】!$AB$9,賃貸住宅経営のセルチェックシート【入力シート】!$G$17-賃貸住宅経営のセルチェックシート【入力シート】!$G$17*$E$29*(賃貸住宅経営のセルチェックシート【入力シート】!$AB$9-1),0))/10000 ->  | BD29: =IF(BD4<賃貸住宅経営のセルチェックシート【入力シート】!$AB$9,賃貸住宅経営のセルチェックシート【入力シート】!$G$17*キャッシュフロー表!$E$29,IF(BD4=賃貸住宅経営のセルチェックシート【入力シート】!$AB$9,賃貸住宅経営のセルチェックシート【入力シート】!$G$17-賃貸住宅経営のセルチェックシート【入力シート】!$G$17*$E$29*(賃貸住宅経営のセルチェックシート【入力シート】!$AB$9-1),0))/10000 ->  | BE29: =IF(BE4<賃貸住宅経営のセルチェックシート【入力シート】!$AB$9,賃貸住宅経営のセルチェックシート【入力シート】!$G$17*キャッシュフロー表!$E$29,IF(BE4=賃貸住宅経営のセルチェックシート【入力シート】!$AB$9,賃貸住宅経営のセルチェックシート【入力シート】!$G$17-賃貸住宅経営のセルチェックシート【入力シート】!$G$17*$E$29*(賃貸住宅経営のセルチェックシート【入力シート】!$AB$9-1),0))/10000 ->  | BF29: =IF(BF4<賃貸住宅経営のセルチェックシート【入力シート】!$AB$9,賃貸住宅経営のセルチェックシート【入力シート】!$G$17*キャッシュフロー表!$E$29,IF(BF4=賃貸住宅経営のセルチェックシート【入力シート】!$AB$9,賃貸住宅経営のセルチェックシート【入力シート】!$G$17-賃貸住宅経営のセルチェックシート【入力シート】!$G$17*$E$29*(賃貸住宅経営のセルチェックシート【入力シート】!$AB$9-1),0))/10000 ->  | BG29: =IF(BG4<賃貸住宅経営のセルチェックシート【入力シート】!$AB$9,賃貸住宅経営のセルチェックシート【入力シート】!$G$17*キャッシュフロー表!$E$29,IF(BG4=賃貸住宅経営のセルチェックシート【入力シート】!$AB$9,賃貸住宅経営のセルチェックシート【入力シート】!$G$17-賃貸住宅経営のセルチェックシート【入力シート】!$G$17*$E$29*(賃貸住宅経営のセルチェックシート【入力シート】!$AB$9-1),0))/10000 ->  | BH29: =IF(BH4<賃貸住宅経営のセルチェックシート【入力シート】!$AB$9,賃貸住宅経営のセルチェックシート【入力シート】!$G$17*キャッシュフロー表!$E$29,IF(BH4=賃貸住宅経営のセルチェックシート【入力シート】!$AB$9,賃貸住宅経営のセルチェックシート【入力シート】!$G$17-賃貸住宅経営のセルチェックシート【入力シート】!$G$17*$E$29*(賃貸住宅経営のセルチェックシート【入力シート】!$AB$9-1),0))/10000 ->  | BI29: =IF(BI4<賃貸住宅経営のセルチェックシート【入力シート】!$AB$9,賃貸住宅経営のセルチェックシート【入力シート】!$G$17*キャッシュフロー表!$E$29,IF(BI4=賃貸住宅経営のセルチェックシート【入力シート】!$AB$9,賃貸住宅経営のセルチェックシート【入力シート】!$G$17-賃貸住宅経営のセルチェックシート【入力シート】!$G$17*$E$29*(賃貸住宅経営のセルチェックシート【入力シート】!$AB$9-1),0))/10000 ->  | BJ29: =IF(BJ4<賃貸住宅経営のセルチェックシート【入力シート】!$AB$9,賃貸住宅経営のセルチェックシート【入力シート】!$G$17*キャッシュフロー表!$E$29,IF(BJ4=賃貸住宅経営のセルチェックシート【入力シート】!$AB$9,賃貸住宅経営のセルチェックシート【入力シート】!$G$17-賃貸住宅経営のセルチェックシート【入力シート】!$G$17*$E$29*(賃貸住宅経営のセルチェックシート【入力シート】!$AB$9-1),0))/10000 ->  | BK29: =IF(BK4<賃貸住宅経営のセルチェックシート【入力シート】!$AB$9,賃貸住宅経営のセルチェックシート【入力シート】!$G$17*キャッシュフロー表!$E$29,IF(BK4=賃貸住宅経営のセルチェックシート【入力シート】!$AB$9,賃貸住宅経営のセルチェックシート【入力シート】!$G$17-賃貸住宅経営のセルチェックシート【入力シート】!$G$17*$E$29*(賃貸住宅経営のセルチェックシート【入力シート】!$AB$9-1),0))/10000 ->  | BL29: =IF(BL4<賃貸住宅経営のセルチェックシート【入力シート】!$AB$9,賃貸住宅経営のセルチェックシート【入力シート】!$G$17*キャッシュフロー表!$E$29,IF(BL4=賃貸住宅経営のセルチェックシート【入力シート】!$AB$9,賃貸住宅経営のセルチェックシート【入力シート】!$G$17-賃貸住宅経営のセルチェックシート【入力シート】!$G$17*$E$29*(賃貸住宅経営のセルチェックシート【入力シート】!$AB$9-1),0))/10000 ->  | BM29: =IF(BM4<賃貸住宅経営のセルチェックシート【入力シート】!$AB$9,賃貸住宅経営のセルチェックシート【入力シート】!$G$17*キャッシュフロー表!$E$29,IF(BM4=賃貸住宅経営のセルチェックシート【入力シート】!$AB$9,賃貸住宅経営のセルチェックシート【入力シート】!$G$17-賃貸住宅経営のセルチェックシート【入力シート】!$G$17*$E$29*(賃貸住宅経営のセルチェックシート【入力シート】!$AB$9-1),0))/10000 ->  | BN29: =IF(BN4<賃貸住宅経営のセルチェックシート【入力シート】!$AB$9,賃貸住宅経営のセルチェックシート【入力シート】!$G$17*キャッシュフロー表!$E$29,IF(BN4=賃貸住宅経営のセルチェックシート【入力シート】!$AB$9,賃貸住宅経営のセルチェックシート【入力シート】!$G$17-賃貸住宅経営のセルチェックシート【入力シート】!$G$17*$E$29*(賃貸住宅経営のセルチェックシート【入力シート】!$AB$9-1),0))/10000 -> 
C30: 営業外費用 | D30: 支払利息 | G30: =借入金!C11 -> 0 | H30: =借入金!D11 -> 0 | I30: =借入金!E11 -> 0 | J30: =借入金!F11 -> 0 | K30: =借入金!G11 -> 0 | L30: =借入金!H11 -> 0 | M30: =借入金!I11 -> 0 | N30: =借入金!J11 -> 0 | O30: =借入金!K11 -> 0 | P30: =借入金!L11 -> 0 | Q30: =借入金!M11 -> 0 | R30: =借入金!N11 -> 0 | S30: =借入金!O11 -> 0 | T30: =借入金!P11 -> 0 | U30: =借入金!Q11 -> 0 | V30: =借入金!R11 -> 0 | W30: =借入金!S11 -> 0 | X30: =借入金!T11 -> 0 | Y30: =借入金!U11 -> 0 | Z30: =借入金!V11 -> 0 | AA30: =借入金!W11 -> 0 | AB30: =借入金!X11 -> 0 | AC30: =借入金!Y11 -> 0 | AD30: =借入金!Z11 -> 0 | AE30: =借入金!AA11 -> 0 | AF30: =借入金!AB11 -> 0 | AG30: =借入金!AC11 -> 0 | AH30: =借入金!AD11 -> 0 | AI30: =借入金!AE11 -> 0 | AJ30: =借入金!AF11 -> 0 | AK30: =借入金!AG11 -> 0 | AL30: =借入金!AH11 -> 0 | AM30: =借入金!AI11 -> 0 | AN30: =借入金!AJ11 -> 0 | AO30: =借入金!AK11 -> 0 | AP30: =借入金!AL11 -> 0 | AQ30: =借入金!AM11 -> 0 | AR30: =借入金!AN11 -> 0 | AS30: =借入金!AO11 -> 0 | AT30: =借入金!AP11 -> 0 | AU30: =借入金!AQ11 -> 0 | AV30: =借入金!AR11 -> 0 | AW30: =借入金!AS11 -> 0 | AX30: =借入金!AT11 -> 0 | AY30: =借入金!AU11 -> 0 | AZ30: =借入金!AV11 -> 0 | BA30: =借入金!AW11 -> 0 | BB30: =借入金!AX11 -> 0 | BC30: =借入金!AY11 -> 0 | BD30: =借入金!AZ11 -> 0 | BE30: =借入金!BA11 -> 0 | BF30: =借入金!BB11 -> 0 | BG30: =借入金!BC11 -> 0 | BH30: =借入金!BD11 -> 0 | BI30: =借入金!BE11 -> 0 | BJ30: =借入金!BF11 -> 0 | BK30: =借入金!BG11 -> 0 | BL30: =借入金!BH11 -> 0 | BM30: =借入金!BI11 -> 0 | BN30: =借入金!BJ11 -> 0
D31: 営業外費用計 | G31: =SUM(G29:G30) -> 
C32: 税引前利益(償却後利益) | G32: =G28-G31 -> 
C33: 所得税 | G33: =MAX(G32*0.33,0) -> 
C34: 当期利益 | G34: =G32-G33 -> 
C35: 当期利益累計 | G35: =G34 ->  | H35: =G35+H34 -> 
B36: 総収入ー総費用（運用期間通算） | F36: =F62 -> 
D39: 築年 | G39: 1 | H39: =G39+1 -> 2 | I39: 3 | J39: 4 | K39: 5 | L39: 6 | M39: 7 | N39: 8 | O39: 9 | P39: 10 | Q39: 11 | R39: 12 | S39: 13 | T39: 14 | U39: 15 | V39: 16 | W39: 17 | X39: 18 | Y39: 19 | Z39: 20 | AA39: 21 | AB39: 22 | AC39: 23 | AD39: 24 | AE39: 25 | AF39: 26 | AG39: 27 | AH39: 28 | AI39: 29 | AJ39: 30 | AK39: 31 | AL39: 32 | AM39: 33 | AN39: 34 | AO39: 35 | AP39: 36 | AQ39: 37 | AR39: 38 | AS39: 39 | AT39: 40 | AU39: 41 | AV39: 42 | AW39: 43 | AX39: 44 | AY39: 45 | AZ39: 46 | BA39: 47 | BB39: 48 | BC39: 49 | BD39: 50 | BE39: 51 | BF39: 52 | BG39: 53 | BH39: 54 | BI39: 55 | BJ39: 56 | BK39: 57 | BL39: 58 | BM39: 59 | BN39: 60
D40: 満室時賃料 | G40: =ROUND(賃貸住宅経営のセルチェックシート【入力シート】!G12*賃貸住宅経営のセルチェックシート【入力シート】!V12*12/10000,0) -> 0 | H40: =ROUND(G40*(1+H41),0) -> 
D41: 変動率 | G41: =VLOOKUP(賃貸住宅経営のセルチェックシート【入力シート】!$G$13,算出基礎係数!$L$2:$AZ$3,2) ->  | H41: =VLOOKUP(賃貸住宅経営のセルチェックシート【入力シート】!$G$13,算出基礎係数!$L$2:$AZ$3,3) ->  | I41: =VLOOKUP(賃貸住宅経営のセルチェックシート【入力シート】!$G$13,算出基礎係数!$L$2:$AZ$3,4) ->  | J41: =VLOOKUP(賃貸住宅経営のセルチェックシート【入力シート】!$G$13,算出基礎係数!$L$2:$AZ$3,5) ->  | K41: =VLOOKUP(賃貸住宅経営のセルチェックシート【入力シート】!$G$13,算出基礎係数!$L$2:$AZ$3,6) ->  | L41: =VLOOKUP(賃貸住宅経営のセルチェックシート【入力シート】!$G$13,算出基礎係数!$L$2:$AZ$3,7) ->  | M41: =VLOOKUP(賃貸住宅経営のセルチェックシート【入力シート】!$G$13,算出基礎係数!$L$2:$AZ$3,8) ->  | N41: =VLOOKUP(賃貸住宅経営のセルチェックシート【入力シート】!$G$13,算出基礎係数!$L$2:$AZ$3,9) ->  | O41: =VLOOKUP(賃貸住宅経営のセルチェックシート【入力シート】!$G$13,算出基礎係数!$L$2:$AZ$3,10) ->  | P41: =VLOOKUP(賃貸住宅経営のセルチェックシート【入力シート】!$G$13,算出基礎係数!$L$2:$AZ$3,11) ->  | Q41: =VLOOKUP(賃貸住宅経営のセルチェックシート【入力シート】!$G$13,算出基礎係数!$L$2:$AZ$3,12) ->  | R41: =VLOOKUP(賃貸住宅経営のセルチェックシート【入力シート】!$G$13,算出基礎係数!$L$2:$AZ$3,13) ->  | S41: =VLOOKUP(賃貸住宅経営のセルチェックシート【入力シート】!$G$13,算出基礎係数!$L$2:$AZ$3,14) ->  | T41: =VLOOKUP(賃貸住宅経営のセルチェックシート【入力シート】!$G$13,算出基礎係数!$L$2:$AZ$3,15) ->  | U41: =VLOOKUP(賃貸住宅経営のセルチェックシート【入力シート】!$G$13,算出基礎係数!$L$2:$AZ$3,16) ->  | V41: =VLOOKUP(賃貸住宅経営のセルチェックシート【入力シート】!$G$13,算出基礎係数!$L$2:$AZ$3,17) ->  | W41: =VLOOKUP(賃貸住宅経営のセルチェックシート【入力シート】!$G$13,算出基礎係数!$L$2:$AZ$3,18) ->  | X41: =VLOOKUP(賃貸住宅経営のセルチェックシート【入力シート】!$G$13,算出基礎係数!$L$2:$AZ$3,19) ->  | Y41: =VLOOKUP(賃貸住宅経営のセルチェックシート【入力シート】!$G$13,算出基礎係数!$L$2:$AZ$3,20) ->  | Z41: =VLOOKUP(賃貸住宅経営のセルチェックシート【入力シート】!$G$13,算出基礎係数!$L$2:$AZ$3,21) ->  | AA41: =VLOOKUP(賃貸住宅経営のセルチェックシート【入力シート】!$G$13,算出基礎係数!$L$2:$AZ$3,22) ->  | AB41: =VLOOKUP(賃貸住宅経営のセルチェックシート【入力シート】!$G$13,算出基礎係数!$L$2:$AZ$3,23) ->  | AC41: =VLOOKUP(賃貸住宅経営のセルチェックシート【入力シート】!$G$13,算出基礎係数!$L$2:$AZ$3,24) ->  | AD41: =VLOOKUP(賃貸住宅経営のセルチェックシート【入力シート】!$G$13,算出基礎係数!$L$2:$AZ$3,25) ->  | AE41: =VLOOKUP(賃貸住宅経営のセルチェックシート【入力シート】!$G$13,算出基礎係数!$L$2:$AZ$3,26) ->  | AF41: =VLOOKUP(賃貸住宅経営のセルチェックシート【入力シート】!$G$13,算出基礎係数!$L$2:$AZ$3,27) ->  | AG41: =VLOOKUP(賃貸住宅経営のセルチェックシート【入力シート】!$G$13,算出基礎係数!$L$2:$AZ$3,28) ->  | AH41: =VLOOKUP(賃貸住宅経営のセルチェックシート【入力シート】!$G$13,算出基礎係数!$L$2:$AZ$3,29) ->  | AI41: =VLOOKUP(賃貸住宅経営のセルチェックシート【入力シート】!$G$13,算出基礎係数!$L$2:$AZ$3,30) ->  | AJ41: =VLOOKUP(賃貸住宅経営のセルチェックシート【入力シート】!$G$13,算出基礎係数!$L$2:$AZ$3,31) ->  | AK41: =VLOOKUP(賃貸住宅経営のセルチェックシート【入力シート】!$G$13,算出基礎係数!$L$2:$AZ$3,32) ->  | AL41: =VLOOKUP(賃貸住宅経営のセルチェックシート【入力シート】!$G$13,算出基礎係数!$L$2:$AZ$3,33) ->  | AM41: =VLOOKUP(賃貸住宅経営のセルチェックシート【入力シート】!$G$13,算出基礎係数!$L$2:$AZ$3,34) ->  | AN41: =VLOOKUP(賃貸住宅経営のセルチェックシート【入力シート】!$G$13,算出基礎係数!$L$2:$AZ$3,35) ->  | AO41: =VLOOKUP(賃貸住宅経営のセルチェックシート【入力シート】!$G$13,算出基礎係数!$L$2:$AZ$3,36) ->  | AP41: =VLOOKUP(賃貸住宅経営のセルチェックシート【入力シート】!$G$13,算出基礎係数!$L$2:$AZ$3,37) ->  | AQ41: =VLOOKUP(賃貸住宅経営のセルチェックシート【入力シート】!$G$13,算出基礎係数!$L$2:$AZ$3,38) ->  | AR41: =VLOOKUP(賃貸住宅経営のセルチェックシート【入力シート】!$G$13,算出基礎係数!$L$2:$AZ$3,39) ->  | AS41: =VLOOKUP(賃貸住宅経営のセルチェックシート【入力シート】!$G$13,算出基礎係数!$L$2:$AZ$3,30) ->  | AT41: =VLOOKUP(賃貸住宅経営のセルチェックシート【入力シート】!$G$13,算出基礎係数!$L$2:$AZ$3,41) ->  | AU41: =VLOOKUP(賃貸住宅経営のセルチェックシート【入力シート】!$G$13,算出基礎係数!$L$2:$AZ$3,41) ->  | AV41: =VLOOKUP(賃貸住宅経営のセルチェックシート【入力シート】!$G$13,算出基礎係数!$L$2:$AZ$3,41) ->  | AW41: =VLOOKUP(賃貸住宅経営のセルチェックシート【入力シート】!$G$13,算出基礎係数!$L$2:$AZ$3,41) ->  | AX41: =VLOOKUP(賃貸住宅経営のセルチェックシート【入力シート】!$G$13,算出基礎係数!$L$2:$AZ$3,41) ->  | AY41: =VLOOKUP(賃貸住宅経営のセルチェックシート【入力シート】!$G$13,算出基礎係数!$L$2:$AZ$3,41) ->  | AZ41: =VLOOKUP(賃貸住宅経営のセルチェックシート【入力シート】!$G$13,算出基礎係数!$L$2:$AZ$3,41) ->  | BA41: =VLOOKUP(賃貸住宅経営のセルチェックシート【入力シート】!$G$13,算出基礎係数!$L$2:$AZ$3,41) ->  | BB41: =VLOOKUP(賃貸住宅経営のセルチェックシート【入力シート】!$G$13,算出基礎係数!$L$2:$AZ$3,41) ->  | BC41: =VLOOKUP(賃貸住宅経営のセルチェックシート【入力シート】!$G$13,算出基礎係数!$L$2:$AZ$3,41) ->  | BD41: =VLOOKUP(賃貸住宅経営のセルチェックシート【入力シート】!$G$13,算出基礎係数!$L$2:$AZ$3,41) ->  | BE41: =VLOOKUP(賃貸住宅経営のセルチェックシート【入力シート】!$G$13,算出基礎係数!$L$2:$AZ$3,41) ->  | BF41: =VLOOKUP(賃貸住宅経営のセルチェックシート【入力シート】!$G$13,算出基礎係数!$L$2:$AZ$3,41) ->  | BG41: =VLOOKUP(賃貸住宅経営のセルチェックシート【入力シート】!$G$13,算出基礎係数!$L$2:$AZ$3,41) ->  | BH41: =VLOOKUP(賃貸住宅経営のセルチェックシート【入力シート】!$G$13,算出基礎係数!$L$2:$AZ$3,41) ->  | BI41: =VLOOKUP(賃貸住宅経営のセルチェックシート【入力シート】!$G$13,算出基礎係数!$L$2:$AZ$3,41) ->  | BJ41: =VLOOKUP(賃貸住宅経営のセルチェックシート【入力シート】!$G$13,算出基礎係数!$L$2:$AZ$3,41) ->  | BK41: =VLOOKUP(賃貸住宅経営のセルチェックシート【入力シート】!$G$13,算出基礎係数!$L$2:$AZ$3,41) ->  | BL41: =VLOOKUP(賃貸住宅経営のセルチェックシート【入力シート】!$G$13,算出基礎係数!$L$2:$AZ$3,41) ->  | BM41: =VLOOKUP(賃貸住宅経営のセルチェックシート【入力シート】!$G$13,算出基礎係数!$L$2:$AZ$3,41) ->  | BN41: =VLOOKUP(賃貸住宅経営のセルチェックシート【入力シート】!$G$13,算出基礎係数!$L$2:$AZ$3,41) -> 
D42: 空室損失 | G42: =ROUND(G40*(1-G43),0) -> 0
D43: 稼働率 | G43: =賃貸住宅経営のセルチェックシート【入力シート】!$I$14 -> 0 | H43: =IF(G43>=0.985,1,G43+0.015) -> 0.015 | I43: =H43+I44 -> 
D44: 変動率 | G44: =VLOOKUP(賃貸住宅経営のセルチェックシート【入力シート】!$G$13,算出基礎係数!$L$6:$AZ$7,2) ->  | H44: =VLOOKUP(賃貸住宅経営のセルチェックシート【入力シート】!$G$13,算出基礎係数!$L$6:$AZ$7,3) ->  | I44: =VLOOKUP(賃貸住宅経営のセルチェックシート【入力シート】!$G$13,算出基礎係数!$L$6:$AZ$7,4) ->  | J44: =VLOOKUP(賃貸住宅経営のセルチェックシート【入力シート】!$G$13,算出基礎係数!$L$6:$AZ$7,5) ->  | K44: =VLOOKUP(賃貸住宅経営のセルチェックシート【入力シート】!$G$13,算出基礎係数!$L$6:$AZ$7,6) ->  | L44: =VLOOKUP(賃貸住宅経営のセルチェックシート【入力シート】!$G$13,算出基礎係数!$L$6:$AZ$7,7) ->  | M44: =VLOOKUP(賃貸住宅経営のセルチェックシート【入力シート】!$G$13,算出基礎係数!$L$6:$AZ$7,8) ->  | N44: =VLOOKUP(賃貸住宅経営のセルチェックシート【入力シート】!$G$13,算出基礎係数!$L$6:$AZ$7,9) ->  | O44: =VLOOKUP(賃貸住宅経営のセルチェックシート【入力シート】!$G$13,算出基礎係数!$L$6:$AZ$7,10) ->  | P44: =VLOOKUP(賃貸住宅経営のセルチェックシート【入力シート】!$G$13,算出基礎係数!$L$6:$AZ$7,11) ->  | Q44: =VLOOKUP(賃貸住宅経営のセルチェックシート【入力シート】!$G$13,算出基礎係数!$L$6:$AZ$7,12) ->  | R44: =VLOOKUP(賃貸住宅経営のセルチェックシート【入力シート】!$G$13,算出基礎係数!$L$6:$AZ$7,13) ->  | S44: =VLOOKUP(賃貸住宅経営のセルチェックシート【入力シート】!$G$13,算出基礎係数!$L$6:$AZ$7,14) ->  | T44: =VLOOKUP(賃貸住宅経営のセルチェックシート【入力シート】!$G$13,算出基礎係数!$L$6:$AZ$7,15) ->  | U44: =VLOOKUP(賃貸住宅経営のセルチェックシート【入力シート】!$G$13,算出基礎係数!$L$6:$AZ$7,16) ->  | V44: =VLOOKUP(賃貸住宅経営のセルチェックシート【入力シート】!$G$13,算出基礎係数!$L$6:$AZ$7,17) ->  | W44: =VLOOKUP(賃貸住宅経営のセルチェックシート【入力シート】!$G$13,算出基礎係数!$L$6:$AZ$7,18) ->  | X44: =VLOOKUP(賃貸住宅経営のセルチェックシート【入力シート】!$G$13,算出基礎係数!$L$6:$AZ$7,19) ->  | Y44: =VLOOKUP(賃貸住宅経営のセルチェックシート【入力シート】!$G$13,算出基礎係数!$L$6:$AZ$7,20) ->  | Z44: =VLOOKUP(賃貸住宅経営のセルチェックシート【入力シート】!$G$13,算出基礎係数!$L$6:$AZ$7,21) ->  | AA44: =VLOOKUP(賃貸住宅経営のセルチェックシート【入力シート】!$G$13,算出基礎係数!$L$6:$AZ$7,22) ->  | AB44: =VLOOKUP(賃貸住宅経営のセルチェックシート【入力シート】!$G$13,算出基礎係数!$L$6:$AZ$7,23) ->  | AC44: =VLOOKUP(賃貸住宅経営のセルチェックシート【入力シート】!$G$13,算出基礎係数!$L$6:$AZ$7,24) ->  | AD44: =VLOOKUP(賃貸住宅経営のセルチェックシート【入力シート】!$G$13,算出基礎係数!$L$6:$AZ$7,25) ->  | AE44: =VLOOKUP(賃貸住宅経営のセルチェックシート【入力シート】!$G$13,算出基礎係数!$L$6:$AZ$7,26) ->  | AF44: =VLOOKUP(賃貸住宅経営のセルチェックシート【入力シート】!$G$13,算出基礎係数!$L$6:$AZ$7,27) ->  | AG44: =VLOOKUP(賃貸住宅経営のセルチェックシート【入力シート】!$G$13,算出基礎係数!$L$6:$AZ$7,28) ->  | AH44: =VLOOKUP(賃貸住宅経営のセルチェックシート【入力シート】!$G$13,算出基礎係数!$L$6:$AZ$7,29) ->  | AI44: =VLOOKUP(賃貸住宅経営のセルチェックシート【入力シート】!$G$13,算出基礎係数!$L$6:$AZ$7,30) ->  | AJ44: =VLOOKUP(賃貸住宅経営のセルチェックシート【入力シート】!$G$13,算出基礎係数!$L$6:$AZ$7,31) ->  | AK44: =VLOOKUP(賃貸住宅経営のセルチェックシート【入力シート】!$G$13,算出基礎係数!$L$6:$AZ$7,32) ->  | AL44: =VLOOKUP(賃貸住宅経営のセルチェックシート【入力シート】!$G$13,算出基礎係数!$L$6:$AZ$7,33) ->  | AM44: =VLOOKUP(賃貸住宅経営のセルチェックシート【入力シート】!$G$13,算出基礎係数!$L$6:$AZ$7,34) ->  | AN44: =VLOOKUP(賃貸住宅経営のセルチェックシート【入力シート】!$G$13,算出基礎係数!$L$6:$AZ$7,35) ->  | AO44: =VLOOKUP(賃貸住宅経営のセルチェックシート【入力シート】!$G$13,算出基礎係数!$L$6:$AZ$7,36) ->  | AP44: =VLOOKUP(賃貸住宅経営のセルチェックシート【入力シート】!$G$13,算出基礎係数!$L$6:$AZ$7,37) ->  | AQ44: =VLOOKUP(賃貸住宅経営のセルチェックシート【入力シート】!$G$13,算出基礎係数!$L$6:$AZ$7,38) ->  | AR44: =VLOOKUP(賃貸住宅経営のセルチェックシート【入力シート】!$G$13,算出基礎係数!$L$6:$AZ$7,39) ->  | AS44: =VLOOKUP(賃貸住宅経営のセルチェックシート【入力シート】!$G$13,算出基礎係数!$L$6:$AZ$7,40) ->  | AT44: =VLOOKUP(賃貸住宅経営のセルチェックシート【入力シート】!$G$13,算出基礎係数!$L$6:$AZ$7,41) ->  | AU44: =VLOOKUP(賃貸住宅経営のセルチェックシート【入力シート】!$G$13,算出基礎係数!$L$6:$AZ$7,41) ->  | AV44: =VLOOKUP(賃貸住宅経営のセルチェックシート【入力シート】!$G$13,算出基礎係数!$L$6:$AZ$7,41) ->  | AW44: =VLOOKUP(賃貸住宅経営のセルチェックシート【入力シート】!$G$13,算出基礎係数!$L$6:$AZ$7,41) ->  | AX44: =VLOOKUP(賃貸住宅経営のセルチェックシート【入力シート】!$G$13,算出基礎係数!$L$6:$AZ$7,41) ->  | AY44: =VLOOKUP(賃貸住宅経営のセルチェックシート【入力シート】!$G$13,算出基礎係数!$L$6:$AZ$7,41) ->  | AZ44: =VLOOKUP(賃貸住宅経営のセルチェックシート【入力シート】!$G$13,算出基礎係数!$L$6:$AZ$7,41) ->  | BA44: =VLOOKUP(賃貸住宅経営のセルチェックシート【入力シート】!$G$13,算出基礎係数!$L$6:$AZ$7,41) ->  | BB44: =VLOOKUP(賃貸住宅経営のセルチェックシート【入力シート】!$G$13,算出基礎係数!$L$6:$AZ$7,41) ->  | BC44: =VLOOKUP(賃貸住宅経営のセルチェックシート【入力シート】!$G$13,算出基礎係数!$L$6:$AZ$7,41) ->  | BD44: =VLOOKUP(賃貸住宅経営のセルチェックシート【入力シート】!$G$13,算出基礎係数!$L$6:$AZ$7,41) ->  | BE44: =VLOOKUP(賃貸住宅経営のセルチェックシート【入力シート】!$G$13,算出基礎係数!$L$6:$AZ$7,41) ->  | BF44: =VLOOKUP(賃貸住宅経営のセルチェックシート【入力シート】!$G$13,算出基礎係数!$L$6:$AZ$7,41) ->  | BG44: =VLOOKUP(賃貸住宅経営のセルチェックシート【入力シート】!$G$13,算出基礎係数!$L$6:$AZ$7,41) ->  | BH44: =VLOOKUP(賃貸住宅経営のセルチェックシート【入力シート】!$G$13,算出基礎係数!$L$6:$AZ$7,41) ->  | BI44: =VLOOKUP(賃貸住宅経営のセルチェックシート【入力シート】!$G$13,算出基礎係数!$L$6:$AZ$7,41) ->  | BJ44: =VLOOKUP(賃貸住宅経営のセルチェックシート【入力シート】!$G$13,算出基礎係数!$L$6:$AZ$7,41) ->  | BK44: =VLOOKUP(賃貸住宅経営のセルチェックシート【入力シート】!$G$13,算出基礎係数!$L$6:$AZ$7,41) ->  | BL44: =VLOOKUP(賃貸住宅経営のセルチェックシート【入力シート】!$G$13,算出基礎係数!$L$6:$AZ$7,41) ->  | BM44: =VLOOKUP(賃貸住宅経営のセルチェックシート【入力シート】!$G$13,算出基礎係数!$L$6:$AZ$7,41) ->  | BN44: =VLOOKUP(賃貸住宅経営のセルチェックシート【入力シート】!$G$13,算出基礎係数!$L$6:$AZ$7,41) -> 
D45: 賃料収入 | G45: =G40-G42 -> 0
D46: 賃料収入水準 | G46: =G45/$G$40*100 -> 
D48: （IRR計算用）
D49: 30年目 | F49: =$F$18*(-1) -> 0 | G49: =G34 ->  | AK49: =賃貸住宅経営のセルチェックシート【入力シート】!$Q$37/10000 -> 0 | AW49: 築26～30 | AX49: 0.403
D50: 10年目 | F50: =F49 -> 0 | Q50: =賃貸住宅経営のセルチェックシート【入力シート】!$D$37/10000 -> 0 | AW50: 築6～10年 | AX50: 0.822
D52: （グラフ1用）
G53: 1 | H53: 5 | I53: 10 | J53: 15 | K53: 20 | L53: 25 | M53: 30 | N53: 35 | O53: 40
D54: 当期利益 | G54: =$G$34 ->  | H54: =$K$34 ->  | I54: =$P$34 ->  | J54: =$U$34 ->  | K54: =$Z$34 ->  | L54: =$AE$34 ->  | M54: =$AJ$34 ->  | N54: =$AO$34 ->  | O54: =$AT$34 -> 
D56: （グラフ2用）
F57: 0 | G57: 1 | H57: =G57+1 -> 2 | I57: 3 | J57: 4 | K57: 5 | L57: 6 | M57: 7 | N57: 8 | O57: 9 | P57: 10 | Q57: 11 | R57: 12 | S57: 13 | T57: 14 | U57: 15 | V57: 16 | W57: 17 | X57: 18 | Y57: 19 | Z57: 20 | AA57: 21 | AB57: 22 | AC57: 23 | AD57: 24 | AE57: 25 | AF57: 26 | AG57: 27 | AH57: 28 | AI57: 29 | AJ57: 30 | AK57: 31 | AL57: 32 | AM57: 33 | AN57: 34 | AO57: 35 | AP57: 36 | AQ57: 37 | AR57: 38 | AS57: 39 | AT57: 40 | AU57: 41 | AV57: 42 | AW57: 43 | AX57: 44 | AY57: 45 | AZ57: 46 | BA57: 47 | BB57: 48 | BC57: 49 | BD57: 50 | BE57: 51 | BF57: 52 | BG57: 53 | BH57: 54 | BI57: 55 | BJ57: 56 | BK57: 57 | BL57: 58 | BM57: 59 | BN57: 60
D58: 総収入 | F58: =F5 -> 0 | G58: =F58+G5 -> 0
D59: 固定費（管理費・税、返済） | F59: =SUM(F66:AT66) ->  | G59: =$F$59 -> 
D60: 変動費(修繕）（累計） | F60: =SUM(F66,F67) -> 0 | G60: =F60+G67 -> 
D61: 総支出 | F61: =SUM(F59,F60) -> 
D62: 差引 | F62: =F58-F61 -> 
D66: 固定費（管理費・税、返済） | F66: =SUM(F10,F11,F15,F16,F17) -> 0
D67: 変動費(修繕）（単年） | F67: =SUM(F12:F14) -> 0
AR69: 総費用（NOI算出用） | AT69: =AT61-SUM(AT70:AT71) -> 
AR70: 借入金返済（累計） | AT70: =SUM(F15:AT15) -> 0
AR71: 所得税等（累計） | AT71: =SUM(F17:AT17) -> 

Sheet 修繕費（計画修繕）
A1: 修繕水準 | B1: 係数
A2: 標準 | B2: 1 | C2: ※日管協ベース
A3: 簡易 | B3: 0.8 | C3: (建物) | D3: 0.9 | E3: (設備)
A4: 外壁 | B4: 係数
A5: 塗装 | B5: 1 | C5: ※日管協ベース
A6: タイル | B6: 1.2
A7: サイディング | B7: ※ | C7: 15年目「塗装」、30年目「タイル」の単価を採用
A8: RC規模 | B8: 係数
A9: EVなし | B9: 1 | C9: ※日管協ベース
A10: EVあり | B10: 1.2
A12: 屋根・屋上（低層（1～3階））
B13: 10 | C13: 15 | D13: 20 | E13: 25 | F13: 30 | G13: 35 | H13: 40
A14: RC造傾斜屋根標準 | C14: 88000 | F14: 88000
A15: RC造傾斜屋根簡易 | B15: =C14*$B$3 -> 70400 | D15: =F14*$B$3 -> 70400 | F15: =C14*$B$3 -> 70400
A16: RC造陸屋根標準 | C16: 44000 | F16: 319000
A17: RC造陸屋根簡易 | B17: =C16*$B$3 -> 35200 | D17: =F16*$B$3 -> 255200 | F17: =C16*$B$3 -> 35200
A18: S造傾斜屋根標準 | C18: 88000 | F18: 88000
A19: S造傾斜屋根簡易 | B19: =C18*$B$3 -> 70400 | D19: =F18*$B$3 -> 70400 | F19: =F18*$B$3 -> 70400
A20: S造陸屋根標準 | C20: 44000 | F20: 319000
A21: S造陸屋根簡易 | B21: =C20*$B$3 -> 35200 | D21: =F20*$B$3 -> 255200 | F21: =C20*$B$3 -> 35200
A22: 木造傾斜屋根標準 | C22: 88000 | F22: 88000
A23: 木造傾斜屋根簡易 | B23: =C22*$B$3 -> 70400 | D23: =F22*$B$3 -> 70400 | F23: =F22*$B$3 -> 70400
A24: 木造陸屋根標準 | C24: 44000 | F24: 319000
A25: 木造陸屋根簡易 | B25: =C24*$B$3 -> 35200 | D25: =F24*$B$3 -> 255200 | F25: =C24*$B$3 -> 35200
B26: ※低層を100として、中層（4～6階）は110、高層（7階以上）は115を適用
A27: 外壁（低層（1～3階））
B28: 10 | C28: 15 | D28: 20 | E28: 25 | F28: 30 | G28: 35 | H28: 40
A29: RC造塗装標準 | C29: 115500 | F29: 115500
A30: RC造塗装簡易 | B30: =ROUND(C29*$B$3,-2) -> 92400 | D30: =ROUND(F29*$B$3,-2) -> 92400 | F30: =ROUND(C29*$B$3,-2) -> 92400
A31: RC造タイル標準 | C31: =ROUND(C29*$B$6,-2) -> 138600 | F31: =ROUND(F29*$B$6,-2) -> 138600
A32: RC造タイル簡易 | B32: =ROUND(C31*$B$3,-2) -> 110900 | D32: =ROUND(F31*$B$3,-2) -> 110900 | F32: =ROUND(C31*$B$3,-2) -> 110900
A33: S造塗装標準 | C33: 115500 | F33: 115500
A34: S造塗装簡易 | B34: =ROUND(C33*$B$3,-2) -> 92400 | D34: =ROUND(F33*$B$3,-2) -> 92400 | F34: =ROUND(C33*$B$3,-2) -> 92400
A35: S造サイディング標準 | C35: =$C$33 -> 115500 | F35: =$F$31 -> 138600
A36: S造サイディング簡易 | B36: =ROUND(C35*$B$3,-2) -> 92400 | D36: =ROUND(F35*$B$3,-2) -> 110900 | F36: =ROUND(C35*$B$3,-2) -> 92400
A37: 木造塗装標準 | C37: 115500 | F37: 115500
A38: 木造塗装簡易 | B38: =ROUND(C37*$B$3,-2) -> 92400 | D38: =ROUND(F37*$B$3,-2) -> 92400 | F38: =ROUND(C37*$B$3,-2) -> 92400
A39: 木造サイディング標準 | C39: =$C$37 -> 115500 | F39: =$F$31 -> 138600
A40: 木造サイディング簡易 | B40: =ROUND(C39*$B$3,-2) -> 92400 | D40: =ROUND(F39*$B$3,-2) -> 110900 | F40: =ROUND(C39*$B$3,-2) -> 92400
B41: ※低層を100として、中層（4～6階）は110、高層（7階以上）は115を適用
A42: 雨樋
B43: 10 | C43: 15 | D43: 20 | E43: 25 | F43: 30 | G43: 35 | H43: 40
A44: RC造なし標準 | C44: 7150 | F44: 7150
A45: RC造なし簡易 | B45: =ROUND(C44*$B$3,-2) -> 5700 | D45: =ROUND(F44*$B$3,-2) -> 5700 | F45: =ROUND(C44*$B$3,-2) -> 5700
A46: RC造あり標準 | C46: =ROUND(C44*$B$6,-2) -> 8600 | F46: =ROUND(F44*$B$6,-2) -> 8600
A47: RC造あり簡易 | B47: =ROUND(C46*$B$3,-2) -> 6900 | D47: =ROUND(F46*$B$3,-2) -> 6900 | F47: =ROUND(C46*$B$3,-2) -> 6900
A48: S造‐標準 | C48: 7150 | F48: 7150
A49: S造‐簡易 | B49: =ROUND(C48*$B$3,-2) -> 5700 | D49: =ROUND(F48*$B$3,-2) -> 5700 | F49: =ROUND(C48*$B$3,-2) -> 5700
A50: 木造‐標準 | C50: 7150 | F50: 7150
A51: 木造‐簡易 | B51: =ROUND(C50*$B$3,-2) -> 5700 | D51: =ROUND(F50*$B$3,-2) -> 5700 | F51: =ROUND(C50*$B$3,-2) -> 5700
A53: ベランダ
B54: 10 | C54: 15 | D54: 20 | E54: 25 | F54: 30 | G54: 35 | H54: 40
A55: RC造なし標準 | B55: 33000 | C55: 53900 | D55: 33000 | E55: 53900 | F55: 33000 | G55: 53900 | H55: 33000
A56: RC造なし簡易 | B56: =ROUND(B55*$B$3,-2) -> 26400 | C56: 43100 | D56: 26400 | E56: 43100 | F56: 26400 | G56: 43100 | H56: 26400
A57: RC造あり標準 | B57: =ROUND(B55*$B$10,-2) -> 39600 | C57: 64700 | D57: 39600 | E57: 64700 | F57: 39600 | G57: 64700 | H57: 39600
A58: RC造あり簡易 | B58: =ROUND(B57*$B$3,-2) -> 31700 | C58: 51800 | D58: 31700 | E58: 51800 | F58: 31700 | G58: 51800 | H58: 31700
A59: S造‐標準 | B59: 33000 | C59: 53900 | D59: 33000 | E59: 53900 | F59: 33000 | G59: 53900 | H59: 33000
A60: S造‐簡易 | B60: =ROUND(B59*$B$3,-2) -> 26400 | C60: 43100 | D60: 26400 | E60: 43100 | F60: 26400 | G60: 43100 | H60: 26400
A61: 木造‐標準 | B61: 33000 | C61: 53900 | D61: 33000 | E61: 53900 | F61: 33000 | G61: 53900 | H61: 33000
A62: 木造‐簡易 | B62: =ROUND(B61*$B$3,-2) -> 26400 | C62: 43100 | D62: 26400 | E62: 43100 | F62: 26400 | G62: 43100 | H62: 26400
A64: 階段廊下
B65: 10 | C65: 15 | D65: 20 | E65: 25 | F65: 30 | G65: 35 | H65: 40
A66: RC造なし標準 | B66: 20900 | C66: 49500 | D66: 20900 | E66: 49500 | F66: 20900 | G66: 49500 | H66: 20900
A67: RC造なし簡易 | B67: =ROUND(B66*$B$3,-2) -> 16700 | C67: 39600 | D67: 16700 | E67: 39600 | F67: 16700 | G67: 39600 | H67: 16700
A68: RC造あり標準 | B68: =ROUND(B66*$B$10,-2) -> 25100 | C68: 59400 | D68: 25100 | E68: 59400 | F68: 25100 | G68: 59400 | H68: 25100
A69: RC造あり簡易 | B69: =ROUND(B68*$B$3,-2) -> 20100 | C69: 47500 | D69: 20100 | E69: 47500 | F69: 20100 | G69: 47500 | H69: 20100
A70: S造‐標準 | B70: 20900 | C70: 49500 | D70: 20900 | E70: 49500 | F70: 20900 | G70: 49500 | H70: 20900
A71: S造‐簡易 | B71: =ROUND(B70*$B$3,-2) -> 16700 | C71: 39600 | D71: 16700 | E71: 39600 | F71: 16700 | G71: 39600 | H71: 16700
A72: 木造‐標準 | B72: 20900 | C72: 49500 | D72: 20900 | E72: 49500 | F72: 20900 | G72: 49500 | H72: 20900
A73: 木造‐簡易 | B73: =ROUND(B72*$B$3,-2) -> 16700 | C73: 39600 | D73: 16700 | E73: 39600 | F73: 16700 | G73: 39600 | H73: 16700
A75: 電気設備(EV等)
B76: 10 | C76: 15 | D76: 20 | E76: 25 | F76: 30 | G76: 35 | H76: 40
A77: RC造なし標準 | C77: 100000 | F77: 150000
A78: RC造なし簡易 | C78: 100000 | F78: 150000
A79: RC造あり標準 | C79: 250000 | F79: 300000
A80: RC造あり簡易 | C80: =C79 -> 250000 | F80: =F79 -> 300000
A81: S造‐標準 | C81: 50000 | F81: 75000
A82: S造‐簡易 | C82: =C81 -> 50000 | F82: =F81 -> 75000
A83: 木造‐標準 | C83: 50000 | F83: 75000
A84: 木造‐簡易 | C84: =C83 -> 50000 | F84: =F83 -> 75000
A86: 給排水管
B87: 10 | C87: 15 | D87: 20 | E87: 25 | F87: 30 | G87: 35 | H87: 40
A88: RC造なし標準 | B88: 5500 | C88: 5500 | D88: 5500 | E88: 5500 | F88: 5500 | G88: 5500 | H88: 5500
A89: RC造なし簡易 | B89: 5500 | C89: 5500 | D89: 5500 | E89: 5500 | F89: 5500 | G89: 5500 | H89: 5500
A90: RC造あり標準 | B90: =ROUND(B88*$B$10,-2) -> 6600 | C90: 6600 | D90: 6600 | E90: 6600 | F90: 6600 | G90: 6600 | H90: 6600
A91: RC造あり簡易 | B91: 6600 | C91: 6600 | D91: 6600 | E91: 6600 | F91: 6600 | G91: 6600 | H91: 6600
A92: S造‐標準 | B92: 5500 | C92: 5500 | D92: 5500 | E92: 5500 | F92: 5500 | G92: 5500 | H92: 5500
A93: S造‐簡易 | B93: 5500 | C93: 5500 | D93: 5500 | E93: 5500 | F93: 5500 | G93: 5500 | H93: 5500
A94: 木造‐標準 | B94: 5500 | C94: 5500 | D94: 5500 | E94: 5500 | F94: 5500 | G94: 5500 | H94: 5500
A95: 木造‐簡易 | B95: 5500 | C95: 5500 | D95: 5500 | E95: 5500 | F95: 5500 | G95: 5500 | H95: 5500
A97: 外構
B98: 10 | C98: 15 | D98: 20 | E98: 25 | F98: 30 | G98: 35 | H98: 40
A99: RC造なし標準 | C99: 143000 | F99: 143000
A100: RC造なし簡易 | C100: 143000 | F100: 143000
A101: RC造あり標準 | C101: =ROUND(C99*$B$6,-2) -> 171600 | F101: =ROUND(F99*$B$6,-2) -> 171600
A102: RC造あり簡易 | C102: 171600 | F102: 171600
A103: S造‐標準 | C103: 143000 | F103: 143000
A104: S造‐簡易 | C104: 143000 | F104: 143000
A105: 木造‐標準 | C105: 143000 | F105: 143000
A106: 木造‐簡易 | C106: 143000 | F106: 143000
A108: 給湯・風呂釜(交換)
B109: 10 | C109: 15 | D109: 20 | E109: 25 | F109: 30 | G109: 35 | H109: 40
A110: RC造標準 | C110: 110000 | F110: 110000
A111: RC造簡易 | C111: =C110*$D$3 -> 99000 | F111: =F110*$D$3 -> 99000
A112: S造標準 | C112: 110000 | F112: 110000
A113: S造簡易 | C113: =C112*$D$3 -> 99000 | F113: =F112*$D$3 -> 99000
A114: 木造標準 | C114: 110000 | F114: 110000
A115: 木造簡易 | C115: =C114*$D$3 -> 99000 | F115: =F114*$D$3 -> 99000
A117: エアコン(交換)
B118: 10 | C118: 15 | D118: 20 | E118: 25 | F118: 30 | G118: 35 | H118: 40
A119: RC造標準 | C119: 110000 | F119: 110000
A120: RC造簡易 | C120: =C119*$D$3 -> 99000 | F120: =F119*$D$3 -> 99000
A121: S造標準 | C121: 110000 | F121: 110000
A122: S造簡易 | C122: =C121*$D$3 -> 99000 | F122: =F121*$D$3 -> 99000
A123: 木造標準 | C123: 110000 | F123: 110000
A124: 木造簡易 | C124: =C123*$D$3 -> 99000 | F124: =F123*$D$3 -> 99000

Sheet 修繕費（小修繕故障対応）
A2: 部位 | B2: 5年 | C2: 10年 | D2: 15年 | E2: 20年 | F2: 25年 | G2: 30年 | H2: 35年 | I2: 40年 | J2: 40年累計 | K2: 単年平均
A3: 給湯・風呂釜 | B3: 4950 | C3: 4950 | E3: 4950 | F3: 4950 | H3: 4950 | I3: 4950 | J3: =SUM(B3:I3) -> 29700 | K3: =ROUND(J3/38,-1) -> 780
A4: エアコン | B4: 5500 | C4: 5500 | E4: 5500 | F4: 5500 | H4: 5500 | I4: 5500 | J4: 33000 | K4: =ROUND(J4/38,-1) -> 870
A5: 浴室設備 | B5: 5500 | C5: 22000 | D5: 5500 | E5: 22000 | F5: 5500 | G5: 22000 | H5: 5500 | I5: 22000 | J5: 110000 | K5: =ROUND(J5/40,-1) -> 2750
A6: 台所設備 | B6: 3300 | C6: 22000 | D6: 3300 | E6: 22000 | F6: 3300 | G6: 22000 | H6: 3300 | I6: 22000 | J6: 101200 | K6: =ROUND(J6/40,-1) -> 2530
A7: 洗面化粧台 | B7: 3300 | C7: 3300 | D7: 3300 | E7: 3300 | F7: 3300 | G7: 3300 | H7: 3300 | I7: 3300 | J7: 26400 | K7: =ROUND(J7/40,-1) -> 660
A8: トイレ | B8: 3300 | C8: 3300 | D8: 3300 | E8: 3300 | F8: 3300 | G8: 3300 | H8: 3300 | I8: 3300 | J8: 26400 | K8: =ROUND(J8/40,-1) -> 660
J9: 合計 | K9: =SUM(K3:K8) -> 8250
A11: 部位 | B11: 5年 | C11: 10年 | D11: 15年 | E11: 20年 | F11: 25年 | G11: 30年 | H11: 35年 | I11: 40年 | J11: 40年累計 | K11: 単年平均
A12: 給湯・風呂釜 | B12: 6600 | C12: 6600 | E12: 6600 | F12: 6600 | H12: 6600 | I12: 6600 | J12: =SUM(B12:I12) -> 39600 | K12: =ROUND(J12/38,-1) -> 1040
A13: エアコン | B13: 5500 | C13: 5500 | E13: 5500 | F13: 5500 | H13: 5500 | I13: 5500 | J13: 33000 | K13: =ROUND(J13/38,-1) -> 870
A14: 浴室設備 | B14: 5500 | C14: 44000 | D14: 5500 | E14: 44000 | F14: 5500 | G14: 44000 | H14: 5500 | I14: 44000 | J14: 198000 | K14: =ROUND(J14/40,-1) -> 4950
A15: 台所設備 | B15: 6600 | C15: 66000 | D15: 6600 | E15: 66000 | F15: 6600 | G15: 66000 | H15: 6600 | I15: 66000 | J15: 290400 | K15: =ROUND(J15/40,-1) -> 7260
A16: 洗面化粧台 | B16: 3300 | C16: 3300 | D16: 3300 | E16: 3300 | F16: 3300 | G16: 3300 | H16: 3300 | I16: 3300 | J16: 26400 | K16: =ROUND(J16/40,-1) -> 660
A17: トイレ | B17: 3300 | C17: 3300 | D17: 3300 | E17: 3300 | F17: 3300 | G17: 3300 | H17: 3300 | I17: 3300 | J17: 26400 | K17: =ROUND(J17/40,-1) -> 660
J18: 合計 | K18: =SUM(K12:K17) -> 15440
A19: S造標準 | B19: =$K$9 -> 8250
A20: S造簡易 | B20: =ROUND(B19*1.05,-1) -> 8660
A21: 木造標準 | B21: =$K$9 -> 8250
A22: 木造簡易 | B22: =ROUND(B21*1.05,-1) -> 8660
A23: RC造標準 | B23: =$K$18 -> 15440
A24: RC造簡易 | B24: =ROUND(B23*1.05,-1) -> 16210

Sheet 借入金
A1: 長期融資
B2: （元利均等）
B3: 銀行借入(万円) | C3: =賃貸住宅経営のセルチェックシート【入力シート】!$G$18/10000 -> 0 | D3: ※リンク
B4: 返済期間 | C4: =賃貸住宅経営のセルチェックシート【入力シート】!$AC$18 -> 0 | D4: ※リンク
B5: 設定金利 | C5: =賃貸住宅経営のセルチェックシート【入力シート】!$X$18 -> 0 | D5: ※リンク
B6: 毎年の支払額 | C6: =PMT(C5,C4,C3)*-1 ->  | D6: (万円)
C8: 1 | D8: 2 | E8: 3 | F8: 4 | G8: 5 | H8: 6 | I8: 7 | J8: 8 | K8: 9 | L8: 10 | M8: 11 | N8: 12 | O8: 13 | P8: 14 | Q8: 15 | R8: 16 | S8: 17 | T8: 18 | U8: 19 | V8: 20 | W8: 21 | X8: 22 | Y8: 23 | Z8: 24 | AA8: 25 | AB8: 26 | AC8: 27 | AD8: 28 | AE8: 29 | AF8: 30 | AG8: 31 | AH8: 32 | AI8: 33 | AJ8: 34 | AK8: 35 | AL8: 36 | AM8: 37 | AN8: 38 | AO8: 39 | AP8: 40 | AQ8: 41
B9: 借入金返済総額 | C9: =IF($C$4<C8,0,$C$6) -> 0 | D9: 0 | E9: 0 | F9: 0 | G9: 0 | H9: 0 | I9: 0 | J9: 0 | K9: 0 | L9: 0 | M9: 0 | N9: 0 | O9: 0 | P9: 0 | Q9: 0 | R9: 0 | S9: 0 | T9: 0 | U9: 0 | V9: 0 | W9: 0 | X9: 0 | Y9: 0 | Z9: 0 | AA9: 0 | AB9: 0 | AC9: 0 | AD9: 0 | AE9: 0 | AF9: 0 | AG9: 0 | AH9: 0 | AI9: 0 | AJ9: 0 | AK9: 0 | AL9: 0 | AM9: 0 | AN9: 0 | AO9: 0 | AP9: 0 | AQ9: 0
B10: 元本(借入金)返済 | C10: =IF(C8>$C$4,0,C9-C11) -> 0 | D10: 0 | E10: 0 | F10: 0 | G10: 0 | H10: 0 | I10: 0 | J10: 0 | K10: 0 | L10: 0 | M10: 0 | N10: 0 | O10: 0 | P10: 0 | Q10: 0 | R10: 0 | S10: 0 | T10: 0 | U10: 0 | V10: 0 | W10: 0 | X10: 0 | Y10: 0 | Z10: 0 | AA10: 0 | AB10: 0 | AC10: 0 | AD10: 0 | AE10: 0 | AF10: 0 | AG10: 0 | AH10: 0 | AI10: 0 | AJ10: 0 | AK10: 0 | AL10: 0 | AM10: 0 | AN10: 0 | AO10: 0 | AP10: 0 | AQ10: 0
B11: 支払利息 | C11: =IF(C8>$C$4,0,C3*($C$5)) -> 0 | D11: =IF(D8>$C$4,0,C13*($C$5)) -> 0 | E11: 0 | F11: 0 | G11: 0 | H11: 0 | I11: 0 | J11: 0 | K11: 0 | L11: 0 | M11: 0 | N11: 0 | O11: 0 | P11: 0 | Q11: 0 | R11: 0 | S11: 0 | T11: 0 | U11: 0 | V11: 0 | W11: 0 | X11: 0 | Y11: 0 | Z11: 0 | AA11: 0 | AB11: 0 | AC11: 0 | AD11: 0 | AE11: 0 | AF11: 0 | AG11: 0 | AH11: 0 | AI11: 0 | AJ11: 0 | AK11: 0 | AL11: 0 | AM11: 0 | AN11: 0 | AO11: 0 | AP11: 0 | AQ11: 0
B12: 合 計 | C12: =C10+C11 -> 0 | D12: 0 | E12: 0 | F12: 0 | G12: 0 | H12: 0 | I12: 0 | J12: 0 | K12: 0 | L12: 0 | M12: 0 | N12: 0 | O12: 0 | P12: 0 | Q12: 0 | R12: 0 | S12: 0 | T12: 0 | U12: 0 | V12: 0 | W12: 0 | X12: 0 | Y12: 0 | Z12: 0 | AA12: 0 | AB12: 0 | AC12: 0 | AD12: 0 | AE12: 0 | AF12: 0 | AG12: 0 | AH12: 0 | AI12: 0 | AJ12: 0 | AK12: 0 | AL12: 0 | AM12: 0 | AN12: 0 | AO12: 0 | AP12: 0 | AQ12: 0
B13: 借入金残高 | C13: =IF(C3-C10>0,C3-C10,0) -> 0 | D13: =IF(C13-D10>0,C13-D10,0) -> 0 | E13: 0 | F13: 0 | G13: 0 | H13: 0 | I13: 0 | J13: 0 | K13: 0 | L13: 0 | M13: 0 | N13: 0 | O13: 0 | P13: 0 | Q13: 0 | R13: 0 | S13: 0 | T13: 0 | U13: 0 | V13: 0 | W13: 0 | X13: 0 | Y13: 0 | Z13: 0 | AA13: 0 | AB13: 0 | AC13: 0 | AD13: 0 | AE13: 0 | AF13: 0 | AG13: 0 | AH13: 0 | AI13: 0 | AJ13: 0 | AK13: 0 | AL13: 0 | AM13: 0 | AN13: 0 | AO13: 0 | AP13: 0 | AQ13: 0

Sheet 固都税経年率
A1: 固都税経年計算
B2: 経過年数 | C2: 1 | D2: 2 | E2: 3 | F2: 4 | G2: 5 | H2: 6 | I2: 7 | J2: 8 | K2: 9 | L2: 10 | M2: 11 | N2: 12 | O2: 13 | P2: 14 | Q2: 15 | R2: 16 | S2: 17 | T2: 18 | U2: 19 | V2: 20 | W2: 21 | X2: 22 | Y2: 23 | Z2: 24 | AA2: 25 | AB2: 26 | AC2: 27 | AD2: 28 | AE2: 29 | AF2: 30 | AG2: 31 | AH2: 32 | AI2: 33 | AJ2: 34 | AK2: 35 | AL2: 36 | AM2: 37 | AN2: 38 | AO2: 39 | AP2: 40 | AQ2: 41 | AR2: 42 | AS2: 43 | AT2: 44 | AU2: 45 | AV2: 46 | AW2: 47 | AX2: 48 | AY2: 49 | AZ2: 50 | BA2: 51 | BB2: 52 | BC2: 53 | BD2: 54 | BE2: 55 | BF2: 56 | BG2: 57 | BH2: 58 | BI2: 59 | BJ2: 60
B3: RC | C3: 0.8000 | D3: 0.7500 | E3: 0.7000 | F3: 0.6912 | G3: 0.6825 | H3: 0.6737 | I3: 0.6649 | J3: 0.6561 | K3: 0.6474 | L3: 0.6386 | M3: 0.6298 | N3: 0.6211 | O3: 0.6123 | P3: 0.6035 | Q3: 0.5947 | R3: 0.5860 | S3: 0.5772 | T3: 0.5684 | U3: 0.5596 | V3: 0.5509 | W3: 0.5421 | X3: 0.5333 | Y3: 0.5246 | Z3: 0.5158 | AA3: 0.5070 | AB3: 0.4982 | AC3: 0.4895 | AD3: 0.4807 | AE3: 0.4719 | AF3: 0.4632 | AG3: 0.4544 | AH3: 0.4456 | AI3: 0.4368 | AJ3: 0.4281 | AK3: 0.4193 | AL3: 0.4105 | AM3: 0.4018 | AN3: 0.3930 | AO3: 0.3842 | AP3: 0.3754 | AQ3: 0.3667 | AR3: 0.3579 | AS3: 0.3491 | AT3: 0.3404 | AU3: 0.3316 | AV3: 0.3228 | AW3: 0.3140 | AX3: 0.3053 | AY3: 0.2965 | AZ3: 0.2877 | BA3: 0.2789 | BB3: 0.2702 | BC3: 0.2614 | BD3: 0.2526 | BE3: 0.2439 | BF3: 0.2351 | BG3: 0.2263 | BH3: 0.2175 | BI3: 0.2088 | BJ3: 0.2000
B4: 木造 | C4: 0.80 | D4: 0.75 | E4: 0.70 | F4: 0.68 | G4: 0.65 | H4: 0.63 | I4: 0.61 | J4: 0.59 | K4: 0.56 | L4: 0.54 | M4: 0.52 | N4: 0.50 | O4: 0.47 | P4: 0.45 | Q4: 0.43 | R4: 0.40 | S4: 0.38 | T4: 0.36 | U4: 0.34 | V4: 0.31 | W4: 0.29 | X4: 0.27 | Y4: 0.25 | Z4: 0.22 | AA4: 0.20 | AB4: 0.20 | AC4: 0.20 | AD4: 0.20 | AE4: 0.20 | AF4: 0.20 | AG4: 0.20 | AH4: 0.20 | AI4: 0.20 | AJ4: 0.20 | AK4: 0.20 | AL4: 0.20 | AM4: 0.20 | AN4: 0.20 | AO4: 0.20 | AP4: 0.20 | AQ4: 0.20 | AR4: 0.20 | AS4: 0.20 | AT4: 0.20 | AU4: 0.20 | AV4: 0.20 | AW4: 0.20 | AX4: 0.20 | AY4: 0.20 | AZ4: 0.20 | BA4: 0.20 | BB4: 0.20 | BC4: 0.20 | BD4: 0.20 | BE4: 0.20 | BF4: 0.20 | BG4: 0.20 | BH4: 0.20 | BI4: 0.20 | BJ4: 0.20

Sheet 算出基礎係数
A1: 構造 | B1: 法定耐用年数 | C1: 償却率 | D1: 保険料率 | E1: 入居期間 | F1: 入替率 | G1: 水準 | H1: 屋根 | I1: 外壁 | J1: code | L1: 賃料 | M1: 1 | N1: =M1+1 -> 2 | O1: 3 | P1: 4 | Q1: 5 | R1: 6 | S1: 7 | T1: 8 | U1: 9 | V1: 10 | W1: 11 | X1: 12 | Y1: 13 | Z1: 14 | AA1: 15 | AB1: 16 | AC1: 17 | AD1: 18 | AE1: 19 | AF1: 20 | AG1: 21 | AH1: 22 | AI1: 23 | AJ1: 24 | AK1: 25 | AL1: 26 | AM1: 27 | AN1: 28 | AO1: 29 | AP1: 30 | AQ1: 31 | AR1: 32 | AS1: 33 | AT1: 34 | AU1: 35 | AV1: 36 | AW1: 37 | AX1: 38 | AY1: 39 | AZ1: 40
A2: S造 | B2: 19 | C2: =1/19 -> 0.05263157895 | D2: 0.0012 | E2: 2 | F2: 0.5 | G2: 標準 | H2: 傾斜屋根 | I2: 塗装 | J2: 軽鉄 | L2: 2 | O2: =賃貸住宅経営のセルチェックシート【入力シート】!$AB$13 -> 0 | Q2: =賃貸住宅経営のセルチェックシート【入力シート】!$AB$13 -> 0 | S2: =賃貸住宅経営のセルチェックシート【入力シート】!$AB$13 -> 0 | U2: =賃貸住宅経営のセルチェックシート【入力シート】!$AB$13 -> 0 | W2: =賃貸住宅経営のセルチェックシート【入力シート】!$AB$13 -> 0 | Y2: =賃貸住宅経営のセルチェックシート【入力シート】!$AB$13 -> 0 | AA2: =賃貸住宅経営のセルチェックシート【入力シート】!$AB$13 -> 0 | AC2: =賃貸住宅経営のセルチェックシート【入力シート】!$AB$13 -> 0 | AE2: =賃貸住宅経営のセルチェックシート【入力シート】!$AB$13 -> 0 | AG2: =賃貸住宅経営のセルチェックシート【入力シート】!$AB$13 -> 0 | AI2: =賃貸住宅経営のセルチェックシート【入力シート】!$AB$13 -> 0 | AK2: =賃貸住宅経営のセルチェックシート【入力シート】!$AB$13 -> 0 | AM2: =賃貸住宅経営のセルチェックシート【入力シート】!$AB$13 -> 0 | AO2: =賃貸住宅経営のセルチェックシート【入力シート】!$AB$13 -> 0 | AQ2: =賃貸住宅経営のセルチェックシート【入力シート】!$AB$13 -> 0 | AS2: =賃貸住宅経営のセルチェックシート【入力シート】!$AB$13 -> 0 | AU2: =賃貸住宅経営のセルチェックシート【入力シート】!$AB$13 -> 0 | AW2: =賃貸住宅経営のセルチェックシート【入力シート】!$AB$13 -> 0 | AY2: =賃貸住宅経営のセルチェックシート【入力シート】!$AB$13 -> 0
A3: 木造 | B3: 22 | C3: =1/22 -> 0.04545454545 | D3: 0.0025 | E3: 4 | F3: 0.25 | G3: 簡易 | H3: 陸屋根 | I3: タイル | J3: 木 | L3: 4 | Q3: =賃貸住宅経営のセルチェックシート【入力シート】!$AB$13 -> 0 | U3: =賃貸住宅経営のセルチェックシート【入力シート】!$AB$13 -> 0 | Y3: =賃貸住宅経営のセルチェックシート【入力シート】!$AB$13 -> 0 | AC3: =賃貸住宅経営のセルチェックシート【入力シート】!$AB$13 -> 0 | AG3: =賃貸住宅経営のセルチェックシート【入力シート】!$AB$13 -> 0 | AK3: =賃貸住宅経営のセルチェックシート【入力シート】!$AB$13 -> 0 | AO3: =賃貸住宅経営のセルチェックシート【入力シート】!$AB$13 -> 0 | AS3: =賃貸住宅経営のセルチェックシート【入力シート】!$AB$13 -> 0 | AW3: =賃貸住宅経営のセルチェックシート【入力シート】!$AB$13 -> 0
A4: RC造 | B4: 47 | C4: =1/47 -> 0.02127659574 | D4: 0.0005 | I4: サイディング | J4: 鉄骨
L5: 空室率 | M5: 1 | N5: =M5+1 -> 2 | O5: 3 | P5: 4 | Q5: 5 | R5: 6 | S5: 7 | T5: 8 | U5: 9 | V5: 10 | W5: 11 | X5: 12 | Y5: 13 | Z5: 14 | AA5: 15 | AB5: 16 | AC5: 17 | AD5: 18 | AE5: 19 | AF5: 20 | AG5: 21 | AH5: 22 | AI5: 23 | AJ5: 24 | AK5: 25 | AL5: 26 | AM5: 27 | AN5: 28 | AO5: 29 | AP5: 30 | AQ5: 31 | AR5: 32 | AS5: 33 | AT5: 34 | AU5: 35 | AV5: 36 | AW5: 37 | AX5: 38 | AY5: 39 | AZ5: 40
A6: 構造 | B6: 外壁 | E6: 階層 | F6: 単価 | G6: 係数 | L6: 2 | O6: =賃貸住宅経営のセルチェックシート【入力シート】!$N$14 -> 0 | Q6: =賃貸住宅経営のセルチェックシート【入力シート】!$N$14 -> 0 | S6: =賃貸住宅経営のセルチェックシート【入力シート】!$N$14 -> 0 | U6: =賃貸住宅経営のセルチェックシート【入力シート】!$N$14 -> 0 | W6: =賃貸住宅経営のセルチェックシート【入力シート】!$N$14 -> 0 | Y6: =賃貸住宅経営のセルチェックシート【入力シート】!$N$14 -> 0 | AA6: =賃貸住宅経営のセルチェックシート【入力シート】!$N$14 -> 0 | AC6: =賃貸住宅経営のセルチェックシート【入力シート】!$N$14 -> 0 | AE6: =賃貸住宅経営のセルチェックシート【入力シート】!$N$14 -> 0 | AG6: =賃貸住宅経営のセルチェックシート【入力シート】!$N$14 -> 0 | AI6: =賃貸住宅経営のセルチェックシート【入力シート】!$N$14 -> 0 | AK6: =賃貸住宅経営のセルチェックシート【入力シート】!$N$14 -> 0 | AM6: =賃貸住宅経営のセルチェックシート【入力シート】!$N$14 -> 0 | AO6: =賃貸住宅経営のセルチェックシート【入力シート】!$N$14 -> 0 | AQ6: =賃貸住宅経営のセルチェックシート【入力シート】!$N$14 -> 0 | AS6: =賃貸住宅経営のセルチェックシート【入力シート】!$N$14 -> 0 | AU6: =賃貸住宅経営のセルチェックシート【入力シート】!$N$14 -> 0 | AW6: =賃貸住宅経営のセルチェックシート【入力シート】!$N$14 -> 0 | AY6: =賃貸住宅経営のセルチェックシート【入力シート】!$N$14 -> 0
A7: S造 | B7: 塗装 | C7: サイディング | E7: 低層 | F7: 1860 | G7: 1 | L7: 4 | Q7: =賃貸住宅経営のセルチェックシート【入力シート】!$N$14 -> 0 | U7: =賃貸住宅経営のセルチェックシート【入力シート】!$N$14 -> 0 | Y7: =賃貸住宅経営のセルチェックシート【入力シート】!$N$14 -> 0 | AC7: =賃貸住宅経営のセルチェックシート【入力シート】!$N$14 -> 0 | AG7: =賃貸住宅経営のセルチェックシート【入力シート】!$N$14 -> 0 | AK7: =賃貸住宅経営のセルチェックシート【入力シート】!$N$14 -> 0 | AO7: =賃貸住宅経営のセルチェックシート【入力シート】!$N$14 -> 0 | AS7: =賃貸住宅経営のセルチェックシート【入力シート】!$N$14 -> 0 | AW7: =賃貸住宅経営のセルチェックシート【入力シート】!$N$14 -> 0
A8: 木造 | B8: 塗装 | C8: サイディング | E8: 中層 | F8: 2050 | G8: =ROUND(F8/F7,2) -> 1.1
A9: RC造 | B9: 塗装 | C9: タイル | E9: 高層 | F9: 2130 | G9: =ROUND(F9/F7,2) -> 1.15
E10: ※（財）経済調査会「積算資料 マンション修繕編」
A11: auto | B11: =VLOOKUP(賃貸住宅経営のセルチェックシート【入力シート】!V9,$A$2:$J$4,10,FALSE) -> 
A12: 構造 | B12: EV
A13: 軽鉄 | B13: ‐ | C13: ‐
A14: 木 | B14: ‐ | C14: ‐
A15: 鉄骨 | B15: あり | C15: なし
A17: auto | B17: =VLOOKUP(賃貸住宅経営のセルチェックシート【入力シート】!V10,$A$19:$B$68,2) -> 
A18: 階建 | B18: 係数 | D18: 改定率
A19: 1 | B19: =$G$7 -> 1 | D19: -0.005
A20: 2 | B20: =$G$7 -> 1 | D20: =D19-0.005 -> -0.01
A21: 3 | B21: =$G$7 -> 1 | D21: -0.015
A22: 4 | B22: =$G$8 -> 1.1 | D22: -0.02
A23: 5 | B23: =$G$8 -> 1.1 | D23: -0.025
A24: 6 | B24: =$G$8 -> 1.1 | D24: -0.03
A25: 7 | B25: =$G$9 -> 1.15 | D25: -0.035
A26: 8 | B26: 1.15 | D26: -0.04
A27: 9 | B27: 1.15 | D27: -0.045
A28: 10 | B28: 1.15 | D28: -0.05
A29: 11 | B29: 1.15
A30: 12 | B30: 1.15
A31: 13 | B31: 1.15
A32: 14 | B32: 1.15
A33: 15 | B33: 1.15
A34: 16 | B34: 1.15
A35: 17 | B35: 1.15
A36: 18 | B36: 1.15
A37: 19 | B37: 1.15
A38: 20 | B38: 1.15
A39: 21 | B39: 1.15
A40: 22 | B40: 1.15
A41: 23 | B41: 1.15
A42: 24 | B42: 1.15
A43: 25 | B43: 1.15
A44: 26 | B44: 1.15
A45: 27 | B45: 1.15
A46: 28 | B46: 1.15
A47: 29 | B47: 1.15
A48: 30 | B48: 1.15
A49: 31 | B49: 1.15
A50: 32 | B50: 1.15
A51: 33 | B51: 1.15
A52: 34 | B52: 1.15
A53: 35 | B53: 1.15
A54: 36 | B54: 1.15
A55: 37 | B55: 1.15
A56: 38 | B56: 1.15
A57: 39 | B57: 1.15
A58: 40 | B58: 1.15
A59: 41 | B59: 1.15
A60: 42 | B60: 1.15
A61: 43 | B61: 1.15
A62: 44 | B62: 1.15
A63: 45 | B63: 1.15
A64: 46 | B64: 1.15
A65: 47 | B65: 1.15
A66: 48 | B66: 1.15
A67: 49 | B67: 1.15
A68: 50 | B68: 1.15

Sheet Sheet3 (hidden)

Sheet W1 修繕なし (hidden)
C3: =#REF! ->  | D3: =#REF! ->  | E3: =#REF! -> 
C4: =#REF! ->  | D4: =#REF! ->  | E4: =#REF! -> 
E5: =#REF! -> 
C6: 戸数 | E6: =#REF! -> 
C7: 家賃(万円/月) | E7: =#REF! ->  | G7: =E6*E7*12 ->  | H7: 満室時賃料 | J7: 建設費
C8: 駐車場(万円/月) | E8: =#REF! ->  | J8: 大都市部 | K8: =#REF! -> 
C9: 建物建設費(万円) | E9: =#REF! ->  | F9: 設備等込 | J9: 地方部 | K9: =#REF! -> 
J10: 調整比率 | K10: =#REF! ->  | L10: ※地方部で使用
C11: 自己資金 | E11: =#REF! -> 
C12: 銀行借り入れ | E12: =#REF! -> 
C13: 返済期間 | E13: =#REF! -> 
C14: 金利 | E14: =#REF! -> 
C16: 建物管理 | E16: =#REF! ->  | F16: 満室賃料に対して
C17: 保険料(万円/年) | E17: =#REF! -> 
C18: 建築面積 | D18: ㎡ | E18: =#REF! ->  | G18: 延べ床面積 | H18: =#REF! ->  | I18: =#REF! ->  | J18: =#REF! ->  | K18: 万円
C19: 敷地面積 | D19: ㎡ | E19: =#REF! -> 
C20: 土地単価 | D20: 万円/㎡ | E20: =#REF! -> 
C21: 土地価格 | E21: =#REF! ->  | F21: 計算
C22: 土地 課税標準 | E22: =#REF! ->  | F22: 計算
C23: 大規模修繕 | E23: =#REF! -> 
C24: 修繕費積立
C25: 減価償却率 | D25: RC 47年 | E25: =#REF! -> 
D26: W 22年 | E26: =#REF! -> 
G27: 実収入率 | H27: 0.95 | I27: 0.95 | J27: 0.95 | K27: 0.95 | L27: 0.95 | M27: =L27-0.01 -> 0.94 | N27: 0.93 | O27: 0.92 | P27: 0.91 | Q27: 0.9 | R27: 0.89 | S27: 0.88 | T27: 0.87 | U27: 0.86 | V27: 0.85 | W27: 0.84 | X27: 0.83 | Y27: 0.82 | Z27: 0.81 | AA27: 0.8 | AB27: 0.79 | AC27: 0.78 | AD27: 0.77 | AE27: 0.76 | AF27: 0.75 | AG27: 0.74 | AH27: 0.73 | AI27: 0.72 | AJ27: 0.71 | AK27: 0.7 | AL27: 0.69 | AM27: 0.68 | AN27: 0.67 | AO27: 0.66 | AP27: 0.65
J32: （単位：万円）
E33: （単位：万円） | G33: 0 | H33: 1 | I33: =H33+1 -> 2 | J33: 3 | K33: 4 | L33: 5 | M33: 6 | N33: 7 | O33: 8 | P33: 9 | Q33: 10 | R33: 11 | S33: 12 | T33: 13 | U33: 14 | V33: 15 | W33: 16 | X33: 17 | Y33: 18 | Z33: 19 | AA33: 20 | AB33: 21 | AC33: 22 | AD33: 23 | AE33: 24 | AF33: 25 | AG33: 26 | AH33: 27 | AI33: 28 | AJ33: 29 | AK33: 30 | AL33: 31 | AM33: 32 | AN33: 33 | AO33: 34 | AP33: 35
D34: 収入 | E34: 家賃収入 | H34: =$G$7*H27 -> 
E35: 銀行借入（長期） | G35: =E12 -> 
E36: 銀行借入（短期） | V36: =V29 -> 0 | AF36: =AF29 -> 0
E37: 自己資金 | G37: =E11 ->  | V37: =V30 -> 0 | AF37: =AF30 -> 0
E38: (修繕積立金 取り崩し）
E39: 収入計 | G39: =SUM(G34:G38) -> 
E40: 建物建設費（初期建設費） | G40: =E9 -> 
C41: 収支計算 | E41: 建物管理費(募集・管理委託等) | H41: =$G$7*0.05 -> 
E42: 保険料 | H42: =$E$17 -> 
E43: 原状回復費用 | H43: =IF(MOD(H33,4)=0,$E$7,"0") -> 0 | I43: 0 | J43: 0 | L43: 0 | M43: 0 | N43: 0 | P43: 0 | Q43: 0 | R43: 0 | T43: 0 | U43: 0 | V43: 0 | X43: 0 | Y43: 0 | Z43: 0 | AB43: 0 | AC43: 0 | AD43: 0 | AF43: 0 | AG43: 0 | AH43: 0 | AJ43: 0 | AK43: 0 | AL43: 0 | AN43: 0 | AO43: 0 | AP43: 0
D44: 支出 | E44: 修繕費 | F44: ※ | BG44: =SUM(H44:BE44)/50 -> 0
E45: 修繕積立金
E46: 借入金返済 | F46: ※ | H46: =借入金!C12 -> 0 | I46: =借入金!D12 -> 0 | J46: =借入金!E12 -> 0 | K46: =借入金!F12 -> 0 | L46: =借入金!G12 -> 0 | M46: =借入金!H12 -> 0 | N46: =借入金!I12 -> 0 | O46: =借入金!J12 -> 0 | P46: =借入金!K12 -> 0 | Q46: =借入金!L12 -> 0 | R46: =借入金!M12 -> 0 | S46: =借入金!N12 -> 0 | T46: =借入金!O12 -> 0 | U46: =借入金!P12 -> 0 | V46: =借入金!Q12 -> 0 | W46: =借入金!R12 -> 0 | X46: =借入金!S12 -> 0 | Y46: =借入金!T12 -> 0 | Z46: =借入金!U12 -> 0 | AA46: =借入金!V12 -> 0 | AB46: =借入金!W12 -> 0 | AC46: =借入金!X12 -> 0 | AD46: =借入金!Y12 -> 0 | AE46: =借入金!Z12 -> 0 | AF46: =借入金!AA12 -> 0 | AG46: =借入金!AB12 -> 0 | AH46: =借入金!AC12 -> 0 | AI46: =借入金!AD12 -> 0 | AJ46: =借入金!AE12 -> 0 | AK46: =借入金!AF12 -> 0
E47: 借入金(短期)返済 | F47: ※
E48: 固定資産税・都市計画税 | F48: ※ | H48: =($E$9+$E$22)*固都税経年率!C4*(0.014+0.003) ->  | I48: =($E$9+$E$22)*固都税経年率!D4*(0.014+0.003) ->  | J48: =($E$9+$E$22)*固都税経年率!E4*(0.014+0.003) ->  | K48: =($E$9+$E$22)*固都税経年率!F4*(0.014+0.003) ->  | L48: =($E$9+$E$22)*固都税経年率!G4*(0.014+0.003) ->  | M48: =($E$9+$E$22)*固都税経年率!H4*(0.014+0.003) ->  | N48: =($E$9+$E$22)*固都税経年率!I4*(0.014+0.003) ->  | O48: =($E$9+$E$22)*固都税経年率!J4*(0.014+0.003) ->  | P48: =($E$9+$E$22)*固都税経年率!K4*(0.014+0.003) ->  | Q48: =($E$9+$E$22)*固都税経年率!L4*(0.014+0.003) ->  | R48: =($E$9+$E$22)*固都税経年率!M4*(0.014+0.003) ->  | S48: =($E$9+$E$22)*固都税経年率!N4*(0.014+0.003) ->  | T48: =($E$9+$E$22)*固都税経年率!O4*(0.014+0.003) ->  | U48: =($E$9+$E$22)*固都税経年率!P4*(0.014+0.003) ->  | V48: =($E$9+$E$22)*固都税経年率!Q4*(0.014+0.003) ->  | W48: =($E$9+$E$22)*固都税経年率!R4*(0.014+0.003) ->  | X48: =($E$9+$E$22)*固都税経年率!S4*(0.014+0.003) ->  | Y48: =($E$9+$E$22)*固都税経年率!T4*(0.014+0.003) ->  | Z48: =($E$9+$E$22)*固都税経年率!U4*(0.014+0.003) ->  | AA48: =($E$9+$E$22)*固都税経年率!V4*(0.014+0.003) ->  | AB48: =($E$9+$E$22)*固都税経年率!W4*(0.014+0.003) ->  | AC48: =($E$9+$E$22)*固都税経年率!X4*(0.014+0.003) ->  | AD48: =($E$9+$E$22)*固都税経年率!Y4*(0.014+0.003) ->  | AE48: =($E$9+$E$22)*固都税経年率!Z4*(0.014+0.003) ->  | AF48: =($E$9+$E$22)*固都税経年率!AA4*(0.014+0.003) ->  | AG48: =($E$9+$E$22)*固都税経年率!AB4*(0.014+0.003) ->  | AH48: =($E$9+$E$22)*固都税経年率!AC4*(0.014+0.003) ->  | AI48: =($E$9+$E$22)*固都税経年率!AD4*(0.014+0.003) ->  | AJ48: =($E$9+$E$22)*固都税経年率!AE4*(0.014+0.003) ->  | AK48: =($E$9+$E$22)*固都税経年率!AF4*(0.014+0.003) ->  | AL48: =($E$9+$E$22)*固都税経年率!AG4*(0.014+0.003) ->  | AM48: =($E$9+$E$22)*固都税経年率!AH4*(0.014+0.003) ->  | AN48: =($E$9+$E$22)*固都税経年率!AI4*(0.014+0.003) ->  | AO48: =($E$9+$E$22)*固都税経年率!AJ4*(0.014+0.003) ->  | AP48: =($E$9+$E$22)*固都税経年率!AK4*(0.014+0.003) -> 
E49: 所得税等 | H49: =MAX(H65*0.33,0) -> 
E50: 支出計 | G50: =SUM(G40:G49) -> 
D51: 収支 | E51: 手元資金残金（年） | G51: =G39-G50 -> 
E52: 手元資金残金（累計） | G52: =-1*G39 ->  | H52: =G52+H51 -> 
D53: 収益 | E53: （収入計：修繕積立金取崩し除く) | H53: =H34 -> 
E54: 建物管理費(募集・管理委託等) | H54: =$G$7*0.05 -> 
C55: P/L | D55: 営業費用 | E55: 修繕費 | H55: =H44 -> 0 | I55: 0 | J55: 0 | K55: 0 | L55: 0 | M55: 0 | N55: 0 | O55: 0 | P55: 0 | Q55: 0 | R55: 0 | S55: 0 | T55: 0 | U55: 0 | V55: 0 | W55: 0 | X55: 0 | Y55: 0 | Z55: 0 | AA55: 0 | AB55: 0 | AC55: 0 | AD55: 0 | AE55: 0 | AF55: 0 | AG55: 0 | AH55: 0 | AI55: 0 | AJ55: 0 | AK55: 0 | AL55: 0 | AM55: 0 | AN55: 0 | AO55: 0 | AP55: 0
C56: 損益計算 | E56: 保険料 | H56: =H42 -> 
E57: 固定資産税・都市計画税 | H57: =H48 -> 
E58: 修繕積立金
E59: 営業費用計 | H59: =SUM(H54:H58) -> 
D60: 償却前利益 | E60: （営業収入と同値） | H60: =H53-H59 -> 
E61: 減価償却費(定額法) | H61: =$E$9*$E$26 ->  | BF61: ← 注意 22年まで
D62: 営業外費用 | E62: 支払利息 | F62: ※ | H62: =借入金!C11 -> 0 | I62: =借入金!D11 -> 0 | J62: =借入金!E11 -> 0 | K62: =借入金!F11 -> 0 | L62: =借入金!G11 -> 0 | M62: =借入金!H11 -> 0 | N62: =借入金!I11 -> 0 | O62: =借入金!J11 -> 0 | P62: =借入金!K11 -> 0 | Q62: =借入金!L11 -> 0 | R62: =借入金!M11 -> 0 | S62: =借入金!N11 -> 0 | T62: =借入金!O11 -> 0 | U62: =借入金!P11 -> 0 | V62: =借入金!Q11 -> 0 | W62: =借入金!R11 -> 0 | X62: =借入金!S11 -> 0 | Y62: =借入金!T11 -> 0 | Z62: =借入金!U11 -> 0 | AA62: =借入金!V11 -> 0 | AB62: =借入金!W11 -> 0 | AC62: =借入金!X11 -> 0 | AD62: =借入金!Y11 -> 0 | AE62: =借入金!Z11 -> 0 | AF62: =借入金!AA11 -> 0 | AG62: =借入金!AB11 -> 0 | AH62: =借入金!AC11 -> 0 | AI62: =借入金!AD11 -> 0 | AJ62: =借入金!AE11 -> 0 | AK62: =借入金!AF11 -> 0
E63: 支払利息(短期分) | F63: ※
E64: 営業外費用計 | H64: =SUM(H61:H63) ->  | AD64: 0 | AE64: 0 | AF64: 0 | AG64: 0 | AH64: 0 | AI64: 0 | AJ64: 0 | AK64: 0 | AL64: 0 | AM64: 0 | AN64: 0 | AO64: 0 | AP64: 0
D65: 税引前利益(償却後利益) | H65: =H60-H64 -> 
D66: 所得税 | H66: =MAX(H65*0.33,0) -> 
D67: 当期利益 | H67: =H65-H66 -> 
D68: 当期利益累計 | H68: =H67 ->  | I68: =H68+I67 -> 
D69: 投下資本未回収残高(積立金除く) | G69: =-1*G50 ->  | H69: =G69+IF(H51>0,H51,0)-SUM(H36:H37) -> 
D70: 修繕積立金累計額 | H70: =G70+H45-H38 -> 0 | I70: 0 | J70: 0 | K70: 0 | L70: 0 | M70: 0 | N70: 0 | O70: 0 | P70: 0 | Q70: 0 | R70: 0 | S70: 0 | T70: 0 | U70: 0 | V70: 0 | W70: 0 | X70: 0 | Y70: 0 | Z70: 0 | AA70: 0 | AB70: 0 | AC70: 0 | AD70: 0 | AE70: 0 | AF70: 0 | AG70: 0 | AH70: 0 | AI70: 0 | AJ70: 0 | AK70: 0 | AL70: 0 | AM70: 0 | AN70: 0 | AO70: 0 | AP70: 0
F71: ※は別シートとリンク

Sheet W1修繕あり-積立なし-短期融資 (hidden)
C3: =#REF! ->  | D3: =#REF! ->  | E3: =#REF! -> 
C4: =#REF! ->  | D4: =#REF! ->  | E4: =#REF! -> 
E5: =#REF! -> 
C6: 戸数 | E6: =#REF! -> 
C7: 家賃(万円/月) | E7: =#REF! ->  | G7: =E6*E7*12 ->  | H7: 満室時賃料 | J7: 建設費
C8: 駐車場(万円/月) | E8: =#REF! ->  | J8: 大都市部 | K8: =#REF! -> 
C9: 建物建設費(万円) | E9: =#REF! ->  | F9: 設備等込 | J9: 地方部 | K9: =#REF! -> 
J10: 調整比率 | K10: =#REF! ->  | L10: ※地方部で使用
C11: 自己資金 | E11: =#REF! -> 
C12: 銀行借り入れ | E12: =#REF! -> 
C13: 返済期間 | E13: =#REF! -> 
C14: 金利 | E14: =#REF! -> 
C16: 建物管理 | E16: =#REF! ->  | F16: 満室賃料に対して
C17: 保険料(万円/年) | E17: =#REF! -> 
C18: 建築面積 | D18: ㎡ | E18: =#REF! ->  | G18: 延べ床面積 | H18: =#REF! ->  | I18: =#REF! ->  | J18: =#REF! ->  | K18: 万円
C19: 敷地面積 | D19: ㎡ | E19: =#REF! -> 
C20: 土地単価 | D20: 万円/㎡ | E20: =#REF! -> 
C21: 土地価格 | E21: =#REF! ->  | F21: 計算
C22: 土地 課税標準 | E22: =#REF! ->  | F22: 計算
C23: 大規模修繕 | E23: =#REF! -> 
C24: 修繕費積立
C25: 減価償却率 | D25: RC 47年 | E25: =#REF! -> 
D26: W 22年 | E26: =#REF! -> 
G27: 実収入率 | H27: 0.95 | I27: 0.95 | J27: 0.95 | K27: 0.95 | L27: 0.95 | M27: =L27-0.01 -> 0.94 | N27: =M27-0.01 -> 0.93 | O27: =N27-0.01 -> 0.92 | P27: =O27-0.01 -> 0.91 | Q27: =P27-0.01 -> 0.9 | R27: =Q27+0.05 -> 0.95 | S27: =R27-0.01 -> 0.94 | T27: =S27-0.01 -> 0.93 | U27: =T27-0.01 -> 0.92 | V27: =U27-0.01 -> 0.91 | W27: =V27+0.04 -> 0.95 | X27: =W27-0.01 -> 0.94 | Y27: =X27-0.01 -> 0.93 | Z27: =Y27-0.01 -> 0.92 | AA27: =Z27-0.01 -> 0.91 | AB27: =AA27+0.04 -> 0.95 | AC27: =AB27-0.01 -> 0.94 | AD27: =AC27-0.01 -> 0.93 | AE27: =AD27-0.01 -> 0.92 | AF27: =AE27-0.01 -> 0.91 | AG27: =AF27+0.04 -> 0.95 | AH27: =AG27-0.01 -> 0.94 | AI27: =AH27-0.01 -> 0.93 | AJ27: =AI27-0.01 -> 0.92 | AK27: =AJ27-0.01 -> 0.91 | AL27: =AK27+0.04 -> 0.95 | AM27: =AL27-0.01 -> 0.94 | AN27: =AM27-0.01 -> 0.93 | AO27: =AN27-0.01 -> 0.92 | AP27: =AO27-0.01 -> 0.91
G29: 銀行借入（短期） | V29: 150 | AF29: 400
J32: （単位：万円）
E33: （単位：万円） | G33: 0 | H33: 1 | I33: =H33+1 -> 2 | J33: 3 | K33: 4 | L33: 5 | M33: 6 | N33: 7 | O33: 8 | P33: 9 | Q33: 10 | R33: 11 | S33: 12 | T33: 13 | U33: 14 | V33: 15 | W33: 16 | X33: 17 | Y33: 18 | Z33: 19 | AA33: 20 | AB33: 21 | AC33: 22 | AD33: 23 | AE33: 24 | AF33: 25 | AG33: 26 | AH33: 27 | AI33: 28 | AJ33: 29 | AK33: 30 | AL33: 31 | AM33: 32 | AN33: 33 | AO33: 34 | AP33: 35
D34: 収入 | E34: 家賃収入 | H34: =$G$7*H27 -> 
E35: 銀行借入（長期） | G35: =E12 -> 
E36: 銀行借入（短期） | V36: =V29 -> 150 | AF36: =AF29 -> 400
E37: 自己資金 | G37: =E11 ->  | V37: =V30 -> 0 | AF37: =AF30 -> 0
E38: (修繕積立金 取り崩し） | H38: =IF((H43+H44)>G70,G70,(H43+H44)) -> 
E39: 収入計 | G39: =SUM(G34:G38) -> 
E40: 建物建設費（初期建設費） | G40: =E9 -> 
C41: 収支計算 | E41: 建物管理費(募集・管理委託等) | H41: =$G$7*0.05 -> 
E42: 保険料 | H42: =$E$17 -> 
E43: 原状回復費用 | H43: =IF(MOD(H33,4)=0,$E$7,"0") -> 0 | I43: 0 | J43: 0 | L43: 0 | M43: 0 | N43: 0 | P43: 0 | Q43: 0 | R43: 0 | T43: 0 | U43: 0 | V43: 0 | X43: 0 | Y43: 0 | Z43: 0 | AB43: 0 | AC43: 0 | AD43: 0 | AF43: 0 | AG43: 0 | AH43: 0 | AJ43: 0 | AK43: 0 | AL43: 0 | AN43: 0 | AO43: 0 | AP43: 0
D44: 支出 | E44: 修繕費 | F44: ※ | H44: =#REF!*$E$6/10000 ->  | I44: =#REF!*$E$6/10000 ->  | J44: =#REF!*$E$6/10000 ->  | K44: =#REF!*$E$6/10000 ->  | L44: =#REF!*$E$6/10000 ->  | M44: =#REF!*$E$6/10000 ->  | N44: =#REF!*$E$6/10000 ->  | O44: =#REF!*$E$6/10000 ->  | P44: =#REF!*$E$6/10000 ->  | Q44: =#REF!*$E$6/10000 ->  | R44: =#REF!*$E$6/10000 ->  | S44: =#REF!*$E$6/10000 ->  | T44: =#REF!*$E$6/10000 ->  | U44: =#REF!*$E$6/10000 ->  | V44: =#REF!*$E$6/10000 ->  | W44: =#REF!*$E$6/10000 ->  | X44: =#REF!*$E$6/10000 ->  | Y44: =#REF!*$E$6/10000 ->  | Z44: =#REF!*$E$6/10000 ->  | AA44: =#REF!*$E$6/10000 ->  | AB44: =#REF!*$E$6/10000 ->  | AC44: =#REF!*$E$6/10000 ->  | AD44: =#REF!*$E$6/10000 ->  | AE44: =#REF!*$E$6/10000 ->  | AF44: =#REF!*$E$6/10000 ->  | AG44: =#REF!*$E$6/10000 ->  | AH44: =#REF!*$E$6/10000 ->  | AI44: =#REF!*$E$6/10000 ->  | AJ44: =#REF!*$E$6/10000 ->  | AK44: =#REF!*$E$6/10000 ->  | AL44: =#REF!*$E$6/10000 ->  | AM44: =#REF!*$E$6/10000 ->  | AN44: =#REF!*$E$6/10000 ->  | AO44: =#REF!*$E$6/10000 ->  | AP44: =#REF!*$E$6/10000 ->  | BG44: =SUM(H44:BE44)/50 -> 
E45: 修繕積立金
E46: 借入金返済 | F46: ※ | H46: =借入金!C12 -> 0 | I46: =借入金!D12 -> 0 | J46: =借入金!E12 -> 0 | K46: =借入金!F12 -> 0 | L46: =借入金!G12 -> 0 | M46: =借入金!H12 -> 0 | N46: =借入金!I12 -> 0 | O46: =借入金!J12 -> 0 | P46: =借入金!K12 -> 0 | Q46: =借入金!L12 -> 0 | R46: =借入金!M12 -> 0 | S46: =借入金!N12 -> 0 | T46: =借入金!O12 -> 0 | U46: =借入金!P12 -> 0 | V46: =借入金!Q12 -> 0 | W46: =借入金!R12 -> 0 | X46: =借入金!S12 -> 0 | Y46: =借入金!T12 -> 0 | Z46: =借入金!U12 -> 0 | AA46: =借入金!V12 -> 0 | AB46: =借入金!W12 -> 0 | AC46: =借入金!X12 -> 0 | AD46: =借入金!Y12 -> 0 | AE46: =借入金!Z12 -> 0 | AF46: =借入金!AA12 -> 0 | AG46: =借入金!AB12 -> 0 | AH46: =借入金!AC12 -> 0 | AI46: =借入金!AD12 -> 0 | AJ46: =借入金!AE12 -> 0 | AK46: =借入金!AF12 -> 0 | AL46: =借入金!AG12 -> 0
E47: 借入金(短期)返済 | F47: ※ | W47: =#REF! ->  | X47: =#REF! ->  | Y47: =#REF! ->  | Z47: =#REF! ->  | AG47: =#REF! ->  | AH47: =#REF! ->  | AI47: =#REF! ->  | AJ47: =#REF! ->  | AK47: =#REF! ->  | AL47: =#REF! -> 
E48: 固定資産税・都市計画税 | F48: ※ | H48: =($E$9+$E$22)*固都税経年率!C4*(0.014+0.003) ->  | I48: =($E$9+$E$22)*固都税経年率!D4*(0.014+0.003) ->  | J48: =($E$9+$E$22)*固都税経年率!E4*(0.014+0.003) ->  | K48: =($E$9+$E$22)*固都税経年率!F4*(0.014+0.003) ->  | L48: =($E$9+$E$22)*固都税経年率!G4*(0.014+0.003) ->  | M48: =($E$9+$E$22)*固都税経年率!H4*(0.014+0.003) ->  | N48: =($E$9+$E$22)*固都税経年率!I4*(0.014+0.003) ->  | O48: =($E$9+$E$22)*固都税経年率!J4*(0.014+0.003) ->  | P48: =($E$9+$E$22)*固都税経年率!K4*(0.014+0.003) ->  | Q48: =($E$9+$E$22)*固都税経年率!L4*(0.014+0.003) ->  | R48: =($E$9+$E$22)*固都税経年率!M4*(0.014+0.003) ->  | S48: =($E$9+$E$22)*固都税経年率!N4*(0.014+0.003) ->  | T48: =($E$9+$E$22)*固都税経年率!O4*(0.014+0.003) ->  | U48: =($E$9+$E$22)*固都税経年率!P4*(0.014+0.003) ->  | V48: =($E$9+$E$22)*固都税経年率!Q4*(0.014+0.003) ->  | W48: =($E$9+$E$22)*固都税経年率!R4*(0.014+0.003) ->  | X48: =($E$9+$E$22)*固都税経年率!S4*(0.014+0.003) ->  | Y48: =($E$9+$E$22)*固都税経年率!T4*(0.014+0.003) ->  | Z48: =($E$9+$E$22)*固都税経年率!U4*(0.014+0.003) ->  | AA48: =($E$9+$E$22)*固都税経年率!V4*(0.014+0.003) ->  | AB48: =($E$9+$E$22)*固都税経年率!W4*(0.014+0.003) ->  | AC48: =($E$9+$E$22)*固都税経年率!X4*(0.014+0.003) ->  | AD48: =($E$9+$E$22)*固都税経年率!Y4*(0.014+0.003) ->  | AE48: =($E$9+$E$22)*固都税経年率!Z4*(0.014+0.003) ->  | AF48: =($E$9+$E$22)*固都税経年率!AA4*(0.014+0.003) ->  | AG48: =($E$9+$E$22)*固都税経年率!AB4*(0.014+0.003) ->  | AH48: =($E$9+$E$22)*固都税経年率!AC4*(0.014+0.003) ->  | AI48: =($E$9+$E$22)*固都税経年率!AD4*(0.014+0.003) ->  | AJ48: =($E$9+$E$22)*固都税経年率!AE4*(0.014+0.003) ->  | AK48: =($E$9+$E$22)*固都税経年率!AF4*(0.014+0.003) ->  | AL48: =($E$9+$E$22)*固都税経年率!AG4*(0.014+0.003) ->  | AM48: =($E$9+$E$22)*固都税経年率!AH4*(0.014+0.003) ->  | AN48: =($E$9+$E$22)*固都税経年率!AI4*(0.014+0.003) ->  | AO48: =($E$9+$E$22)*固都税経年率!AJ4*(0.014+0.003) ->  | AP48: =($E$9+$E$22)*固都税経年率!AK4*(0.014+0.003) -> 
E49: 所得税等 | H49: =MAX(H65*0.33,0) -> 
E50: 支出計 | G50: =SUM(G40:G49) -> 
D51: 収支 | E51: 手元資金残金（年） | G51: =G39-G50 -> 
E52: 手元資金残金（累計） | G52: =-1*G39 ->  | H52: =G52+H51 -> 
D53: 収益 | E53: （収入計：修繕積立金取崩し除く) | H53: =H34 -> 
E54: 建物管理費(募集・管理委託等) | H54: =$G$7*0.05 -> 
C55: P/L | D55: 営業費用 | E55: 修繕費 | H55: =H44 -> 
C56: 損益計算 | E56: 保険料 | H56: =H42 -> 
E57: 固定資産税・都市計画税 | H57: =H48 -> 
E58: 修繕積立金
E59: 営業費用計 | H59: =SUM(H54:H58) -> 
D60: 償却前利益 | E60: （営業収入と同値） | H60: =H53-H59 -> 
E61: 減価償却費(定額法) | H61: =$E$9*$E$26 ->  | BF61: ← 注意 22年まで
D62: 営業外費用 | E62: 支払利息 | F62: ※ | H62: =借入金!C11 -> 0 | I62: =借入金!D11 -> 0 | J62: =借入金!E11 -> 0 | K62: =借入金!F11 -> 0 | L62: =借入金!G11 -> 0 | M62: =借入金!H11 -> 0 | N62: =借入金!I11 -> 0 | O62: =借入金!J11 -> 0 | P62: =借入金!K11 -> 0 | Q62: =借入金!L11 -> 0 | R62: =借入金!M11 -> 0 | S62: =借入金!N11 -> 0 | T62: =借入金!O11 -> 0 | U62: =借入金!P11 -> 0 | V62: =借入金!Q11 -> 0 | W62: =借入金!R11 -> 0 | X62: =借入金!S11 -> 0 | Y62: =借入金!T11 -> 0 | Z62: =借入金!U11 -> 0 | AA62: =借入金!V11 -> 0 | AB62: =借入金!W11 -> 0 | AC62: =借入金!X11 -> 0 | AD62: =借入金!Y11 -> 0 | AE62: =借入金!Z11 -> 0 | AF62: =借入金!AA11 -> 0 | AG62: =借入金!AB11 -> 0 | AH62: =借入金!AC11 -> 0 | AI62: =借入金!AD11 -> 0 | AJ62: =借入金!AE11 -> 0 | AK62: =借入金!AF11 -> 0 | AL62: =借入金!AG11 -> 0
E63: 支払利息(短期分) | F63: ※ | W63: =#REF! ->  | X63: =#REF! ->  | Y63: =#REF! ->  | Z63: =#REF! ->  | AG63: =#REF! ->  | AH63: =#REF! ->  | AI63: =#REF! ->  | AJ63: =#REF! ->  | AK63: =#REF! ->  | AL63: =#REF! -> 
E64: 営業外費用計 | H64: =SUM(H61:H63) ->  | AD64: 0 | AE64: 0 | AF64: 0 | AM64: 0 | AN64: 0 | AO64: 0 | AP64: 0
D65: 税引前利益(償却後利益) | H65: =H60-H64 -> 
D66: 所得税 | H66: =MAX(H65*0.33,0) -> 
D67: 当期利益 | H67: =H65-H66 -> 
D68: 当期利益累計 | H68: =H67 ->  | I68: =H68+I67 -> 
D69: 投下資本未回収残高(積立金除く) | G69: =-1*G50 ->  | H69: =G69+IF(H51>0,H51,0)-SUM(H36:H37) -> 
D70: 修繕積立金累計額 | H70: =G70+H45-H38 -> 
F71: ※は別シートとリンク

Sheet W1修繕あり-積立あり (hidden)
C3: =#REF! ->  | D3: =#REF! ->  | E3: =#REF! -> 
C4: =#REF! ->  | D4: =#REF! ->  | E4: =#REF! -> 
E5: =#REF! -> 
C6: 戸数 | E6: =#REF! -> 
C7: 家賃(万円/月) | E7: =#REF! ->  | G7: =E6*E7*12 ->  | H7: 満室時賃料 | J7: 建設費
C8: 駐車場(万円/月) | E8: =#REF! ->  | J8: 大都市部 | K8: =#REF! -> 
C9: 建物建設費(万円) | E9: =#REF! ->  | F9: 設備等込 | J9: 地方部 | K9: =#REF! -> 
J10: 調整比率 | K10: =#REF! ->  | L10: ※地方部で使用
C11: 自己資金 | E11: =#REF! -> 
C12: 銀行借り入れ | E12: =#REF! -> 
C13: 返済期間 | E13: =#REF! -> 
C14: 金利 | E14: =#REF! -> 
C16: 建物管理 | E16: =#REF! ->  | F16: 満室賃料に対して
C17: 保険料(万円/年) | E17: =#REF! -> 
C18: 建築面積 | D18: ㎡ | E18: =#REF! ->  | G18: 延べ床面積 | H18: =#REF! ->  | I18: =#REF! ->  | J18: =#REF! ->  | K18: 万円
C19: 敷地面積 | D19: ㎡ | E19: =#REF! -> 
C20: 土地単価 | D20: 万円/㎡ | E20: =#REF! -> 
C21: 土地価格 | E21: =#REF! ->  | F21: 計算
C22: 土地 課税標準 | E22: =#REF! ->  | F22: 計算
C23: 大規模修繕 | E23: =#REF! -> 
C24: 修繕費積立
C25: 減価償却率 | D25: RC 47年 | E25: =#REF! -> 
D26: W 22年 | E26: =#REF! -> 
G27: 実収入率 | H27: 0.95 | I27: 0.95 | J27: 0.95 | K27: 0.95 | L27: 0.95 | M27: =L27-0.01 -> 0.94 | N27: =M27-0.01 -> 0.93 | O27: =N27-0.01 -> 0.92 | P27: =O27-0.01 -> 0.91 | Q27: =P27-0.01 -> 0.9 | R27: =Q27+0.05 -> 0.95 | S27: =R27-0.01 -> 0.94 | T27: =S27-0.01 -> 0.93 | U27: =T27-0.01 -> 0.92 | V27: =U27-0.01 -> 0.91 | W27: =V27+0.04 -> 0.95 | X27: =W27-0.01 -> 0.94 | Y27: =X27-0.01 -> 0.93 | Z27: =Y27-0.01 -> 0.92 | AA27: =Z27-0.01 -> 0.91 | AB27: =AA27+0.04 -> 0.95 | AC27: =AB27-0.01 -> 0.94 | AD27: =AC27-0.01 -> 0.93 | AE27: =AD27-0.01 -> 0.92 | AF27: =AE27-0.01 -> 0.91 | AG27: =AF27+0.04 -> 0.95 | AH27: =AG27-0.01 -> 0.94 | AI27: =AH27-0.01 -> 0.93 | AJ27: =AI27-0.01 -> 0.92 | AK27: =AJ27-0.01 -> 0.91 | AL27: =AK27+0.04 -> 0.95 | AM27: =AL27-0.01 -> 0.94 | AN27: =AM27-0.01 -> 0.93 | AO27: =AN27-0.01 -> 0.92 | AP27: =AO27-0.01 -> 0.91
G28: 修繕積立金（/戸/年） | H28: 8.4 | I28: 8.4 | J28: 8.4 | K28: 8.4 | L28: 8.4 | M28: 8.4 | N28: 8.4 | O28: 8.4 | P28: 8.4 | Q28: 8.4 | R28: 8.4 | S28: 8.4 | T28: 8.4 | U28: 8.4 | V28: 8.4 | W28: 8.4 | X28: 8.4 | Y28: 8.4 | Z28: 8.4 | AA28: 8.4 | AB28: 8.4 | AC28: 8.4 | AD28: 8.4 | AE28: 8.4 | AF28: 4.4 | AG28: 4.4 | AH28: 4.4 | AI28: 4.4 | AJ28: 4.4
J32: （単位：万円）
E33: （単位：万円） | G33: 0 | H33: 1 | I33: =H33+1 -> 2 | J33: 3 | K33: 4 | L33: 5 | M33: 6 | N33: 7 | O33: 8 | P33: 9 | Q33: 10 | R33: 11 | S33: 12 | T33: 13 | U33: 14 | V33: 15 | W33: 16 | X33: 17 | Y33: 18 | Z33: 19 | AA33: 20 | AB33: 21 | AC33: 22 | AD33: 23 | AE33: 24 | AF33: 25 | AG33: 26 | AH33: 27 | AI33: 28 | AJ33: 29 | AK33: 30 | AL33: 31 | AM33: 32 | AN33: 33 | AO33: 34 | AP33: 35
D34: 収入 | E34: 家賃収入 | H34: =$G$7*H27 -> 
E35: 銀行借入（長期） | G35: =E12 -> 
E36: 銀行借入（短期）
E37: 自己資金 | G37: =E11 -> 
E38: (修繕積立金 取り崩し） | H38: =IF((H43+H44)>G70,G70,(H43+H44)) -> 
E39: 収入計 | G39: =SUM(G34:G38) -> 
E40: 建物建設費（初期建設費） | G40: =E9 -> 
C41: 収支計算 | E41: 建物管理費(募集・管理委託等) | H41: =$G$7*0.05 -> 
E42: 保険料 | H42: =$E$17 -> 
E43: 原状回復費用 | H43: =IF(MOD(H33,4)=0,$E$7,"0") -> 0 | I43: 0 | J43: 0 | L43: 0 | M43: 0 | N43: 0 | P43: 0 | Q43: 0 | R43: 0 | T43: 0 | U43: 0 | V43: 0 | X43: 0 | Y43: 0 | Z43: 0 | AB43: 0 | AC43: 0 | AD43: 0 | AF43: 0 | AG43: 0 | AH43: 0 | AJ43: 0 | AK43: 0 | AL43: 0 | AN43: 0 | AO43: 0 | AP43: 0
D44: 支出 | E44: 修繕費 | F44: ※ | H44: =#REF!*$E$6/10000 ->  | I44: =#REF!*$E$6/10000 ->  | J44: =#REF!*$E$6/10000 ->  | K44: =#REF!*$E$6/10000 ->  | L44: =#REF!*$E$6/10000 ->  | M44: =#REF!*$E$6/10000 ->  | N44: =#REF!*$E$6/10000 ->  | O44: =#REF!*$E$6/10000 ->  | P44: =#REF!*$E$6/10000 ->  | Q44: =#REF!*$E$6/10000 ->  | R44: =#REF!*$E$6/10000 ->  | S44: =#REF!*$E$6/10000 ->  | T44: =#REF!*$E$6/10000 ->  | U44: =#REF!*$E$6/10000 ->  | V44: =#REF!*$E$6/10000 ->  | W44: =#REF!*$E$6/10000 ->  | X44: =#REF!*$E$6/10000 ->  | Y44: =#REF!*$E$6/10000 ->  | Z44: =#REF!*$E$6/10000 ->  | AA44: =#REF!*$E$6/10000 ->  | AB44: =#REF!*$E$6/10000 ->  | AC44: =#REF!*$E$6/10000 ->  | AD44: =#REF!*$E$6/10000 ->  | AE44: =#REF!*$E$6/10000 ->  | AF44: =#REF!*$E$6/10000 ->  | AG44: =#REF!*$E$6/10000 ->  | AH44: =#REF!*$E$6/10000 ->  | AI44: =#REF!*$E$6/10000 ->  | AJ44: =#REF!*$E$6/10000 ->  | AK44: =#REF!*$E$6/10000 ->  | AL44: =#REF!*$E$6/10000 ->  | AM44: =#REF!*$E$6/10000 ->  | AN44: =#REF!*$E$6/10000 ->  | AO44: =#REF!*$E$6/10000 ->  | AP44: =#REF!*$E$6/10000 ->  | BG44: =SUM(H44:BE44)/50 -> 
E45: 修繕積立金 | H45: =H28*$E$6 -> 
E46: 借入金返済 | F46: ※ | H46: =借入金!C12 -> 0 | I46: =借入金!D12 -> 0 | J46: =借入金!E12 -> 0 | K46: =借入金!F12 -> 0 | L46: =借入金!G12 -> 0 | M46: =借入金!H12 -> 0 | N46: =借入金!I12 -> 0 | O46: =借入金!J12 -> 0 | P46: =借入金!K12 -> 0 | Q46: =借入金!L12 -> 0 | R46: =借入金!M12 -> 0 | S46: =借入金!N12 -> 0 | T46: =借入金!O12 -> 0 | U46: =借入金!P12 -> 0 | V46: =借入金!Q12 -> 0 | W46: =借入金!R12 -> 0 | X46: =借入金!S12 -> 0 | Y46: =借入金!T12 -> 0 | Z46: =借入金!U12 -> 0 | AA46: =借入金!V12 -> 0 | AB46: =借入金!W12 -> 0 | AC46: =借入金!X12 -> 0 | AD46: =借入金!Y12 -> 0 | AE46: =借入金!Z12 -> 0 | AF46: =借入金!AA12 -> 0 | AG46: =借入金!AB12 -> 0 | AH46: =借入金!AC12 -> 0 | AI46: =借入金!AD12 -> 0 | AJ46: =借入金!AE12 -> 0 | AK46: =借入金!AF12 -> 0 | AL46: =借入金!AG12 -> 0 | AM46: =借入金!AH12 -> 0 | AN46: =借入金!AI12 -> 0 | AO46: =借入金!AJ12 -> 0 | AP46: =借入金!AK12 -> 0
E47: 借入金(短期)返済 | F47: ※
E48: 固定資産税・都市計画税 | F48: ※ | H48: =($E$9+$E$22)*固都税経年率!C4*(0.014+0.003) ->  | I48: =($E$9+$E$22)*固都税経年率!D4*(0.014+0.003) ->  | J48: =($E$9+$E$22)*固都税経年率!E4*(0.014+0.003) ->  | K48: =($E$9+$E$22)*固都税経年率!F4*(0.014+0.003) ->  | L48: =($E$9+$E$22)*固都税経年率!G4*(0.014+0.003) ->  | M48: =($E$9+$E$22)*固都税経年率!H4*(0.014+0.003) ->  | N48: =($E$9+$E$22)*固都税経年率!I4*(0.014+0.003) ->  | O48: =($E$9+$E$22)*固都税経年率!J4*(0.014+0.003) ->  | P48: =($E$9+$E$22)*固都税経年率!K4*(0.014+0.003) ->  | Q48: =($E$9+$E$22)*固都税経年率!L4*(0.014+0.003) ->  | R48: =($E$9+$E$22)*固都税経年率!M4*(0.014+0.003) ->  | S48: =($E$9+$E$22)*固都税経年率!N4*(0.014+0.003) ->  | T48: =($E$9+$E$22)*固都税経年率!O4*(0.014+0.003) ->  | U48: =($E$9+$E$22)*固都税経年率!P4*(0.014+0.003) ->  | V48: =($E$9+$E$22)*固都税経年率!Q4*(0.014+0.003) ->  | W48: =($E$9+$E$22)*固都税経年率!R4*(0.014+0.003) ->  | X48: =($E$9+$E$22)*固都税経年率!S4*(0.014+0.003) ->  | Y48: =($E$9+$E$22)*固都税経年率!T4*(0.014+0.003) ->  | Z48: =($E$9+$E$22)*固都税経年率!U4*(0.014+0.003) ->  | AA48: =($E$9+$E$22)*固都税経年率!V4*(0.014+0.003) ->  | AB48: =($E$9+$E$22)*固都税経年率!W4*(0.014+0.003) ->  | AC48: =($E$9+$E$22)*固都税経年率!X4*(0.014+0.003) ->  | AD48: =($E$9+$E$22)*固都税経年率!Y4*(0.014+0.003) ->  | AE48: =($E$9+$E$22)*固都税経年率!Z4*(0.014+0.003) ->  | AF48: =($E$9+$E$22)*固都税経年率!AA4*(0.014+0.003) ->  | AG48: =($E$9+$E$22)*固都税経年率!AB4*(0.014+0.003) ->  | AH48: =($E$9+$E$22)*固都税経年率!AC4*(0.014+0.003) ->  | AI48: =($E$9+$E$22)*固都税経年率!AD4*(0.014+0.003) ->  | AJ48: =($E$9+$E$22)*固都税経年率!AE4*(0.014+0.003) ->  | AK48: =($E$9+$E$22)*固都税経年率!AF4*(0.014+0.003) ->  | AL48: =($E$9+$E$22)*固都税経年率!AG4*(0.014+0.003) ->  | AM48: =($E$9+$E$22)*固都税経年率!AH4*(0.014+0.003) ->  | AN48: =($E$9+$E$22)*固都税経年率!AI4*(0.014+0.003) ->  | AO48: =($E$9+$E$22)*固都税経年率!AJ4*(0.014+0.003) ->  | AP48: =($E$9+$E$22)*固都税経年率!AK4*(0.014+0.003) -> 
E49: 所得税等 | H49: =MAX(H65*0.33,0) -> 
E50: 支出計 | G50: =SUM(G40:G49) -> 
D51: 収支 | E51: 手元資金残金（年） | G51: =G39-G50 -> 
E52: 手元資金残金（累計） | G52: =-1*G39 ->  | H52: =G52+H51 -> 
D53: 収益 | E53: （収入計：修繕積立金取崩し除く) | H53: =H34 -> 
E54: 建物管理費(募集・管理委託等) | H54: =$G$7*0.05 -> 
C55: P/L | D55: 営業費用 | E55: 修繕費 | H55: =H44 -> 
C56: 損益計算 | E56: 保険料 | H56: =H42 -> 
E57: 固定資産税・都市計画税 | H57: =H48 -> 
E58: 修繕積立金
E59: 営業費用計 | H59: =SUM(H54:H58) -> 
D60: 償却前利益 | E60: （営業収入と同値） | H60: =H53-H59 -> 
E61: 減価償却費(定額法) | H61: =$E$9*$E$26 ->  | BF61: ← 注意 22年まで
D62: 営業外費用 | E62: 支払利息 | F62: ※ | H62: =借入金!C11 -> 0 | I62: =借入金!D11 -> 0 | J62: =借入金!E11 -> 0 | K62: =借入金!F11 -> 0 | L62: =借入金!G11 -> 0 | M62: =借入金!H11 -> 0 | N62: =借入金!I11 -> 0 | O62: =借入金!J11 -> 0 | P62: =借入金!K11 -> 0 | Q62: =借入金!L11 -> 0 | R62: =借入金!M11 -> 0 | S62: =借入金!N11 -> 0 | T62: =借入金!O11 -> 0 | U62: =借入金!P11 -> 0 | V62: =借入金!Q11 -> 0 | W62: =借入金!R11 -> 0 | X62: =借入金!S11 -> 0 | Y62: =借入金!T11 -> 0 | Z62: =借入金!U11 -> 0 | AA62: =借入金!V11 -> 0 | AB62: =借入金!W11 -> 0 | AC62: =借入金!X11 -> 0 | AD62: =借入金!Y11 -> 0 | AE62: =借入金!Z11 -> 0 | AF62: =借入金!AA11 -> 0 | AG62: =借入金!AB11 -> 0 | AH62: =借入金!AC11 -> 0 | AI62: =借入金!AD11 -> 0 | AJ62: =借入金!AE11 -> 0 | AK62: =借入金!AF11 -> 0 | AL62: =借入金!AG11 -> 0
E63: 支払利息(短期分) | F63: ※
E64: 営業外費用計 | H64: =SUM(H61:H63) ->  | AD64: 0 | AE64: 0 | AF64: 0 | AG64: 0 | AH64: 0 | AI64: 0 | AJ64: 0 | AK64: 0 | AL64: 0 | AM64: 0 | AN64: 0 | AO64: 0 | AP64: 0
D65: 税引前利益(償却後利益) | H65: =H60-H64 -> 
D66: 所得税 | H66: =MAX(H65*0.33,0) -> 
D67: 当期利益 | H67: =H65-H66 -> 
D68: 当期利益累計 | H68: =H67 ->  | I68: =H68+I67 -> 
D69: 投下資本未回収残高(積立金除く) | G69: =-1*G50 ->  | H69: =G69+IF(H51>0,H51,0)-SUM(H36:H37) -> 
D70: 修繕積立金累計額 | H70: =G70+H45-H38 -> 
F71: ※は別シートとリンク
